Workbook

Sheet Barre de progression (hidden)
B3: Master TCD
B4: Dépenses a ce jour | C4: Obj
B5: =B14 -> 853.3696 | C5: 100
B6: issu dépenses du mois dans respect du budget mensuel
B10: Objectif | C10: 10000
B11: Actuel | C11: ='Solde des comptes'!L7 -> 5333.56
B12: conversion
B13: =C11 -> 5333.56 | C13: =C10 -> 10000
B14: =(B13*C14)/C13 -> 853.3696 | C14: 1600

Sheet Planif Mensuelle (1)
B1: Mois | C1: Item | D1: Catégorie | E1: Sens | F1: Montant | G1: Solde | H1: Reel ou Budget | I1: Compte | J1: Affichage | K1: Column1 | L1: Dépenses ponctuelles
B2: Solde du mois precedent | G2: 8325.27 | I2: Chèque | L2: Janvier | M2: Février | N2: Mars | O2: Avril | P2: Mai | Q2: Juin | R2: Juillet | S2: Août | T2: Septembre | U2: Octobre | V2: Novembre | W2: Décembre
B3: Mois | C3: Item | D3: Catégorie | E3: Sens | F3: Montant | G3: Solde | H3: Reel ou Budget | I3: Compte | J3: Affichage
A4: x | B4: 2021-11-01 | C4: Loyer | D4: Bordeaux | E4: D | F4: 1310 | G4: =G2+F4*IF(E4="R",1,-1) -> 7015.27 | H4: Reel | I4: Chèque | J4: =IF(MONTH(B4)=MONTH(TODAY()),1,0) -> 1
A5: x | B5: =B4 -> 2021-11-01 | C5: Ass vie | D5: Personnel | E5: D | F5: 66.78 | G5: =G4+F5*IF(E5="R",1,-1) -> 6948.49 | H5: Reel | I5: Chèque | J5: 1
A6: r | B6: =B4 -> 2021-11-01 | C6: Locataires | D6: Entrée | E6: R | F6: 350 | G6: 7298.49 | H6: Reel | I6: Chèque | J6: 1
A7: x | B7: =B4 -> 2021-11-01 | C7: Koodo | D7: Personnel | E7: D | F7: 58.01 | G7: 7240.48 | H7: Reel | I7: Chèque | J7: 1
B8: =B4 -> 2021-11-01 | C8: Divers | D8: Divers | E8: D | F8: 200 | G8: 7040.48 | H8: Budgété | I8: Chèque | J8: 1 | L8: HQ | N8: HQ | P8: HQ | R8: HQ | T8: HQ | V8: HQ
A9: x | B9: =B4 -> 2021-11-01 | C9: HQ | D9: Bordeaux | E9: D | F9: 175 | G9: 6865.48 | H9: Reel | I9: Chèque | J9: 1 | L9: 347.06 | N9: 659.92 | P9: 442.71 | R9: 157.99 | T9: 116.85 | V9: 175
A10: r | B10: =B4 -> 2021-11-01 | C10: CARRA | D10: Entrée | E10: R | F10: 3001.07 | G10: 9866.55 | H10: Reel | I10: Chèque | J10: 1
A11: x | B11: =B4 -> 2021-11-01 | C11: Epargne | D11: Épargne | E11: D | F11: 0 | G11: 9866.55 | H11: Budgété | I11: Chèque | J11: 1
A12: x | B12: =B4 -> 2021-11-01 | C12: Contravention | D12: Auto | E12: D | F12: 0 | G12: 9866.55 | H12: Budgété | I12: Chèque | J12: 1
A13: x | B13: =B4 -> 2021-11-01 | C13: Paiement de dettes | D13: Paiement de dettes | E13: D | F13: =H46 -> 2150 | G13: 7716.55 | H13: Budgété | I13: Chèque | J13: 1
A14: x | B14: =B4 -> 2021-11-01 | C14: Permis | D14: Auto | E14: D | F14: 0 | G14: 7716.55 | H14: Budgété | I14: Chèque | J14: 1 | M14: Permis | N14: 90
A15: x | B15: =B4 -> 2021-11-01 | C15: Coiffeur | D15: Personnel | E15: D | F15: 20 | G15: 7696.55 | H15: Budgété | I15: Chèque | J15: 1
A16: x | B16: =B4 -> 2021-11-01 | C16: Rencontre | D16: Personnel | E16: D | F16: 100 | G16: 7596.55 | H16: Budgété | I16: Chèque | J16: 1
A17: x | B17: =B4 -> 2021-11-01 | C17: Honda | D17: Auto | E17: D | F17: 285 | G17: 7311.55 | H17: Reel | I17: Chèque | J17: 1
A18: r | B18: =B4 -> 2021-11-01 | C18: PSV | D18: Entrée | E18: R | F18: 626.49 | G18: 7938.04 | H18: Reel | I18: Chèque | J18: 1
A19: x | B19: =B4 -> 2021-11-01 | C19: Immatriculation | D19: Auto | E19: D | F19: 0 | G19: 7938.04 | H19: Budgété | I19: Chèque | J19: 1 | T19: Imm | U19: 275.43
A20: x | B20: =B4 -> 2021-11-01 | C20: Autre revenus | D20: Entrée | E20: R | F20: 500 | G20: 8438.04 | H20: Budgété | I20: Chèque | J20: 1 | S20: Lord | T20: 80
A21: r | B21: =B4 -> 2021-11-01 | C21: RRQ | D21: Entrée | E21: R | F21: 915.83 | G21: 9353.87 | H21: Reel | I21: Chèque | J21: 1
B22: =B4 -> 2021-11-01 | C22: Entretien Bordeaux | D22: Bordeaux | E22: D | F22: 100 | G22: 9253.87 | H22: Budgété | I22: Chèque | J22: =IF(MONTH(B22)=MONTH(TODAY()),1,0) -> 1
B23: =B4 -> 2021-11-01 | C23: Impot a payer | D23: Impots a payer | E23: D | F23: 0 | G23: 9253.87 | H23: Reel | I23: Chèque | J23: 1 | M23: Acc Prov | N23: 676 | Q23: 676 | T23: 676 | W23: 676
B24: Mois | C24: Item | D24: Catégorie | E24: Sens | F24: Montant | G24: Solde | H24: Réel ou budget | I24: Compte | J24: Affichage | L24: =SUM(L3:L23) -> 347.06 | M24: =SUM(M3:M23) -> 0 | N24: 1425.92 | O24: 0 | P24: 442.71 | Q24: =SUM(Q3:Q23) -> 676 | R24: =SUM(R3:R23) -> 157.99 | S24: =SUM(S3:S23) -> 0 | T24: =SUM(T3:T23) -> 872.85 | U24: =SUM(U3:U23) -> 275.43 | V24: 175 | W24: 676
A25: x | B25: =B23 -> 2021-11-01 | C25: Cable | D25: Bordeaux | E25: D | F25: 75 | G25: =Tableau313[[#This Row],[Montant]] -> 75 | H25: Réel | I25: Visa | J25: =IF(MONTH(B25)=MONTH(TODAY()),1,0) -> 1
A26: x | B26: =B25 -> 2021-11-01 | C26: Entretien Bordeaux | D26: Bordeaux | E26: D | F26: 100 | G26: =G25+Tableau313[[#This Row],[Montant]] -> 175 | H26: Budgété | I26: Visa | J26: 1 | L26: Affichage | M26: 1
A27: x | B27: =B25 -> 2021-11-01 | C27: Assurance Auto | D27: Auto | E27: D | F27: 60 | G27: =G26+Tableau313[[#This Row],[Montant]] -> 235 | H27: Réel | I27: Visa | J27: 1
A28: x | B28: =B25 -> 2021-11-01 | C28: Entretien auto | D28: Auto | E28: D | F28: 0 | G28: =G27+Tableau313[[#This Row],[Montant]] -> 235 | H28: Budgété | I28: Visa | J28: 1 | M28: Column Labels | P28: Ajout ponctuel | Q28: Total
A29: x | B29: =B25 -> 2021-11-01 | C29: Essence | D29: Auto | E29: D | F29: 100 | G29: =G28+Tableau313[[#This Row],[Montant]] -> 335 | H29: Budgété | I29: Visa | J29: 1 | L29: Row Labels | M29: Chèque | N29: Visa | O29: Grand Total | P29: du mois courant
A30: x | B30: =B29 -> 2021-11-01 | C30: Stationnement | D30: Auto | E30: D | F30: 10 | G30: =G29+Tableau313[[#This Row],[Montant]] -> 345 | H30: Budgété | I30: Visa | J30: 1 | L30: Alimentation | N30: 880 | O30: 880 | P30: 0 | Q30: =GETPIVOTDATA("Montant",$L$28,"Catégorie","Alimentation")+P30 -> 880
A31: x | B31: =B29 -> 2021-11-01 | C31: Médicaments | D31: Santé | E31: D | F31: 60 | G31: =G30+Tableau313[[#This Row],[Montant]] -> 405 | H31: Budgété | I31: Visa | J31: 1 | L31: Animaux | N31: 525 | O31: 525 | P31: 0 | Q31: =GETPIVOTDATA("Montant",$L$28,"Catégorie","Animaux")+P31 -> 525
A32: x | B32: =B31 -> 2021-11-01 | C32: Vaccin | D32: Santé | E32: D | F32: 120 | G32: =G31+Tableau313[[#This Row],[Montant]] -> 525 | H32: Budgété | I32: Visa | J32: 1 | L32: Auto | M32: 285 | N32: 170 | O32: 455 | P32: 0 | Q32: =GETPIVOTDATA("Montant",$L$28,"Catégorie","Auto")+P32 -> 455
A33: x | B33: =B32 -> 2021-11-01 | C33: Prise de sang | D33: Santé | E33: D | F33: 10 | G33: =G32+Tableau313[[#This Row],[Montant]] -> 535 | H33: Budgété | I33: Visa | J33: 1 | L33: Bordeaux | M33: 1585 | N33: 175 | O33: 1760 | Q33: =GETPIVOTDATA("Montant",$L$28,"Catégorie","Bordeaux")+P33 -> 1760
A34: x | B34: =B33 -> 2021-11-01 | C34: Matériel informatique | D34: Divers | E34: D | F34: 0 | G34: =G33+Tableau313[[#This Row],[Montant]] -> 535 | H34: Budgété | I34: Visa | J34: 1 | L34: Divers | M34: 200 | N34: 0 | O34: 200 | P34: 0 | Q34: =GETPIVOTDATA("Montant",$L$28,"Catégorie","Divers")+P34 -> 200
A35: x | B35: =B33 -> 2021-11-01 | C35: Meuble | D35: Divers | E35: D | F35: 0 | G35: =G34+Tableau313[[#This Row],[Montant]] -> 535 | H35: Budgété | I35: Visa | J35: 1 | L35: Entrée | M35: 5393.39 | O35: 5393.39
A36: x | B36: =B33 -> 2021-11-01 | C36: Voyage | D36: Divers | E36: D | F36: 0 | G36: =G35+Tableau313[[#This Row],[Montant]] -> 535 | H36: Budgété | I36: Visa | J36: 1 | L36: Épargne | M36: 0 | O36: 0 | P36: 0 | Q36: =GETPIVOTDATA("Montant",$L$28,"Catégorie","Épargne")+P36 -> 0
A37: x | B37: =B33 -> 2021-11-01 | C37: Vetements | D37: Divers | E37: D | F37: 0 | G37: =G36+Tableau313[[#This Row],[Montant]] -> 535 | H37: Budgété | I37: Visa | J37: 1 | L37: Impots a payer | M37: 0 | O37: 0 | P37: 0 | Q37: =GETPIVOTDATA("Montant",$L$28,"Catégorie","Impots a payer")+P37 -> 0
A38: x | B38: =B33 -> 2021-11-01 | C38: Épiceries | D38: Alimentation | E38: D | F38: 800 | G38: =G37+Tableau313[[#This Row],[Montant]] -> 1335 | H38: Budgété | I38: Visa | J38: 1 | L38: Paiement de dettes | M38: 2150 | O38: 2150 | P38: 0 | Q38: =GETPIVOTDATA("Montant",$L$28,"Catégorie","Paiement de dettes")+P38 -> 2150
A39: x | B39: =B33 -> 2021-11-01 | C39: Restaurant | D39: Alimentation | E39: D | F39: 80 | G39: =G38+Tableau313[[#This Row],[Montant]] -> 1415 | H39: Budgété | I39: Visa | J39: 1 | L39: Personnel | M39: 244.79 | N39: 210 | O39: 454.79 | P39: 0 | Q39: =GETPIVOTDATA("Montant",$L$28,"Catégorie","Personnel")+P39 -> 454.79
A40: x | B40: =B33 -> 2021-11-01 | C40: Reno | D40: Projets | E40: D | F40: 0 | G40: =G39+Tableau313[[#This Row],[Montant]] -> 1415 | H40: Budgété | I40: Visa | J40: 1 | L40: Projets | N40: 0 | O40: 0 | P40: 0 | Q40: =GETPIVOTDATA("Montant",$L$28,"Catégorie","Projets")+P40 -> 0
A41: x | B41: =B33 -> 2021-11-01 | C41: Nourriture animaux | D41: Animaux | E41: D | F41: 175 | G41: =G40+Tableau313[[#This Row],[Montant]] -> 1590 | H41: Budgété | I41: Visa | J41: 1 | L41: Santé | N41: 190 | O41: 190 | Q41: =GETPIVOTDATA("Montant",$L$28,"Catégorie","Santé")+P41 -> 190
A42: x | B42: =B33 -> 2021-11-01 | C42: Soins animaliers | D42: Animaux | E42: D | F42: 350 | G42: =G41+Tableau313[[#This Row],[Montant]] -> 1940 | H42: Budgété | I42: Visa | J42: 1 | L42: Grand Total | M42: 9858.18 | N42: 2150 | O42: 12008.18 | P42: =SUM(P30:P41) -> 0 | Q42: =SUM(Q30:Q41) -> 6614.79
A43: x | B43: =B42 -> 2021-11-01 | C43: Cadeau | D43: Personnel | E43: D | F43: 200 | G43: =G42+Tableau313[[#This Row],[Montant]] -> 2140 | H43: Budgété | I43: Visa | J43: 1 | L43: Entrées | M43: =GETPIVOTDATA("Montant",$L$28,"Compte","Chèque")-M44 -> 5393.39
A44: x | B44: =B43 -> 2021-11-01 | C44: Loto | D44: Personnel | E44: D | F44: 10 | G44: =G43+Tableau313[[#This Row],[Montant]] -> 2150 | H44: Budgété | I44: Visa | J44: 1 | L44: Sorties | M44: =GETPIVOTDATA("Montant",$L$28,"Compte","Chèque")-GETPIVOTDATA("Montant",$L$28,"Catégorie","Entrée","Compte","Chèque") -> 4464.79
A45: x | B45: =B44 -> 2021-11-01 | C45: Home dépôt | D45: Projets | E45: D | F45: 0 | G45: =G44+Tableau313[[#This Row],[Montant]] -> 2150 | H45: Budgété | I45: Visa | J45: 1
F46: Total | G46: anticipé | H46: =SUM(F25:F45) -> 2150
B50: Projection
B52: Janvier | C52: Février | D52: Mars | E52: Avril | F52: Mai | G52: Juin | H52: Juillet | I52: Août | J52: Septembre | K52: Octobre | L52: Novembre | M52: Décembre
A53: SD | J53: 7562.99 | K53: 7519.57 | L53: =K59 -> 8325.27 | M53: =L58 -> 8943.87 | O53: Solde de départ
A54: EPH | J54: 5073.39 | K54: 5393.39 | L54: 5073.39 | M54: 5073.39 | O54: Entrées prévues habituelles
A55: SPH | J55: 4104.79 | K55: 4464.79 | L55: 4279.79 | M55: 4279.79 | O55: Sorties prévues habituelles
A56: EPP | J56: 1360 | K56: 0 | L56: 0 | M56: 0 | O56: Entrées prévues ponctuelles
A57: SPP | J57: 2232.85 | L57: =V24 -> 175 | M57: =W24 -> 676 | O57: Sorties prévues ponctuelles
A58: SA | J58: 7658.74 | K58: 8448.17 | L58: =(L53+L54+L56)-(L55+L57) -> 8943.87 | M58: 9061.47 | O58: Solde anticipé
A59: SR | J59: 7519.57 | K59: 8325.27 | O59: Solde réel

Sheet Liste des opérations
C1: Liste des opérations a générer | G1: Date du jour | H1: =TODAY() -> 2021-11-14
B3: Id | C3: Fournisseur | D3: Montant | E3: Compte | F3: ECHEANCE | G3: ANNOTATION
B4: 1 | C4: Industrielle Alliance | D4: 66.78 | E4: Chèque | F4: 2021-12-01 | G4: =IF(F4<$H$1,"🔔 Date échue",IF(F4=$H$1,"💬 Attention dernier jour !","")) -> 
B5: 2 | C5: Loyer | D5: 1310 | E5: Chèque | F5: 2021-12-01 | G5: =IF(F5<$H$1,"🔔 Date échue",IF(F5=$H$1,"💬 Attention dernier jour !","")) -> 
B6: 3 | C6: Koodo | D6: 58.01 | E6: Chèque | F6: 2021-12-04 | G6: =IF(F6<$H$1,"🔔 Date échue",IF(F6=$H$1,"💬 Attention dernier jour !","")) -> 
B7: 4 | C7: Sonnet Assurance | D7: 59.95 | E7: Visa | F7: 2021-12-15
B8: 5 | C8: IVC Cable Bordeaux | D8: 74.68 | E8: Visa | F8: 2021-11-21
B9: 6 | C9: Honda | D9: 285 | E9: Chèque | F9: 2021-11-25
B10: 7 | C10: Visa | D10: 0 | E10: Chèque | F10: 2021-11-25
B11: 8 | C11: CARRA | D11: 3001.07 | E11: Chèque | F11: 2021-11-15
B12: 9 | C12: PSV | D12: 626.49 | E12: Chèque | F12: 2021-11-27
B13: 10 | C13: RRQ | D13: 915.83 | E13: Chèque | F13: 2021-11-30 | G13: =IF(F13<$H$1,"🔔 Date échue",IF(F13=$H$1,"💬 Attention dernier jour !","")) -> 
B14: 11 | C14: HQ | D14: 175 | E14: Chèque | F14: 2021-11-28 | G14: =IF(F14<$H$1,"🔔 Date échue",IF(F14=$H$1,"💬 Attention dernier jour !","")) -> 

Sheet Planif Mensuelle (hidden)
B1: Date | C1: Item | D1: Catégorie | E1: Sens | F1: Montant | G1: Solde | H1: Reel ou Budget | I1: Janvier | J1: Février | K1: Mars | L1: Avril | M1: Mai | N1: Juin | O1: Juillet | P1: Août | Q1: Septembre | R1: Octobre | S1: Novembre | T1: Décembre
B2: Solde du mois precedent | G2: 7562.99
A3: x | B3: 01-09-2021 | C3: Loyer | D3: Bordeaux | E3: D | F3: 1310 | G3: =G2+F3*IF(E3="R",1,-1) -> 6252.99 | H3: Reel
A4: x | B4: =B3 -> 01-09-2021 | C4: Ass vie | D4: Personnel | E4: D | F4: 66.78 | G4: =G3+F4*IF(E4="R",1,-1) -> 6186.21 | H4: Reel
A5: r | B5: =B3 -> 01-09-2021 | C5: Locataires | D5: Entrée | E5: R | F5: 350 | G5: 6536.21 | H5: Reel
A6: x | B6: =B3 -> 01-09-2021 | C6: Koodo | D6: Personnel | E6: D | F6: 58.01 | G6: 6478.2 | H6: Reel
B7: =B3 -> 01-09-2021 | C7: Divers | D7: Divers | E7: D | F7: 200 | G7: 6278.2 | H7: Budgété
A8: x | B8: =B3 -> 01-09-2021 | C8: HQ | D8: Bordeaux | E8: D | G8: 6278.2 | H8: Reel | I8: 347.06 | K8: 659.92 | M8: 442.71 | O8: 157.99 | Q8: 116.85 | S8: 175
A9: r | B9: =B3 -> 01-09-2021 | C9: CARRA | D9: Entrée | E9: R | F9: 3001.07 | G9: 9279.27 | H9: Reel
A10: x | B10: =B3 -> 01-09-2021 | C10: Epargne | D10: Épargne | E10: D | F10: 300 | G10: 8979.27 | H10: Budgété | K10: acompte prov | N10: acompte prov | Q10: acompte prov | T10: ac prov
A11: x | B11: =B3 -> 01-09-2021 | C11: Contravention | D11: Auto | E11: D | F11: 0 | G11: 8979.27 | H11: Budgété | K11: 676 | N11: 676 | Q11: 676 | T11: 676
A12: x | B12: =B3 -> 01-09-2021 | C12: Paiement de dettes | D12: Paiement de dettes | E12: D | F12: =H47 -> 2020 | G12: 6959.27 | H12: Budgété | K12: Permis
A13: x | B13: =B3 -> 01-09-2021 | C13: Permis | D13: Auto | E13: D | F13: 0 | G13: 6959.27 | H13: Budgété | K13: 90
A14: x | B14: =B3 -> 01-09-2021 | C14: Coiffeur | D14: Personnel | E14: D | F14: 20 | G14: 6939.27 | H14: Budgété
A15: x | B15: =B3 -> 01-09-2021 | C15: Rencontre | D15: Personnel | E15: D | F15: 100 | G15: 6839.27 | H15: Budgété
A16: x | B16: =B3 -> 01-09-2021 | C16: Honda | D16: Auto | E16: D | F16: 285 | G16: 6554.27 | H16: Reel
A17: r | B17: =B3 -> 01-09-2021 | C17: PSV | D17: Entrée | E17: R | F17: 626.49 | G17: 7180.76 | H17: Reel | R17: Immatriculation
A18: x | B18: =B3 -> 01-09-2021 | C18: Immatriculation | D18: Auto | E18: D | F18: 0 | G18: 7180.76 | H18: Budgété | R18: 275
A19: x | B19: =B3 -> 01-09-2021 | C19: Autre revenus | D19: Entrée | E19: R | F19: 180 | G19: 7360.76 | H19: Budgété
A20: r | B20: =B3 -> 01-09-2021 | C20: RRQ | D20: Entrée | E20: R | F20: 915.83 | G20: 8276.59 | H20: Reel | L20: impots
B21: =B3 -> 01-09-2021 | C21: Impot a payer | D21: Impots a payer | E21: D | F21: 676 | G21: 7600.59 | H21: Reel
F22: solde | G22: Mois | H22: Année
F23: anticipé | G23: =L104 -> 6807.74 | H23: =O104 -> 5659.54
B24: VISA
B25: Date | C25: Item | D25: Catégorie | E25: Sens | F25: Montant | G25: Solde | H25: Réel ou budget | K25: IVC
A26: x | C26: Cable | D26: Bordeaux | E26: D | F26: 75 | G26: =Tableau3[[#This Row],[Montant]] -> 75 | H26: Réel | K26: 75 | T26: ALI
A27: x | C27: Entretien Bordeaux | D27: Bordeaux | E27: D | F27: 250 | G27: =G26+Tableau3[[#This Row],[Montant]] -> 325 | H27: Budgété | T27: 135
A28: x | B28: =B3 -> 01-09-2021 | C28: Assurance Auto | D28: Auto | E28: D | F28: 60 | G28: =G27+Tableau3[[#This Row],[Montant]] -> 385 | H28: Réel | R28: Dernier paiement Sonnet
A29: x | C29: Entretien auto | D29: Auto | E29: D | F29: 0 | G29: =G28+Tableau3[[#This Row],[Montant]] -> 385 | H29: Budgété
A30: x | C30: Essence | D30: Auto | E30: D | F30: 50 | G30: =G29+Tableau3[[#This Row],[Montant]] -> 435 | H30: Budgété
A31: x | C31: Stationnement | D31: Auto | E31: D | F31: 10 | G31: =G30+Tableau3[[#This Row],[Montant]] -> 445 | H31: Budgété
A32: x | C32: Médicaments | D32: Santé | E32: D | F32: 140 | G32: =G31+Tableau3[[#This Row],[Montant]] -> 585 | H32: Budgété | Q32: 80
A33: x | C33: Vaccin | D33: Santé | E33: D | F33: 10 | G33: =G32+Tableau3[[#This Row],[Montant]] -> 595 | H33: Budgété | Q33: dr Lord
A34: x | C34: Prise de sang | D34: Santé | E34: D | F34: 10 | G34: =G33+Tableau3[[#This Row],[Montant]] -> 605 | H34: Budgété
A35: x | C35: Matériel informatique | D35: Divers | E35: D | F35: 0 | G35: =G34+Tableau3[[#This Row],[Montant]] -> 605 | H35: Budgété
A36: x | C36: Meuble | D36: Divers | E36: D | F36: 0 | G36: =G35+Tableau3[[#This Row],[Montant]] -> 605 | H36: Budgété
A37: x | C37: Voyage | D37: Divers | E37: D | F37: 0 | G37: =G36+Tableau3[[#This Row],[Montant]] -> 605 | H37: Budgété
A38: x | C38: Vetements | D38: Divers | E38: D | F38: 0 | G38: =G37+Tableau3[[#This Row],[Montant]] -> 605 | H38: Budgété
A39: x | C39: Épiceries | D39: Alimentation | E39: D | F39: 800 | G39: =G38+Tableau3[[#This Row],[Montant]] -> 1405 | H39: Budgété
A40: x | C40: Restaurant | D40: Alimentation | E40: D | F40: 80 | G40: =G39+Tableau3[[#This Row],[Montant]] -> 1485 | H40: Budgété
A41: x | C41: Reno | D41: Projets | E41: D | F41: 0 | G41: =G40+Tableau3[[#This Row],[Montant]] -> 1485 | H41: Budgété
A42: x | C42: Nourriture animaux | D42: Animaux | E42: D | F42: 175 | G42: =G41+Tableau3[[#This Row],[Montant]] -> 1660 | H42: Budgété
A43: x | C43: Soins animaliers | D43: Animaux | E43: D | F43: 350 | G43: =G42+Tableau3[[#This Row],[Montant]] -> 2010 | H43: Budgété
A44: x | C44: Cadeau | D44: Personnel | E44: D | F44: 0 | G44: =G43+Tableau3[[#This Row],[Montant]] -> 2010 | H44: Budgété
A45: x | C45: Loto | D45: Personnel | E45: D | F45: 10 | G45: =G44+Tableau3[[#This Row],[Montant]] -> 2020 | H45: Budgété
A46: x | C46: Home dépôt | D46: Projets | E46: D | F46: 0 | G46: =G45+Tableau3[[#This Row],[Montant]] -> 2020 | H46: Budgété
F47: Total | G47: anticipé | H47: =SUM(F26:F46) -> 2020
B50: TCD issus des saisies ci haut
I53: Budget récurent du mois
B54: Compte cheque | E54: Visa | Q54: ponderation an
I55: Catégories | J55: Juin | K55: 2021-07-01 | L55: 2021-08-01 | M55: 2021-09-01 | N55: 2021-10-01 | O55: 2021-11-01 | P55: 2021-12-01 | Q55: Moyenne
B56: Row Labels | C56: Sum of Montant | E56: Row Labels | F56: Sum of Montant | I56: =E57 -> Alimentation | J56: 850 | K56: 850 | L56: =GETPIVOTDATA("Montant",$E$56,"Catégorie","Alimentation") -> 880 | M56: 880 | N56: 880 | O56: 880 | P56: 880 | Q56: =AVERAGE(J56:P56) -> 871.4285714
B57: Auto | C57: 285 | E57: Alimentation | F57: 880 | I57: Animaux | J57: 250 | K57: 275 | L57: =GETPIVOTDATA("Montant",$E$56,"Catégorie","Animaux") -> 525 | M57: 525 | N57: 525 | O57: 525 | P57: 525 | Q57: =AVERAGE(J57:P57) -> 450
B58: Bordeaux | C58: 1310 | E58: Animaux | F58: 525 | I58: Auto | J58: 405 | K58: 460 | L58: =GETPIVOTDATA("Montant",$B$56,"Catégorie","Auto")+GETPIVOTDATA("Montant",$E$56,"Catégorie","Auto") -> 405 | M58: 405 | N58: 405 | O58: 405 | P58: 405 | Q58: 412.8571429
B59: Divers | C59: 200 | E59: Auto | F59: 120 | I59: Bordeaux | J59: 1885 | K59: 1635 | L59: =GETPIVOTDATA("Montant",$E$56,"Catégorie","Bordeaux")+GETPIVOTDATA("Montant",$B$56,"Catégorie","Bordeaux") -> 1635 | M59: =GETPIVOTDATA("Montant",$E$56,"Catégorie","Bordeaux")+GETPIVOTDATA("Montant",$B$56,"Catégorie","Bordeaux") -> 1635 | N59: =GETPIVOTDATA("Montant",$E$56,"Catégorie","Bordeaux")+GETPIVOTDATA("Montant",$B$56,"Catégorie","Bordeaux") -> 1635 | O59: =GETPIVOTDATA("Montant",$E$56,"Catégorie","Bordeaux")+GETPIVOTDATA("Montant",$B$56,"Catégorie","Bordeaux") -> 1635 | P59: =GETPIVOTDATA("Montant",$E$56,"Catégorie","Bordeaux")+GETPIVOTDATA("Montant",$B$56,"Catégorie","Bordeaux") -> 1635 | Q59: 1670.714286
B60: Entrée | C60: 5073.39 | E60: Bordeaux | F60: 325 | I60: Divers | J60: 300 | K60: 200 | L60: =GETPIVOTDATA("Montant",$B$56,"Catégorie","Divers")+GETPIVOTDATA("Montant",$E$56,"Catégorie","Divers") -> 200 | M60: 200 | N60: 200 | O60: 200 | P60: 200 | Q60: 214.2857143
B61: Épargne | C61: 300 | E61: Divers | F61: 0 | I61: Personnel | J61: 334.79 | K61: 276.78 | L61: =GETPIVOTDATA("Montant",$E$56,"Catégorie","Personnel")+GETPIVOTDATA("Montant",$B$56,"Catégorie","Personnel") -> 254.79 | M61: 254.79 | N61: 254.79 | O61: 254.79 | P61: 254.79 | Q61: 269.36
B62: Impots a payer | C62: 676 | E62: Personnel | F62: 10 | I62: Projets | J62: 700 | K62: 0 | L62: 0 | M62: 0 | N62: 0 | O62: 0 | P62: 0 | Q62: 100
B63: Paiement de dettes | C63: 2020 | E63: Projets | F63: 0 | I63: Santé | J63: 100 | K63: 80 | L63: =GETPIVOTDATA("Montant",$E$56,"Catégorie","Santé") -> 160 | M63: 160 | N63: 160 | O63: 160 | P63: 160 | Q63: 140
B64: Personnel | C64: 244.79 | E64: Santé | F64: 160 | I64: =B61 -> Épargne | J64: 300 | K64: 300 | L64: =GETPIVOTDATA("Montant",$B$56,"Catégorie","Épargne") -> 300 | M64: 300 | N64: 300 | O64: 300 | P64: 300 | Q64: 300
B65: Grand Total | C65: 10109.18 | E65: Grand Total | F65: 2020 | I65: =B62 -> Impots a payer | J65: 676 | K65: 0 | L65: =GETPIVOTDATA("Montant",$B$56,"Catégorie","Impots a payer") -> 676 | M65: 676 | N65: 676 | O65: 676 | P65: 676 | Q65: 579.4285714
I66: Paiement de dettes | J66: 2155 | K66: 1715 | L66: =GETPIVOTDATA("Montant",$B$56,"Catégorie","Paiement de dettes") -> 2020 | M66: 2020 | N66: 2020 | O66: 2020 | P66: 2020 | Q66: 1995.714286
B67: Sans les entrées | C67: =GETPIVOTDATA("Montant",$B$56)-GETPIVOTDATA("Montant",$B$56,"Catégorie","Entrée") -> 5035.79 | I67: Total des sorties | J67: 5800.79 | K67: 4134.79 | L67: =$C67 -> 5035.79 | M67: 5035.79 | N67: 5035.79 | O67: 5035.79 | P67: 5035.79 | Q67: =AVERAGE(J67:P67) -> 5016.361429
I69: Total des entrées | J69: 5087.79 | K69: 5065.35 | L69: =GETPIVOTDATA("Montant",$B$56,"Catégorie","Entrée") -> 5073.39 | M69: 5073.39 | N69: 5073.39 | O69: 5073.39 | P69: 5073.39 | Q69: 5074.298571
I73: Ajout ponctuels
I75: Catégories | K75: 2021-07-01 | L75: 2021-08-01 | M75: 2021-09-01 | N75: 2021-10-01 | O75: 2021-11-01 | P75: 2021-12-01
B76: Date | C76: Catégorie | D76: Montant | E76: Affichage | F76: Column1 | I76: Alimentation
B77: 2021-06-01 | C77: Alimentation | D77: =J56 -> 850 | E77: =IF(MONTH(B77)=MONTH(TODAY()),1,0) -> 0 | I77: Animaux | K77: Entretien auto
B78: =B77 -> 2021-06-01 | C78: Animaux | D78: 250 | E78: 0 | I78: Auto | J78: IMM | K78: 60 | N78: =R18 -> 275
B79: =B77 -> 2021-06-01 | C79: Auto | D79: 405 | E79: 0 | I79: Auto | J79: Permis conduire
B80: =B77 -> 2021-06-01 | C80: Bordeaux | D80: 1885 | E80: 0 | I80: Bordeaux | J80: RENO | K80: 9000 | L80: 1200
B81: =B77 -> 2021-06-01 | C81: Divers | D81: 300 | E81: 0 | I81: Bordeaux | J81: HQ | K81: =O8 -> 157.99 | M81: =Q8 -> 116.85 | O81: =S8 -> 175
B82: =B77 -> 2021-06-01 | C82: Personnel | D82: 334.79 | E82: 0 | I82: Bordeaux | J82: ALI | P82: =T27 -> 135
B83: =B77 -> 2021-06-01 | C83: Projets | D83: 700 | E83: 0 | I83: Divers | J83: VAC | K83: 1800
B84: =B77 -> 2021-06-01 | C84: Santé | D84: 100 | E84: 0 | I84: Personnel | L84: 1600
B85: =B77 -> 2021-06-01 | C85: Épargne | D85: 300 | E85: 0 | I85: Projets
B86: =B77 -> 2021-06-01 | C86: Impots a payer | D86: 676 | E86: 0 | I86: Santé
B87: =B77 -> 2021-06-01 | C87: Paiement de dettes | D87: 2155 | E87: 0 | I87: Épargne
B88: =B77 -> 2021-06-01 | C88: Entrées | D88: =J69 -> 5087.79 | E88: 0 | I88: Impots a payer
B89: 2021-07-01 | C89: Alimentation | D89: =K56 -> 850 | E89: 0 | F89: juillet | I89: Paiement de dettes | J89: Ac Prov | M89: =Q11 -> 676 | P89: =T11 -> 676
B90: =B89 -> 2021-07-01 | C90: Animaux | D90: 275 | E90: 0 | I90: Total ponctuel | K90: =SUM(K76:K89) -> 11017.99 | L90: 2800 | M90: 792.85 | N90: 275 | O90: 175 | P90: 811
B91: =B89 -> 2021-07-01 | C91: Auto | D91: =K58+K78 -> 520 | E91: 0 | I91: Total des sorties | K91: =K67+K90 -> 15152.78 | L91: 7835.79 | M91: 5828.64 | N91: 5310.79 | O91: 5210.79 | P91: 5846.79
B92: =B89 -> 2021-07-01 | C92: Bordeaux | D92: =K59+K80 -> 10635 | E92: 0 | I92: Total des entrées | K92: =K69 -> 5065.35 | L92: 5073.39 | M92: 5073.39 | N92: 5073.39 | O92: 5073.39 | P92: 5073.39
B93: =B89 -> 2021-07-01 | C93: Divers | D93: =K60+K83 -> 2000 | E93: 0
B94: =B89 -> 2021-07-01 | C94: Personnel | D94: 276.78 | E94: 0
B95: =B89 -> 2021-07-01 | C95: Projets | D95: 0 | E95: 0
B96: =B89 -> 2021-07-01 | C96: Santé | D96: 80 | E96: 0
B97: =B89 -> 2021-07-01 | C97: Épargne | D97: 300 | E97: 0
B98: =B89 -> 2021-07-01 | C98: Impots a payer | D98: =K65 -> 0 | E98: 0
B99: =B89 -> 2021-07-01 | C99: Paiement de dettes | D99: 1715 | E99: 0
B100: =B89 -> 2021-07-01 | C100: Entrées | D100: =K69 -> 5065.35 | E100: 0 | I100: Juin | J100: Juillet | K100: Août | L100: Septembre | M100: Octobre | N100: Novembre | O100: Décembre
B101: 2021-08-01 | C101: Alimentation | D101: =L56 -> 880 | E101: 0 | F101: aout | I101: Solde de départ | J101: 16794.3 | K101: =J105 -> 8859.7 | L101: =K105 -> 7562.99 | M101: =L104 -> 6807.74 | N101: =M104 -> 6570.34 | O101: =N104 -> 6432.94
B102: =B101 -> 2021-08-01 | C102: Animaux | D102: 275 | E102: 0 | I102: Sorties anticipées | J102: =K91 -> 15152.78 | K102: 7835.79 | L102: 5828.64 | M102: 5310.79 | N102: 5210.79 | O102: 5846.79
B103: =B101 -> 2021-08-01 | C103: Auto | D103: 405 | E103: 0 | I103: Entrées anticipées | J103: 5065.35 | K103: 5073.39 | L103: 5073.39 | M103: 5073.39 | N103: 5073.39 | O103: 5073.39
B104: =B101 -> 2021-08-01 | C104: Bordeaux | D104: =L59+L80 -> 2835 | E104: 0 | I104: Solde a la fin | J104: =(J101+J103)-J102 -> 6706.87 | K104: =(K101+K103)-K102 -> 6097.3 | L104: 6807.74 | M104: 6570.34 | N104: 6432.94 | O104: 5659.54
B105: =B101 -> 2021-08-01 | C105: Divers | D105: 200 | E105: 0 | I105: Solde réel | J105: ='Flux sur 12 mois'!I15 -> 8859.7 | K105: 7562.99
B106: =B101 -> 2021-08-01 | C106: Personnel | D106: =L61+L84 -> 1854.79 | E106: 0
B107: =B101 -> 2021-08-01 | C107: Projets | D107: 0 | E107: 0
B108: =B101 -> 2021-08-01 | C108: Santé | D108: 160 | E108: 0
B109: =B101 -> 2021-08-01 | C109: Épargne | D109: 300 | E109: =IF(MONTH(B109)=MONTH(TODAY()),1,0) -> 0
B110: =B101 -> 2021-08-01 | C110: Impots a payer | D110: 0 | E110: 0
B111: =B101 -> 2021-08-01 | C111: Paiement de dettes | D111: 2020 | E111: 0
B112: =B101 -> 2021-08-01 | C112: Entrées | D112: =L69 -> 5073.39 | E112: 0
B113: 2021-09-01 | C113: Alimentation | D113: =M56 -> 880 | E113: 0 | F113: sept
B114: =B113 -> 2021-09-01 | C114: Animaux | D114: =M57 -> 525 | E114: 0
B115: =B113 -> 2021-09-01 | C115: Auto | D115: =M58 -> 405 | E115: 0
B116: =B113 -> 2021-09-01 | C116: Bordeaux | D116: =M59+M81 -> 1751.85 | E116: 0
B117: =B113 -> 2021-09-01 | C117: Divers | D117: =M60 -> 200 | E117: 0
B118: =B113 -> 2021-09-01 | C118: Personnel | D118: =L61 -> 254.79 | E118: 0
B119: =B113 -> 2021-09-01 | C119: Projets | D119: =M62 -> 0 | E119: 0
B120: =B113 -> 2021-09-01 | C120: Santé | D120: =N63 -> 160 | E120: 0
B121: =B113 -> 2021-09-01 | C121: Épargne | D121: =M64 -> 300 | E121: 0
B122: =B113 -> 2021-09-01 | C122: Impots a payer | D122: =M65 -> 676 | E122: 0
B123: =B113 -> 2021-09-01 | C123: Paiement de dettes | D123: =M66 -> 2020 | E123: 0
B124: =B113 -> 2021-09-01 | C124: Entrées | D124: =M69 -> 5073.39 | E124: 0
B125: 2021-10-01 | C125: Alimentation | E125: 0 | F125: oct
B126: =B125 -> 2021-10-01 | C126: Animaux | E126: 0
B127: =B125 -> 2021-10-01 | C127: Auto | E127: 0
B128: =B125 -> 2021-10-01 | C128: Bordeaux | E128: 0
B129: =B125 -> 2021-10-01 | C129: Divers | E129: 0
B130: =B125 -> 2021-10-01 | C130: Personnel | E130: 0
B131: =B125 -> 2021-10-01 | C131: Projets | E131: 0
B132: =B125 -> 2021-10-01 | C132: Santé | E132: 0
B133: =B125 -> 2021-10-01 | C133: Épargne | E133: 0
B134: =B125 -> 2021-10-01 | C134: Impots a payer | E134: 0
B135: =B125 -> 2021-10-01 | C135: Paiement de dettes | E135: 0
B136: =B125 -> 2021-10-01 | C136: Entrées | E136: 0
C137: Alimentation | E137: 0 | F137: nov
B138: =B137 -> 00:00:00 | C138: Animaux | E138: 0
B139: =B137 -> 00:00:00 | C139: Auto | E139: 0
B140: =B137 -> 00:00:00 | C140: Bordeaux | E140: 0
B141: =B137 -> 00:00:00 | C141: Divers | E141: =IF(MONTH(B141)=MONTH(TODAY()),1,0) -> 0
B142: =B137 -> 00:00:00 | C142: Personnel | E142: 0
B143: =B137 -> 00:00:00 | C143: Projets | E143: 0
B144: =B137 -> 00:00:00 | C144: Santé | E144: 0
B145: =B137 -> 00:00:00 | C145: Épargne | E145: 0
B146: =B137 -> 00:00:00 | C146: Impots a payer | E146: 0
B147: =B137 -> 00:00:00 | C147: Paiement de dettes | E147: 0
B148: =B137 -> 00:00:00 | C148: Entrées | E148: 0
C149: Alimentation | E149: 0 | F149: dec
B150: =B149 -> 00:00:00 | C150: Animaux | E150: 0
B151: =B149 -> 00:00:00 | C151: Auto | E151: 0
B152: =B149 -> 00:00:00 | C152: Bordeaux | E152: 0
B153: =B149 -> 00:00:00 | C153: Divers | E153: 0
B154: =B149 -> 00:00:00 | C154: Personnel | E154: 0
B155: =B149 -> 00:00:00 | C155: Projets | E155: 0
B156: =B149 -> 00:00:00 | C156: Santé | E156: 0
B157: =B149 -> 00:00:00 | C157: Épargne | E157: 0
B158: =B149 -> 00:00:00 | C158: Impots a payer | E158: 0
B159: =B149 -> 00:00:00 | C159: Paiement de dettes | E159: 0
B160: =B149 -> 00:00:00 | C160: Entrées | E160: 0
E161: 0
E162: 0
E163: 0
E164: 0

Sheet Flux sur 12 mois
A1: Flux sur 12 mois | O1: Début de l'exercice : | P1: 2021-01-01
A2: Robert Pellan
A3: 6622 Bordeaux Montréal H2G2S1
A4: 438-394-3860
B6: Fin dec 2020 | C6: 2021-01-01 | D6: =DATE(YEAR(C6),MONTH(C6)+1,1) -> 2021-02-01 | E6: =DATE(YEAR(D6),MONTH(D6)+1,1) -> 2021-03-01 | F6: 2021-04-01 | G6: 2021-05-01 | H6: 2021-06-01 | I6: 2021-07-01 | J6: 2021-08-01 | K6: 2021-09-01 | L6: 2021-10-01 | M6: 2021-11-01 | N6: 2021-12-01 | O6: Moyenne par mois | P6: Aperçu
A8: Résumé
A9: Bilan | B9: =B10-B11 -> 238594.93 | C9: =C10-C11 -> 245600.03 | D9: 248614.62 | E9: 252625.12 | F9: 252332.4 | G9: 253363.91 | H9: 256609.61 | I9: 254068.61 | J9: 254762.48 | K9: 248177.41 | L9: 251790.64 | M9: 390118.79 | N9: 0 | O9: =IFERROR(AVERAGE(Summary[[#This Row],[Column3]:[Column14]]),"") -> 242338.635
A10: Total des actifs | B10: =Receipts[[#Totals],[Column2]] -> 385422.93 | C10: =Receipts[[#Totals],[Column3]] -> 392031.33 | D10: =Receipts[[#Totals],[Column4]] -> 394504.26 | E10: =Receipts[[#Totals],[Column5]] -> 398026.86 | F10: =Receipts[[#Totals],[Column6]] -> 397178.82 | G10: =Receipts[[#Totals],[Column7]] -> 397543.23 | H10: =Receipts[[#Totals],[Column8]] -> 400190.45 | I10: =Receipts[[#Totals],[Column9]] -> 396588.49 | J10: =Receipts[[#Totals],[Column10]] -> 396885.78 | K10: =Receipts[[#Totals],[Column11]] -> 390058.84 | L10: =Receipts[[#Totals],[Column12]] -> 392870.36 | M10: =Receipts[[#Totals],[Column13]] -> 391525.07 | N10: =Receipts[[#Totals],[Column14]] -> 0 | O10: =IFERROR(AVERAGE(Summary[[#This Row],[Column3]:[Column14]]),"") -> 362283.6242
A11: Total du passif | B11: =PaidOut[[#Totals],[Column2]] -> 146828 | C11: =PaidOut[[#Totals],[Column3]] -> 146431.3 | D11: =PaidOut[[#Totals],[Column4]] -> 145889.64 | E11: =PaidOut[[#Totals],[Column5]] -> 145401.74 | F11: =PaidOut[[#Totals],[Column6]] -> 144846.42 | G11: =PaidOut[[#Totals],[Column7]] -> 144179.32 | H11: =PaidOut[[#Totals],[Column8]] -> 143580.84 | I11: =PaidOut[[#Totals],[Column9]] -> 142519.88 | J11: =PaidOut[[#Totals],[Column10]] -> 142123.3 | K11: =PaidOut[[#Totals],[Column11]] -> 141881.43 | L11: =PaidOut[[#Totals],[Column12]] -> 141079.72 | M11: =PaidOut[[#Totals],[Column13]] -> 1406.28 | N11: =PaidOut[[#Totals],[Column14]] -> 0 | O11: =IFERROR(AVERAGE(Summary[[#This Row],[Column3]:[Column14]]),"") -> 119944.9892
A12: Évolution du bilan | C12: =C9-B9 -> 7005.1 | D12: 3014.59 | E12: 4010.5 | F12: -292.72 | G12: 1031.51 | H12: 3245.7 | I12: -2541 | J12: 693.87 | K12: -6585.07 | L12: 3613.23 | M12: =M9-L9 -> 138328.15 | N12: =N9-M9 -> -390118.79 | O12: =O9-N9 -> 242338.635
A14: Actifs | B14: Fin dec 2020 | C14: 2021-01-01 | D14: =DATE(YEAR(C14),MONTH(C14)+1,1) -> 2021-02-01 | E14: 2021-03-01 | F14: 2021-04-01 | G14: 2021-05-01 | H14: 2021-06-01 | I14: 2021-07-01 | J14: 2021-08-01 | K14: 2021-09-01 | L14: 2021-10-01 | M14: 2021-11-01 | N14: 2021-12-01
A15: Solde Caisse | B15: 5331.25 | C15: 10020.57 | D15: 11844.09 | E15: 13484.43 | F15: 13607.75 | G15: 15151.86 | H15: 16794.3 | I15: 8859.7 | J15: 7562.99 | K15: 7519.57 | L15: 8325.27 | M15: ='Solde des comptes'!L5 -> 6976.98 | O15: =IFERROR(AVERAGE(Receipts[[#This Row],[Column3]:[Column14]]),"") -> 10922.50091
A16: REER Zénitude | B16: 10995.74 | C16: 11049.81 | D16: 11103.86 | E16: 11189.94 | F16: 11189.94 | G16: 11189.94 | H16: 11196.95 | I16: 11196.95 | J16: 11196.95 | K16: 11196.95 | L16: 11196.95 | M16: ='Solde des comptes'!L11 -> 11196.95 | O16: =IFERROR(AVERAGE(Receipts[[#This Row],[Column3]:[Column14]]),"") -> 11173.19909
A17: REER Ind ALL | B17: 56608.85 | C17: 57775.49 | D17: 58452.18 | E17: 60057.2 | F17: 60057.2 | G17: 60057.2 | H17: 60057.2 | I17: 63912.89 | J17: 64937.69 | K17: 63698.72 | L17: 65614.72 | M17: ='Solde des comptes'!L14 -> 65614.72 | O17: =IFERROR(AVERAGE(Receipts[[#This Row],[Column3]:[Column14]]),"") -> 61839.56455
A18: Épargne impots | B18: 106850.32 | C18: 106850.32 | D18: 103113.12 | E18: 103200.85 | F18: 101848.86 | G18: 100974.96 | H18: 101291.91 | I18: 101600.51 | J18: 101909.15 | K18: 96857.5 | L18: 96865.78 | M18: ='Solde des comptes'!L7+'Solde des comptes'!L8+'Solde des comptes'!L9 -> 96865.78 | O18: =IFERROR(AVERAGE(Receipts[[#This Row],[Column3]:[Column14]]),"") -> 101034.4309
A19: Diapason | B19: 19423.48 | C19: 20111.85 | D19: 24948.76 | E19: 24989.54 | F19: 25395.32 | G19: 25164.27 | H19: 25824.4 | I19: 25971.95 | J19: 26222.41 | K19: 25752.56 | L19: 25834.1 | M19: ='Solde des comptes'!L10 -> 25834.1 | O19: =IFERROR(AVERAGE(Receipts[[#This Row],[Column3]:[Column14]]),"") -> 25095.38727
A20: CELI | B20: 75500 | C20: 75500 | D20: 75500 | E20: 75500 | F20: 75500 | G20: 75500 | H20: 75500 | I20: 75500 | J20: 75500 | K20: 75500 | L20: 75500 | M20: ='Solde des comptes'!L12 -> 75500 | O20: =IFERROR(AVERAGE(Receipts[[#This Row],[Column3]:[Column14]]),"") -> 75500
A21: AUTRE | B21: 109500 | C21: 109500 | D21: 109500 | E21: 109500 | F21: 109500 | G21: 109500 | H21: 109500 | I21: 109500 | J21: 109500 | K21: 109500 | L21: 109500 | M21: ='Solde des comptes'!L13 -> 109500 | O21: =IFERROR(AVERAGE(Receipts[[#This Row],[Column3]:[Column14]]),"") -> 109500
A22: Épargne Générale | B22: 1200.09 | C22: 1200.09 | D22: 0 | E22: 0 | F22: 0 | G22: 0 | H22: 13.54 | I22: 13.54 | J22: 13.54 | K22: 13.54 | L22: 13.54 | M22: ='Solde des comptes'!L15 -> 13.54 | O22: =IFERROR(AVERAGE(Receipts[[#This Row],[Column3]:[Column14]]),"") -> 116.4845455
A23: Argent comptant | B23: 13.2 | C23: 23.2 | D23: 42.25 | E23: 104.9 | F23: 79.75 | G23: 5 | H23: 12.15 | I23: 32.95 | J23: 43.05 | K23: 20 | L23: 20 | M23: ='Solde des comptes'!L16 -> 23 | O23: =IFERROR(AVERAGE(Receipts[[#This Row],[Column3]:[Column14]]),"") -> 36.93181818
A24: Total des actifs | B24: =SUBTOTAL(109,Receipts[Column2]) -> 385422.93 | C24: =SUBTOTAL(109,Receipts[Column3]) -> 392031.33 | D24: =SUBTOTAL(109,Receipts[Column4]) -> 394504.26 | E24: =SUBTOTAL(109,Receipts[Column5]) -> 398026.86 | F24: =SUBTOTAL(109,Receipts[Column6]) -> 397178.82 | G24: =SUBTOTAL(109,Receipts[Column7]) -> 397543.23 | H24: =SUBTOTAL(109,Receipts[Column8]) -> 400190.45 | I24: =SUBTOTAL(109,Receipts[Column9]) -> 396588.49 | J24: =SUBTOTAL(109,Receipts[Column10]) -> 396885.78 | K24: =SUBTOTAL(109,Receipts[Column11]) -> 390058.84 | L24: =SUBTOTAL(109,Receipts[Column12]) -> 392870.36 | M24: =SUBTOTAL(109,Receipts[Column13]) -> 391525.07 | N24: =SUBTOTAL(109,Receipts[Column14]) -> 0 | O24: =IFERROR(AVERAGE(Receipts[[#Totals],[Column3]:[Column14]]),"") -> 362283.6242
A26: Passif
A27: Visa | B27: 0 | C27: 68.3 | D27: 103.64 | E27: 193.74 | F27: 115.72 | G27: 271.82 | H27: 254.84 | I27: 331.88 | J27: 258.3 | K27: 602.43 | L27: 387.72 | M27: =-('Solde des comptes'!L4) -> 1406.28 | O27: =IFERROR(AVERAGE(PaidOut[[#This Row],[Column3]:[Column14]]),"") -> 363.1518182
A28: Home dépôt | B28: 0 | C28: 0 | D28: 0 | E28: 0 | F28: 242.2 | G28: 0 | H28: 0 | I28: 0 | J28: 0 | K28: 0 | L28: 0 | M28: =-('Solde des comptes'!L6) -> 0 | O28: =IFERROR(AVERAGE(PaidOut[[#This Row],[Column3]:[Column14]]),"") -> 22.01818182
A29: Hyp Bordeaux | B29: 146828 | C29: 146223 | D29: 145646 | E29: 145068 | F29: 144488.5 | G29: =(287815/2) -> 143907.5 | H29: 143326 | I29: 142188 | J29: 141865 | K29: 141279 | L29: 140692 | O29: =IFERROR(AVERAGE(PaidOut[[#This Row],[Column3]:[Column14]]),"") -> 143468.3
A30: Impots, Autres dettes | B30: 0 | C30: 140 | D30: 140 | E30: 140 | F30: 0 | G30: 0 | H30: 0 | I30: 0 | J30: 0 | K30: 0 | L30: 0 | M30: 0 | O30: =IFERROR(AVERAGE(PaidOut[[#This Row],[Column3]:[Column14]]),"") -> 38.18181818
A31: Total du passif | B31: =SUM(PaidOut[Column2]) -> 146828 | C31: =SUBTOTAL(109,PaidOut[Column3]) -> 146431.3 | D31: =SUBTOTAL(109,PaidOut[Column4]) -> 145889.64 | E31: =SUBTOTAL(109,PaidOut[Column5]) -> 145401.74 | F31: =SUBTOTAL(109,PaidOut[Column6]) -> 144846.42 | G31: =SUBTOTAL(109,PaidOut[Column7]) -> 144179.32 | H31: =SUBTOTAL(109,PaidOut[Column8]) -> 143580.84 | I31: =SUBTOTAL(109,PaidOut[Column9]) -> 142519.88 | J31: =SUBTOTAL(109,PaidOut[Column10]) -> 142123.3 | K31: =SUBTOTAL(109,PaidOut[Column11]) -> 141881.43 | L31: =SUBTOTAL(109,PaidOut[Column12]) -> 141079.72 | M31: =SUBTOTAL(109,PaidOut[Column13]) -> 1406.28 | N31: =SUBTOTAL(109,PaidOut[Column14]) -> 0 | O31: =IFERROR(AVERAGE(PaidOut[[#Totals],[Column3]:[Column14]]),"") -> 119944.9892
A32: Évolution du passif | C32: =PaidOut[[#Totals],[Column3]]-PaidOut[[#Totals],[Column2]] -> -396.7 | D32: =PaidOut[[#Totals],[Column4]]-PaidOut[[#Totals],[Column3]] -> -541.66 | E32: =PaidOut[[#Totals],[Column5]]-PaidOut[[#Totals],[Column4]] -> -487.9 | F32: =PaidOut[[#Totals],[Column6]]-PaidOut[[#Totals],[Column5]] -> -555.32 | G32: =PaidOut[[#Totals],[Column7]]-PaidOut[[#Totals],[Column6]] -> -667.1 | H32: =PaidOut[[#Totals],[Column8]]-PaidOut[[#Totals],[Column7]] -> -598.48 | I32: =PaidOut[[#Totals],[Column9]]-PaidOut[[#Totals],[Column8]] -> -1060.96 | J32: =PaidOut[[#Totals],[Column10]]-PaidOut[[#Totals],[Column9]] -> -396.58 | K32: =PaidOut[[#Totals],[Column11]]-PaidOut[[#Totals],[Column10]] -> -241.87 | L32: =PaidOut[[#Totals],[Column12]]-PaidOut[[#Totals],[Column11]] -> -801.71 | M32: =PaidOut[[#Totals],[Column13]]-PaidOut[[#Totals],[Column12]] -> -139673.44 | N32: =PaidOut[[#Totals],[Column14]]-PaidOut[[#Totals],[Column13]] -> -1406.28
A34: Indicateurs mensuels | C34: Janvier | D34: Février | E34: Mars | F34: Avril | G34: Mai | H34: Juin | I34: Juillet | J34: Août | K34: Septembre | L34: Octobre | M34: Novembre | N34: Décembre
A35: Ratio entrée sortie | C35: 2.129072413 | D35: 1.520816732 | E35: 1.179506445 | F35: 0.7850647895 | G35: 0.8734094439 | H35: 0 | I35: 0 | J35: 0 | K35: 0 | L35: 0 | M35: 0 | N35: 0 | O35: =IFERROR(AVERAGE(Receipts[[#This Row],[Column3]:[Column14]]),"") -> 
A36: Depassement Visa | C36: 0.6091300526 | D36: 0.6868055556 | E36: 0.8691833333 | F36: 0.9908111111 | G36: 0.7795555556 | H36: 0 | I36: 0 | J36: 0 | K36: 0 | L36: 0 | M36: 0 | N36: 0 | O36: =IFERROR(AVERAGE(Receipts[[#This Row],[Column3]:[Column14]]),"") -> 
A37: Évolution globale de épargne | C37: 0 | D37: 0 | E37: 0 | F37: 0 | G37: 0 | H37: 0.65 | I37: 0.65 | J37: 0.65 | K37: 0.65 | L37: 0.65 | M37: 0.65 | N37: 0.65 | O37: =IFERROR(AVERAGE(Receipts[[#This Row],[Column3]:[Column14]]),"") -> 
A38: Dépassement depenses sensibles | C38: 0 | D38: 0 | E38: 0 | F38: 0 | G38: 0 | H38: 0 | I38: 0 | J38: 0 | K38: 0 | L38: 0 | M38: 0 | N38: 0 | O38: =IFERROR(AVERAGE(Receipts[[#This Row],[Column3]:[Column14]]),"") -> 
A39: Respect du budget | C39: 1 | D39: 1 | E39: 0.65 | F39: 0.65 | G39: 0.65 | H39: 0.65 | I39: 0.65 | J39: 0.65 | K39: 0.65 | L39: 0.65 | M39: 0.65 | N39: 0.65 | O39: =IFERROR(AVERAGE(Receipts[[#This Row],[Column3]:[Column14]]),"") -> 
A40: Taux d'endettement | C40: =IFERROR(PaidOut[[#Totals],[Column3]]/Receipts[[#Totals],[Column3]],0) -> 0.3735193817 | D40: =IFERROR(PaidOut[[#Totals],[Column4]]/Receipts[[#Totals],[Column4]],0) -> 0.3698049801 | E40: =IFERROR(PaidOut[[#Totals],[Column5]]/Receipts[[#Totals],[Column5]],0) -> 0.3653063514 | F40: =IFERROR(PaidOut[[#Totals],[Column6]]/Receipts[[#Totals],[Column6]],0) -> 0.3646881775 | G40: =IFERROR(PaidOut[[#Totals],[Column7]]/Receipts[[#Totals],[Column7]],0) -> 0.3626758277 | H40: =IFERROR(PaidOut[[#Totals],[Column8]]/Receipts[[#Totals],[Column8]],0) -> 0.3587812753 | I40: =IFERROR(PaidOut[[#Totals],[Column9]]/Receipts[[#Totals],[Column9]],0) -> 0.3593646402 | J40: =IFERROR(PaidOut[[#Totals],[Column10]]/Receipts[[#Totals],[Column10]],0) -> 0.3580962261 | K40: =IFERROR(PaidOut[[#Totals],[Column11]]/Receipts[[#Totals],[Column11]],0) -> 0.3637436598 | L40: =IFERROR(PaidOut[[#Totals],[Column12]]/Receipts[[#Totals],[Column12]],0) -> 0.3590999331 | M40: =IFERROR(PaidOut[[#Totals],[Column13]]/Receipts[[#Totals],[Column13]],0) -> 0.003591800648 | N40: =IFERROR(PaidOut[[#Totals],[Column14]]/Receipts[[#Totals],[Column14]],0) -> 0 | O40: =IFERROR(AVERAGE(Receipts[[#This Row],[Column3]:[Column14]]),"") -> 
A41: Évolution du poiids de la dette | B41: 1.9 | C41: 0 | D41: 0 | E41: 0 | F41: 0 | G41: 0 | H41: 0 | I41: 0 | J41: 0 | K41: 0 | L41: 0 | M41: 0 | N41: 0 | O41: =IFERROR(AVERAGE(Receipts[[#This Row],[Column3]:[Column14]]),"") -> 
A42: Diminution du passif | C42: =IF(C32<B32,1,0) -> 1 | D42: =IF(D32<C32,1,0) -> 1 | E42: 0 | F42: 1 | G42: 1 | H42: 0 | I42: 1 | J42: 0 | K42: 0 | L42: 1 | M42: 1 | N42: 0 | O42: =IFERROR(AVERAGE(Receipts[[#This Row],[Column3]:[Column14]]),"") -> 
A43: Épargne | C43: 0 | D43: 0 | E43: 0 | F43: 0 | G43: 0 | H43: 0.65 | I43: 0.65 | J43: 0.65 | K43: 0.65 | L43: 0.65 | M43: 0.65 | N43: 0.65
A44: Mois | C44: Janvier | D44: Février | E44: Mars | F44: Avril | G44: Mai | H44: Juin | I44: Juillet | J44: Août | K44: Septembre | L44: Octobre | M44: Novembre | N44: Décembre
A45: Ratio entrée sortie | C45: =IF(C35<1,0,20) -> 20 | D45: =IF(D35<1,0,20) -> 20 | E45: 20 | F45: 0 | G45: 0 | H45: 0 | I45: 0 | J45: 0 | K45: 0 | L45: 0 | M45: 0 | N45: 0
A46: Depassement Visa | C46: =IF(C36>1,0,20) -> 20 | D46: =IF(D36>1,0,20) -> 20 | E46: 20 | F46: 20 | G46: 20 | H46: 20 | I46: 20 | J46: 20 | K46: 20 | L46: 20 | M46: 20 | N46: 20
A47: Évolution globale de épargne | C47: =IF(C37<100,20,0) -> 20 | D47: 20 | E47: 20 | F47: 20 | G47: 20 | H47: 20 | I47: 20 | J47: 20 | K47: 20 | L47: 20 | M47: 20 | N47: 20
A48: Dépassement depenses sensibles | C48: 20 | D48: 20 | E48: 20 | F48: 20 | G48: 20 | H48: 20 | I48: 20 | J48: 20 | K48: 20 | L48: 20 | M48: 20 | N48: 20
A49: Respect du budget | C49: =IF(C39=1,20,IF(C39=0.65,10,0)) -> 20 | D49: =IF(D39=1,20,IF(D39=0.65,10,0)) -> 20 | E49: 10 | F49: 10 | G49: 10 | H49: 10 | I49: 10 | J49: 10 | K49: 10 | L49: 10 | M49: 10 | N49: 10
A50: Taux d'endettement | C50: 20 | D50: 20 | E50: 20 | F50: 20 | G50: 20 | H50: 20 | I50: 20 | J50: 20 | K50: 20 | L50: 20 | M50: 20 | N50: 20
A51: Évolution du poiids de la dette | C51: =IF(C41<B41,20,0) -> 20 | D51: =IF(D41<C41,20,0) -> 0 | E51: 0 | F51: 0 | G51: 0 | H51: 0 | I51: 0 | J51: 0 | K51: 0 | L51: 0 | M51: 0 | N51: 0
A52: Diminution du passif | C52: =IF(C42=1,20,0) -> 20 | D52: =IF(D42=1,20,0) -> 20 | E52: 0 | F52: 20 | G52: 20 | H52: 0 | I52: 20 | J52: 0 | K52: 0 | L52: 20 | M52: 20 | N52: 0
A53: Épargne | C53: =IF(C43=1,20,IF(C43=0.65,10,0)) -> 0 | D53: =IF(D43=1,20,IF(D43=0.65,10,0)) -> 0 | E53: 0 | F53: 0 | G53: 0 | H53: 10 | I53: 10 | J53: 10 | K53: 10 | L53: 10 | M53: 10 | N53: 10
A54: Pondération | C54: =SUM(C45:C53) -> 160 | D54: =SUM(D45:D53) -> 140 | E54: 110 | F54: 110 | G54: 110 | H54: 100 | I54: 120 | J54: 100 | K54: 100 | L54: 120 | M54: 120 | N54: 100
A55: Mois | C55: Janvier | D55: Février | E55: Mars | F55: Avril | G55: Mai | H55: Juin | I55: Juillet | J55: Août | K55: Septembre | L55: Octobre | M55: Novembre | N55: Décembre
A56: JOUR | B56: Date | C56: Indicateurs | D56: Résultats | E56: FIN DE MOIS
A57: 2021-01-01 | B57: Janvier | C57: Ratio Entrée Sortie | D57: =C35 -> 2.129072413 | E57: =IF(Tableau15[[#This Row],[JOUR]]<=EOMONTH(TODAY(),0),1,0) -> 1
B58: Février | C58: Ratio Entrée Sortie | D58: =D35 -> 1.520816732 | E58: =IF(Tableau15[[#This Row],[JOUR]]<=EOMONTH(TODAY(),0),1,0) -> 1
B59: Mars | C59: Ratio Entrée Sortie | D59: =E35 -> 1.179506445 | E59: =IF(Tableau15[[#This Row],[JOUR]]<=EOMONTH(TODAY(),0),1,0) -> 1
B60: Avril | C60: Ratio Entrée Sortie | D60: =F35 -> 0.7850647895 | E60: =IF(Tableau15[[#This Row],[JOUR]]<=EOMONTH(TODAY(),0),1,0) -> 1
B61: Mai | C61: Ratio Entrée Sortie | D61: =G35 -> 0.8734094439 | E61: =IF(Tableau15[[#This Row],[JOUR]]<=EOMONTH(TODAY(),0),1,0) -> 1
B62: Juin | C62: Ratio Entrée Sortie | D62: =H35 -> 0 | E62: =IF(Tableau15[[#This Row],[JOUR]]<=EOMONTH(TODAY(),0),1,0) -> 1
B63: Juillet | C63: Ratio Entrée Sortie | D63: =I35 -> 0 | E63: =IF(Tableau15[[#This Row],[JOUR]]<=EOMONTH(TODAY(),0),1,0) -> 1
B64: Août | C64: Ratio Entrée Sortie | D64: =J35 -> 0 | E64: =IF(Tableau15[[#This Row],[JOUR]]<=EOMONTH(TODAY(),0),1,0) -> 1
B65: Septembre | C65: Ratio Entrée Sortie | D65: =K35 -> 0 | E65: =IF(Tableau15[[#This Row],[JOUR]]<=EOMONTH(TODAY(),0),1,0) -> 1
B66: Octobre | C66: Ratio Entrée Sortie | D66: =L35 -> 0 | E66: =IF(Tableau15[[#This Row],[JOUR]]<=EOMONTH(TODAY(),0),1,0) -> 1
B67: Novembre | C67: Ratio Entrée Sortie | D67: =M35 -> 0 | E67: =IF(Tableau15[[#This Row],[JOUR]]<=EOMONTH(TODAY(),0),1,0) -> 1
B68: Décembre | C68: Ratio Entrée Sortie | D68: =N35 -> 0 | E68: =IF(Tableau15[[#This Row],[JOUR]]<=EOMONTH(TODAY(),0),1,0) -> 1
B69: Janvier | C69: Depassement Visa | D69: =C36 -> 0.6091300526 | E69: =IF(Tableau15[[#This Row],[JOUR]]<=EOMONTH(TODAY(),0),1,0) -> 1
B70: Février | C70: Depassement Visa | D70: =D36 -> 0.6868055556 | E70: =IF(Tableau15[[#This Row],[JOUR]]<=EOMONTH(TODAY(),0),1,0) -> 1
B71: Mars | C71: Depassement Visa | D71: =E36 -> 0.8691833333 | E71: =IF(Tableau15[[#This Row],[JOUR]]<=EOMONTH(TODAY(),0),1,0) -> 1
B72: Avril | C72: Depassement Visa | D72: =F36 -> 0.9908111111 | E72: =IF(Tableau15[[#This Row],[JOUR]]<=EOMONTH(TODAY(),0),1,0) -> 1
B73: Mai | C73: Depassement Visa | D73: =G35 -> 0.8734094439 | E73: =IF(Tableau15[[#This Row],[JOUR]]<=EOMONTH(TODAY(),0),1,0) -> 1
B74: Juin | C74: Depassement Visa | D74: =H35 -> 0 | E74: =IF(Tableau15[[#This Row],[JOUR]]<=EOMONTH(TODAY(),0),1,0) -> 1
B75: Juillet | C75: Depassement Visa | D75: =I35 -> 0 | E75: =IF(Tableau15[[#This Row],[JOUR]]<=EOMONTH(TODAY(),0),1,0) -> 1
B76: Août | C76: Depassement Visa | D76: =J35 -> 0 | E76: =IF(Tableau15[[#This Row],[JOUR]]<=EOMONTH(TODAY(),0),1,0) -> 1
B77: Septembre | C77: Depassement Visa | D77: =K36 -> 0 | E77: =IF(Tableau15[[#This Row],[JOUR]]<=EOMONTH(TODAY(),0),1,0) -> 1
B78: Octobre | C78: Depassement Visa | D78: =L36 -> 0 | E78: =IF(Tableau15[[#This Row],[JOUR]]<=EOMONTH(TODAY(),0),1,0) -> 1
B79: Novembre | C79: Depassement Visa | D79: =M36 -> 0 | E79: =IF(Tableau15[[#This Row],[JOUR]]<=EOMONTH(TODAY(),0),1,0) -> 1
B80: Décembre | C80: Depassement Visa | D80: =N36 -> 0 | E80: =IF(Tableau15[[#This Row],[JOUR]]<=EOMONTH(TODAY(),0),1,0) -> 1
B81: Janvier | C81: Évolution globale de épargne | D81: =C37 -> 0 | E81: =IF(Tableau15[[#This Row],[JOUR]]<=EOMONTH(TODAY(),0),1,0) -> 1
B82: Février | C82: Évolution globale de épargne | D82: =D37 -> 0 | E82: =IF(Tableau15[[#This Row],[JOUR]]<=EOMONTH(TODAY(),0),1,0) -> 1
B83: Mars | C83: Évolution globale de épargne | D83: =E37 -> 0 | E83: =IF(Tableau15[[#This Row],[JOUR]]<=EOMONTH(TODAY(),0),1,0) -> 1
B84: Avril | C84: Évolution globale de épargne | D84: =F37 -> 0 | E84: =IF(Tableau15[[#This Row],[JOUR]]<=EOMONTH(TODAY(),0),1,0) -> 1
B85: Mai | C85: Évolution globale de épargne | D85: =G37 -> 0 | E85: =IF(Tableau15[[#This Row],[JOUR]]<=EOMONTH(TODAY(),0),1,0) -> 1
B86: Juin | C86: Évolution globale de épargne | D86: =H37 -> 0.65 | E86: =IF(Tableau15[[#This Row],[JOUR]]<=EOMONTH(TODAY(),0),1,0) -> 1
B87: Juillet | C87: Évolution globale de épargne | D87: =I37 -> 0.65 | E87: =IF(Tableau15[[#This Row],[JOUR]]<=EOMONTH(TODAY(),0),1,0) -> 1
B88: Août | C88: Évolution globale de épargne | D88: =J37 -> 0.65 | E88: =IF(Tableau15[[#This Row],[JOUR]]<=EOMONTH(TODAY(),0),1,0) -> 1
B89: Septembre | C89: Évolution globale de épargne | D89: =K37 -> 0.65 | E89: =IF(Tableau15[[#This Row],[JOUR]]<=EOMONTH(TODAY(),0),1,0) -> 1
B90: Octobre | C90: Évolution globale de épargne | D90: =L37 -> 0.65 | E90: =IF(Tableau15[[#This Row],[JOUR]]<=EOMONTH(TODAY(),0),1,0) -> 1
B91: Novembre | C91: Évolution globale de épargne | D91: =M37 -> 0.65 | E91: =IF(Tableau15[[#This Row],[JOUR]]<=EOMONTH(TODAY(),0),1,0) -> 1
B92: Décembre | C92: Évolution globale de épargne | D92: =N37 -> 0.65 | E92: =IF(Tableau15[[#This Row],[JOUR]]<=EOMONTH(TODAY(),0),1,0) -> 1
B93: Janvier | C93: Dep sensibles | D93: =C38 -> 0 | E93: =IF(Tableau15[[#This Row],[JOUR]]<=EOMONTH(TODAY(),0),1,0) -> 1
B94: Février | C94: Dep sensibles | D94: =D38 -> 0 | E94: =IF(Tableau15[[#This Row],[JOUR]]<=EOMONTH(TODAY(),0),1,0) -> 1
B95: Mars | C95: Dep sensibles | D95: =E38 -> 0 | E95: =IF(Tableau15[[#This Row],[JOUR]]<=EOMONTH(TODAY(),0),1,0) -> 1
B96: Avril | C96: Dep sensibles | D96: =F38 -> 0 | E96: =IF(Tableau15[[#This Row],[JOUR]]<=EOMONTH(TODAY(),0),1,0) -> 1
B97: Mai | C97: Dep sensibles | D97: =G38 -> 0 | E97: =IF(Tableau15[[#This Row],[JOUR]]<=EOMONTH(TODAY(),0),1,0) -> 1
B98: Juin | C98: Dep sensibles | D98: =H38 -> 0 | E98: =IF(Tableau15[[#This Row],[JOUR]]<=EOMONTH(TODAY(),0),1,0) -> 1
B99: Juillet | C99: Dep sensibles | D99: =I38 -> 0 | E99: =IF(Tableau15[[#This Row],[JOUR]]<=EOMONTH(TODAY(),0),1,0) -> 1
B100: Août | C100: Dep sensibles | D100: =J38 -> 0 | E100: =IF(Tableau15[[#This Row],[JOUR]]<=EOMONTH(TODAY(),0),1,0) -> 1
B101: Septembre | C101: Dep sensibles | D101: =K38 -> 0 | E101: =IF(Tableau15[[#This Row],[JOUR]]<=EOMONTH(TODAY(),0),1,0) -> 1
B102: Octobre | C102: Dep sensibles | D102: =L38 -> 0 | E102: =IF(Tableau15[[#This Row],[JOUR]]<=EOMONTH(TODAY(),0),1,0) -> 1
B103: Novembre | C103: Dep sensibles | D103: =M38 -> 0 | E103: =IF(Tableau15[[#This Row],[JOUR]]<=EOMONTH(TODAY(),0),1,0) -> 1
B104: Décembre | C104: Dep sensibles | D104: =N38 -> 0 | E104: =IF(Tableau15[[#This Row],[JOUR]]<=EOMONTH(TODAY(),0),1,0) -> 1
B105: Janvier | C105: Respect du budget | D105: =C39 -> 1 | E105: =IF(Tableau15[[#This Row],[JOUR]]<=EOMONTH(TODAY(),0),1,0) -> 1
B106: Février | C106: Respect du budget | D106: =D39 -> 1 | E106: =IF(Tableau15[[#This Row],[JOUR]]<=EOMONTH(TODAY(),0),1,0) -> 1
B107: Mars | C107: Respect du budget | D107: =E39 -> 0.65 | E107: =IF(Tableau15[[#This Row],[JOUR]]<=EOMONTH(TODAY(),0),1,0) -> 1
B108: Avril | C108: Respect du budget | D108: =F39 -> 0.65 | E108: =IF(Tableau15[[#This Row],[JOUR]]<=EOMONTH(TODAY(),0),1,0) -> 1
B109: Mai | C109: Respect du budget | D109: =G39 -> 0.65 | E109: =IF(Tableau15[[#This Row],[JOUR]]<=EOMONTH(TODAY(),0),1,0) -> 1
B110: Juin | C110: Respect du budget | D110: =H39 -> 0.65 | E110: =IF(Tableau15[[#This Row],[JOUR]]<=EOMONTH(TODAY(),0),1,0) -> 1
B111: Juillet | C111: Respect du budget | D111: =I39 -> 0.65 | E111: =IF(Tableau15[[#This Row],[JOUR]]<=EOMONTH(TODAY(),0),1,0) -> 1
B112: Août | C112: Respect du budget | D112: =J39 -> 0.65 | E112: =IF(Tableau15[[#This Row],[JOUR]]<=EOMONTH(TODAY(),0),1,0) -> 1
B113: Septembre | C113: Respect du budget | D113: =K39 -> 0.65 | E113: =IF(Tableau15[[#This Row],[JOUR]]<=EOMONTH(TODAY(),0),1,0) -> 1
B114: Octobre | C114: Respect du budget | D114: =L39 -> 0.65 | E114: =IF(Tableau15[[#This Row],[JOUR]]<=EOMONTH(TODAY(),0),1,0) -> 1
B115: Novembre | C115: Respect du budget | D115: =M39 -> 0.65 | E115: =IF(Tableau15[[#This Row],[JOUR]]<=EOMONTH(TODAY(),0),1,0) -> 1
B116: Décembre | C116: Respect du budget | D116: =N39 -> 0.65 | E116: =IF(Tableau15[[#This Row],[JOUR]]<=EOMONTH(TODAY(),0),1,0) -> 1
B117: Janvier | C117: Taux endettement | D117: =C40 -> 0.3735193817 | E117: =IF(Tableau15[[#This Row],[JOUR]]<=EOMONTH(TODAY(),0),1,0) -> 1
B118: Février | C118: Taux endettement | D118: =D40 -> 0.3698049801 | E118: =IF(Tableau15[[#This Row],[JOUR]]<=EOMONTH(TODAY(),0),1,0) -> 1
B119: Mars | C119: Taux endettement | D119: =E40 -> 0.3653063514 | E119: =IF(Tableau15[[#This Row],[JOUR]]<=EOMONTH(TODAY(),0),1,0) -> 1
B120: Avril | C120: Taux endettement | D120: =F40 -> 0.3646881775 | E120: =IF(Tableau15[[#This Row],[JOUR]]<=EOMONTH(TODAY(),0),1,0) -> 1
B121: Mai | C121: Taux endettement | D121: =G40 -> 0.3626758277 | E121: =IF(Tableau15[[#This Row],[JOUR]]<=EOMONTH(TODAY(),0),1,0) -> 1
B122: Juin | C122: Taux endettement | D122: =H40 -> 0.3587812753 | E122: =IF(Tableau15[[#This Row],[JOUR]]<=EOMONTH(TODAY(),0),1,0) -> 1
B123: Juillet | C123: Taux endettement | D123: =I40 -> 0.3593646402 | E123: =IF(Tableau15[[#This Row],[JOUR]]<=EOMONTH(TODAY(),0),1,0) -> 1
B124: Août | C124: Taux endettement | D124: =J40 -> 0.3580962261 | E124: =IF(Tableau15[[#This Row],[JOUR]]<=EOMONTH(TODAY(),0),1,0) -> 1
B125: Septembre | C125: Taux endettement | D125: =K40 -> 0.3637436598 | E125: =IF(Tableau15[[#This Row],[JOUR]]<=EOMONTH(TODAY(),0),1,0) -> 1
B126: Octobre | C126: Taux endettement | D126: =L40 -> 0.3590999331 | E126: =IF(Tableau15[[#This Row],[JOUR]]<=EOMONTH(TODAY(),0),1,0) -> 1
B127: Novembre | C127: Taux endettement | D127: =M40 -> 0.003591800648 | E127: =IF(Tableau15[[#This Row],[JOUR]]<=EOMONTH(TODAY(),0),1,0) -> 1
B128: Décembre | C128: Taux endettement | D128: =N40 -> 0 | E128: =IF(Tableau15[[#This Row],[JOUR]]<=EOMONTH(TODAY(),0),1,0) -> 1
B129: Janvier | C129: Poids de la dette | D129: =C41 -> 0 | E129: =IF(Tableau15[[#This Row],[JOUR]]<=EOMONTH(TODAY(),0),1,0) -> 1
B130: Février | C130: Poids de la dette | D130: =D41 -> 0 | E130: =IF(Tableau15[[#This Row],[JOUR]]<=EOMONTH(TODAY(),0),1,0) -> 1
B131: Mars | C131: Poids de la dette | D131: =E41 -> 0 | E131: =IF(Tableau15[[#This Row],[JOUR]]<=EOMONTH(TODAY(),0),1,0) -> 1
B132: Avril | C132: Poids de la dette | D132: =F41 -> 0 | E132: =IF(Tableau15[[#This Row],[JOUR]]<=EOMONTH(TODAY(),0),1,0) -> 1
B133: Mai | C133: Poids de la dette | D133: =G41 -> 0 | E133: =IF(Tableau15[[#This Row],[JOUR]]<=EOMONTH(TODAY(),0),1,0) -> 1
B134: Juin | C134: Poids de la dette | D134: =H41 -> 0 | E134: =IF(Tableau15[[#This Row],[JOUR]]<=EOMONTH(TODAY(),0),1,0) -> 1
B135: Juillet | C135: Poids de la dette | D135: =I41 -> 0 | E135: =IF(Tableau15[[#This Row],[JOUR]]<=EOMONTH(TODAY(),0),1,0) -> 1
B136: Août | C136: Poids de la dette | D136: =J41 -> 0 | E136: =IF(Tableau15[[#This Row],[JOUR]]<=EOMONTH(TODAY(),0),1,0) -> 1
B137: Septembre | C137: Poids de la dette | D137: =K41 -> 0 | E137: =IF(Tableau15[[#This Row],[JOUR]]<=EOMONTH(TODAY(),0),1,0) -> 1
B138: Octobre | C138: Poids de la dette | D138: =L41 -> 0 | E138: =IF(Tableau15[[#This Row],[JOUR]]<=EOMONTH(TODAY(),0),1,0) -> 1
B139: Novembre | C139: Poids de la dette | D139: =M41 -> 0 | E139: =IF(Tableau15[[#This Row],[JOUR]]<=EOMONTH(TODAY(),0),1,0) -> 1
B140: Décembre | C140: Poids de la dette | D140: =N41 -> 0 | E140: =IF(Tableau15[[#This Row],[JOUR]]<=EOMONTH(TODAY(),0),1,0) -> 1
B141: Janvier | C141: Dim Passif | D141: =C42 -> 1 | E141: =IF(Tableau15[[#This Row],[JOUR]]<=EOMONTH(TODAY(),0),1,0) -> 1
B142: Février | C142: Dim Passif | D142: =D42 -> 1 | E142: =IF(Tableau15[[#This Row],[JOUR]]<=EOMONTH(TODAY(),0),1,0) -> 1
B143: Mars | C143: Dim Passif | D143: =E42 -> 0 | E143: =IF(Tableau15[[#This Row],[JOUR]]<=EOMONTH(TODAY(),0),1,0) -> 1
B144: Avril | C144: Dim Passif | D144: =F42 -> 1 | E144: =IF(Tableau15[[#This Row],[JOUR]]<=EOMONTH(TODAY(),0),1,0) -> 1
B145: Mai | C145: Dim Passif | D145: =G42 -> 1 | E145: =IF(Tableau15[[#This Row],[JOUR]]<=EOMONTH(TODAY(),0),1,0) -> 1
B146: Juin | C146: Dim Passif | D146: =H42 -> 0 | E146: =IF(Tableau15[[#This Row],[JOUR]]<=EOMONTH(TODAY(),0),1,0) -> 1
B147: Juillet | C147: Dim Passif | D147: =I42 -> 1 | E147: =IF(Tableau15[[#This Row],[JOUR]]<=EOMONTH(TODAY(),0),1,0) -> 1
B148: Août | C148: Dim Passif | D148: =J42 -> 0 | E148: =IF(Tableau15[[#This Row],[JOUR]]<=EOMONTH(TODAY(),0),1,0) -> 1
B149: Septembre | C149: Dim Passif | D149: =K42 -> 0 | E149: =IF(Tableau15[[#This Row],[JOUR]]<=EOMONTH(TODAY(),0),1,0) -> 1
B150: Octobre | C150: Dim Passif | D150: =L42 -> 1 | E150: =IF(Tableau15[[#This Row],[JOUR]]<=EOMONTH(TODAY(),0),1,0) -> 1
B151: Novembre | C151: Dim Passif | D151: =M42 -> 1 | E151: =IF(Tableau15[[#This Row],[JOUR]]<=EOMONTH(TODAY(),0),1,0) -> 1
B152: Décembre | C152: Dim Passif | D152: =N42 -> 0 | E152: =IF(Tableau15[[#This Row],[JOUR]]<=EOMONTH(TODAY(),0),1,0) -> 1
B153: Janvier | C153: Épargne | D153: =C43 -> 0 | E153: =IF(Tableau15[[#This Row],[JOUR]]<=EOMONTH(TODAY(),0),1,0) -> 1
B154: Février | C154: Épargne | D154: =D43 -> 0 | E154: =IF(Tableau15[[#This Row],[JOUR]]<=EOMONTH(TODAY(),0),1,0) -> 1
B155: Mars | C155: Épargne | D155: =E43 -> 0 | E155: =IF(Tableau15[[#This Row],[JOUR]]<=EOMONTH(TODAY(),0),1,0) -> 1
B156: Avril | C156: Épargne | D156: =F43 -> 0 | E156: =IF(Tableau15[[#This Row],[JOUR]]<=EOMONTH(TODAY(),0),1,0) -> 1
B157: Mai | C157: Épargne | D157: =G43 -> 0 | E157: =IF(Tableau15[[#This Row],[JOUR]]<=EOMONTH(TODAY(),0),1,0) -> 1
B158: Juin | C158: Épargne | D158: =H43 -> 0.65 | E158: =IF(Tableau15[[#This Row],[JOUR]]<=EOMONTH(TODAY(),0),1,0) -> 1
B159: Juillet | C159: Épargne | D159: =I43 -> 0.65 | E159: =IF(Tableau15[[#This Row],[JOUR]]<=EOMONTH(TODAY(),0),1,0) -> 1
B160: Août | C160: Épargne | D160: =J43 -> 0.65 | E160: =IF(Tableau15[[#This Row],[JOUR]]<=EOMONTH(TODAY(),0),1,0) -> 1
B161: Septembre | C161: Épargne | D161: =K43 -> 0.65 | E161: =IF(Tableau15[[#This Row],[JOUR]]<=EOMONTH(TODAY(),0),1,0) -> 1
B162: Octobre | C162: Épargne | D162: =L43 -> 0.65 | E162: =IF(Tableau15[[#This Row],[JOUR]]<=EOMONTH(TODAY(),0),1,0) -> 1
B163: Novembre | C163: Épargne | D163: =M43 -> 0.65 | E163: =IF(Tableau15[[#This Row],[JOUR]]<=EOMONTH(TODAY(),0),1,0) -> 1
B164: Décembre | C164: Épargne | D164: =N43 -> 0.65 | E164: =IF(Tableau15[[#This Row],[JOUR]]<=EOMONTH(TODAY(),0),1,0) -> 1
B170: Fin dec 2020 | C170: 2021-01-01 | D170: =DATE(YEAR(C170),MONTH(C170)+1,1) -> 2021-02-01 | E170: 2021-03-01 | F170: 2021-04-01 | G170: 2021-05-01 | H170: 2021-06-01 | I170: 2021-07-01 | J170: 2021-08-01 | K170: 2021-09-01 | L170: 2021-10-01 | M170: 2021-11-01 | N170: 2021-12-01
A171: Compte chèque | B171: =B15 -> 5331.25 | C171: =C15 -> 10020.57 | D171: 11844.09 | E171: 13484.43 | F171: 13607.75 | G171: 15151.86 | H171: 16794.3 | I171: 8859.7 | J171: 7562.99 | K171: 7519.57 | L171: 8325.27 | M171: 6976.98 | N171: 0
A172: Cartes de crédit | B172: =B27+B28 -> 0 | C172: =C27+C28 -> 68.3 | D172: 103.64 | E172: 193.74 | F172: 357.92 | G172: 271.82 | H172: 254.84 | I172: 331.88 | J172: 258.3 | K172: 602.43 | L172: 387.72 | M172: 1406.28 | N172: 0
A173: Épargne | B173: =B18+B22 -> 108050.41 | C173: =C18+C22 -> 108050.41 | D173: 103113.12 | E173: 103200.85 | F173: 101848.86 | G173: 100974.96 | H173: 101305.45 | I173: 101614.05 | J173: 101922.69 | K173: 96871.04 | L173: 96879.32 | M173: 96879.32 | N173: 0
A174: Placements | B174: =B16+B17+B19+B20+B21 -> 272028.07 | C174: =C16+C17+C19+C20+C21 -> 273937.15 | D174: 279504.8 | E174: 281236.68 | F174: 281642.46 | G174: 281411.41 | H174: 282078.55 | I174: 286081.79 | J174: 287357.05 | K174: 285648.23 | L174: 287645.77 | M174: 287645.77 | N174: 0
A178: Choix | B178: Fin dec 2020 | C178: 2021-01-01 | D178: =DATE(YEAR(C178),MONTH(C178)+1,1) -> 2021-02-01 | E178: 2021-03-01 | F178: 2021-04-01 | G178: 2021-05-01 | H178: 2021-06-01 | I178: 2021-07-01 | J178: 2021-08-01 | K178: 2021-09-01 | L178: 2021-10-01 | M178: 2021-11-01 | N178: 2021-12-01
A179: ='Tableau de bord'!A3 -> Épargne | B179: =INDEX(B171:B174,MATCH($A$179,$A$171:$A$174,0)) -> 108050.41 | C179: =INDEX(C171:C174,MATCH($A$179,$A$171:$A$174,0)) -> 108050.41 | D179: 103113.12 | E179: 103200.85 | F179: 101848.86 | G179: 100974.96 | H179: 101305.45 | I179: 101614.05 | J179: 101922.69 | K179: 96871.04 | L179: 96879.32 | M179: 96879.32 | N179: 0

Sheet Tableau de bord
A1: Tableau de bord
B2: Sélectionner un compte
A3: =B3 -> Épargne | B3: Épargne
K4: Objectif d'épargne
K9: Objectif | L9: 10000
K10: A ce jour | M10: =N24 -> 5333.56
K11: Taux de réalisation | M11: =N25 -> 0.533356
J21: Objectif Épargne réelle
J23: Objectif | N23: 10000
J24: Actuellement | N24: ='Solde des comptes'!L7 -> 5333.56
J25: Taux | N25: =N24/N23 -> 0.533356

Sheet TCDA
A2: Année | B2: 2021
A4: Sum of Montant | B4: Type | C4: Compte | D4: Mois
B5: Sortie | F5: Grand Total
B6: Chèque | C6: Visa | D6: Liquide | E6: Home dépôt
A7: Catégorie
A8: Alimentation | B8: 82.84 | C8: 5020.12 | D8: 53.1 | F8: 5156.06
A9: Bordeaux | B9: 9319.69 | C9: 699.99 | D9: 7.35 | F9: 10027.03
A10: Auto | B10: 1797.28 | C10: 629.62 | D10: 20 | F10: 2446.9
A11: Projets | B11: 5001.06 | C11: 399.89 | E11: 491.94 | F11: 5892.89
A12: Personnel | B12: 1026.75 | C12: 70.89 | D12: 570.7 | F12: 1668.34
A13: Animaux | C13: 1484.93 | F13: 1484.93
A14: Santé | C14: 376.74 | F14: 376.74
A15: Divers | B15: 600 | C15: 25 | E15: 156.61 | F15: 781.61
A16: Paiement de dettes | B16: 9050.89 | D16: 250 | F16: 9300.89
A17: Paiement des impôts | B17: 2573.44 | F17: 2573.44
A18: Épargne impôts | B18: 800 | F18: 800
A23: Catégories | B23: Total annuel
A24: Alimentation | B24: =GETPIVOTDATA("Montant",$A$4,"Catégorie","Alimentation") -> 5156.06
A25: Bordeaux | B25: =GETPIVOTDATA("Montant",$A$4,"Catégorie","Bordeaux") -> 10027.03
A26: Auto | B26: =GETPIVOTDATA("Montant",$A$4,"Catégorie","Auto") -> 2446.9
A27: Projets | B27: =GETPIVOTDATA("Montant",$A$4,"Catégorie","Projets") -> 5892.89
A28: Personnel | B28: =GETPIVOTDATA("Montant",$A$4,"Catégorie","Personnel") -> 1668.34
A29: Animaux | B29: =GETPIVOTDATA("Montant",$A$4,"Catégorie","Animaux") -> 1484.93
A30: Santé | B30: =GETPIVOTDATA("Montant",$A$4,"Catégorie","Santé") -> 376.74
A31: Divers | B31: =GETPIVOTDATA("Montant",$A$4,"Catégorie","Divers") -> 781.61
A32: Paiement des impôts | B32: =GETPIVOTDATA("Montant",$A$4,"Catégorie","Paiement des impôts") -> 2573.44
A33: Grand total | B33: =SUM(B24:B32) -> 30407.94
A37: Type | B37: Sortie
A38: Compte | B38: (Multiple Items)
A39: Année | B39: 2021
A41: Catégorie | B41: Sous cat | C41: Somme
A42: Bordeaux | B42: Cable Bordeaux | C42: 785
B43: Électricité Bordeaux | C43: 2074.53
B44: Entretien Bordeaux | C44: 14894.07
B45: Loyer Bordeaux | C45: 14410
A49: Analyse pour l'année des transactions par sous catégories

Sheet Home
A1: Solde actuel de tous les comptes
A3: =(D5+D6+D7+D8+D9+I5+I9+N5+J10+S5+S6) -> 390118.79
B4: Placement | G4: Compte Banque et Épargne | L4: Liquidités | Q4: Carte de Crédit
B5: Diapason | D5: ='Solde des comptes'!L10 -> 25834.1 | G5: Chèque | I5: ='Solde des comptes'!L5 -> 6976.98 | L5: Liquide | N5: ='Solde des comptes'!L16 -> 23 | Q5: Visa | S5: ='Solde des comptes'!L4 -> -1406.28
B6: Zénitude 19-04-2022 | D6: ='Solde des comptes'!L11 -> 11196.95 | G6: Épargne Stable | I6: ='Solde des comptes'!L7 -> 5333.56 | Q6: Home dépôt | S6: ='Solde des comptes'!L6 -> 0
B7: Celi 15-06-2023 | D7: ='Solde des comptes'!L12 -> 75500 | G7: Épargne impôts | I7: ='Solde des comptes'!L8 -> 70500
B8: ET4 15-06-2023 | D8: ='Solde des comptes'!L13 -> 109500 | G8: Reserve Projets | I8: ='Solde des comptes'!L9 -> 21032.22
B9: Ind All | D9: ='Solde des comptes'!L14 -> 65614.72 | G9: Total Épargne | I9: =SUM(I6:I8) -> 96865.78
G10: ES2 | J10: ='Solde des comptes'!L15 -> 13.54
G11: Grand Total | J11: =SUM(I9:J10) -> 96879.32
B14: ENTRÉES | D14: =Q29 -> 386.51 | G14: SORTIES | I14: =Q20+Q21+Q22+Q23+Q24+Q25+Q26+Q27+Q28 -> 2750.36 | L14: SURPLUS | N14: =D14-I14 -> -2363.85 | Q14: BUDGET | S14: ='Planif Mensuelle (1)'!Q42 -> 6614.79
D16: =TEXT(I17,"mmmm") -> novembre
B17: Pour le mois de | G17: Aujourdhui | I17: =TODAY() -> 2021-11-14 | L17: Solde prévu mois | N17: ='Planif Mensuelle (1)'!K58 -> 8448.17 | P17: Dépassement du budget | T17: =IF($AB$9="",IF($I$14<S14,"NON","OUI"),"") -> NON
L18: Solde prévu année | N18: ='Planif Mensuelle (1)'!M58 -> 9061.47
L19: Catégories | O19: Budget | P19: Réel | S19: Reste | T19: %
L20: Alimentation | O20: ='Planif Mensuelle (1)'!Q30 -> 880 | Q20: =IFERROR(GETPIVOTDATA("Montant",'TCDM '!$A$4,"Type","Sortie","Catégorie","Alimentation"),0) -> 686.75 | S20: =O20-Q20 -> 193.25 | T20: =Q20/O20 -> 0.7803977273
L21: Animaux | O21: ='Planif Mensuelle (1)'!Q31 -> 525 | Q21: =IFERROR(GETPIVOTDATA("Montant",'TCDM '!$A$4,"Type","Sortie","Catégorie","Animaux"),0) -> 149.38 | S21: =O21-Q21 -> 375.62 | T21: =Q21/O21 -> 0.2845333333
L22: Auto | O22: ='Planif Mensuelle (1)'!Q32 -> 455 | Q22: =IFERROR(GETPIVOTDATA("Montant",'TCDM '!$A$4,"Type","Sortie","Catégorie","Auto"),0) -> 61.67 | S22: 393.33 | T22: 0.1355384615
L23: Bordeaux | O23: ='Planif Mensuelle (1)'!Q33 -> 1760 | Q23: =IFERROR(GETPIVOTDATA("Montant",'TCDM '!$A$4,"Type","Sortie","Catégorie","Bordeaux"),0) -> 1497.49 | S23: 262.51 | T23: 0.8508465909
L24: Divers | O24: ='Planif Mensuelle (1)'!Q34 -> 200 | Q24: =IFERROR(GETPIVOTDATA("Montant",'TCDM '!$A$4,"Type","Sortie","Catégorie","Divers"),0) -> 137.94 | S24: 62.06 | T24: 0.6897
L25: Épargne | O25: ='Planif Mensuelle (1)'!Q36 -> 0 | Q25: =IFERROR(GETPIVOTDATA("Montant",'TCDM '!$A$5,"Compte","Épargne Stable","Type","Entrée","Catégorie","Épargne"),0)+IFERROR(GETPIVOTDATA("Montant",'TCDM '!$A$5,"Compte","Épargne Stable","Type","Entrée","Catégorie","Virement"),0) -> 0 | S25: 0 | T25: =IFERROR(Q25/O25,0) -> 0
L26: Paiement des impots | O26: ='Planif Mensuelle (1)'!Q37 -> 0 | Q26: =IFERROR(GETPIVOTDATA("Montant",'TCDM '!$A$5,"Type","Sortie","Catégorie","Paiement des impôts"),0) -> 0 | S26: 0 | T26: =IFERROR(Q26/O26,0) -> 0
L27: Personnel | O27: ='Planif Mensuelle (1)'!Q39 -> 454.79 | Q27: =IFERROR(GETPIVOTDATA("Montant",'TCDM '!$A$4,"Type","Sortie","Catégorie","Personnel"),0) -> 164.79 | S27: 290 | T27: 0.3623430594
L28: Santé | O28: ='Planif Mensuelle (1)'!Q41 -> 190 | Q28: =IFERROR(GETPIVOTDATA("Montant",'TCDM '!$A$4,"Type","Sortie","Catégorie","Santé"),0) -> 52.34 | S28: 137.66 | T28: 0.2754736842
L29: Entrée | O29: ='Planif Mensuelle (1)'!M43 -> 5393.39 | Q29: =IFERROR(GETPIVOTDATA("Montant",'TCDM '!$A$4,"Type","Entrée","Catégorie","Entrée"),0)+IFERROR(GETPIVOTDATA("Montant",'TCDM '!$A$5,"Compte","Chèque","Type","Entrée","Catégorie","Virement"),0) -> 386.51 | S29: 5006.88 | T29: 0.07166364754
Q30: Progression du mois | T30: =(1-K42/K43) -> 0.4666666667
L31: A recevoir de Jean pour épicerie | O31: Acompte provisionnel payés a ce jour | S31: =SUM(S20:S28) -> 1714.43
L32: =Jean!L7 -> 147.195 | O32: =GETPIVOTDATA("Montant",'TCD dep ann'!$A$3,"Catégorie","Paiement des impôts","Mois","mars")+GETPIVOTDATA("Montant",'TCD dep ann'!$A$3,"Catégorie","Paiement des impôts","Mois","juin")+GETPIVOTDATA("Montant",'TCD dep ann'!$A$3,"Catégorie","Paiement des impôts","Mois","septembre")+GETPIVOTDATA("Montant",'TCD dep ann'!$A$3,"Catégorie","Paiement des impôts","Mois","décembre") -> 2028 | S32: excede bud
J41: Zone de calcul
J42: =EOMONTH(I17,0) -> 2021-11-30 | K42: =J42-I17 -> 16
K43: =DAY(DATE(YEAR(I17),MONTH(I17)+1,1)-1) -> 30

Sheet Aide mémoire
A1: Aide mémoire le dernier jour du mois
A3: Vérifier les valeurs des placements et mettre à jour
A4: Copier collage spécial dans Flux 12 mois
A5: Faire le budget du mois qui vient après analyse du mois précédent
A6: Copier collage spécial budget du mois qui finit
A8: payer visa en creant une sortie du compte cheque
A14: epargne

Sheet Solde des comptes
A1: Année | B1: 2021
A3: Sum of Montant | B3: Column Labels | J3: Comptes | K3: Solde de départ | L3: Solde a ce jour
A4: Row Labels | B4: Sortie | C4: Entrée | H4: Ajustement | I4: 19 | J4: Visa | L4: =-(O27)+I4 -> -1406.28
A5: Chèque | B5: 67143.1 | C5: 66988.83 | I5: 1800 | J5: Chèque | K5: 5331.25 | L5: =K5+(GETPIVOTDATA("Montant",$A$3,"Compte","Chèque","Type","Entrée")-GETPIVOTDATA("Montant",$A$3,"Compte","Chèque","Type","Sortie"))+I5 -> 6976.98
A6: Visa | B6: 17578.71 | C6: 2246.98 | I6: 648.55 | J6: Home dépot | K6: 0 | L6: =GETPIVOTDATA("Montant",$A$3,"Compte","Home dépôt","Type","Entrée")-GETPIVOTDATA("Montant",$A$3,"Compte","Home dépôt","Type","Sortie")+(K6+I6) -> 0
A7: Liquide | B7: 1523.85 | C7: 1433.65 | I7: 2267.26 | J7: Épargne Pure | K7: 6350 | L7: =(K7-I7)+GETPIVOTDATA("Montant",$A$3,"Compte","Épargne Stable","Type","Entrée") -> 5333.56
A8: Diapason | B8: 2061.11 | C8: 8471.73 | J8: Épargne Impots | K8: 70500 | L8: =K8 -> 70500
A9: Zénitude | B9: 5 | C9: 206.21 | I9: 4967.78 | J9: Reserve Projets | K9: 30000 | L9: =(K9-I9)-GETPIVOTDATA("Montant",Reserve!$A$4,"Type","Sortie") -> 21032.22 | O9: 1360 | P9: =O9+I9 -> 6327.78
A10: Ind All | B10: 3593.47 | C10: 12599.34 | J10: Diapason | K10: 19423.48 | L10: =GETPIVOTDATA("Montant",$A$3,"Compte","Diapason","Type","Entrée")-GETPIVOTDATA("Montant",$A$3,"Compte","Diapason","Type","Sortie")+K10 -> 25834.1
A11: Épargne Stable | B11: 1200.19 | C11: 1250.82 | J11: Zénitude | K11: 10995.74 | L11: =GETPIVOTDATA("Montant",$A$3,"Compte","Zénitude","Type","Entrée")-GETPIVOTDATA("Montant",$A$3,"Compte","Zénitude","Type","Sortie")+K11 -> 11196.95
A12: Épargne impôts | B12: 9351.04 | C12: 1515.78 | J12: Celi | K12: 75500 | L12: =K12 -> 75500
A13: Home dépôt | B13: 648.55 | J13: ET4 | K13: 109500 | L13: =K13 -> 109500
A14: ES2 | C14: 6.3 | J14: Ind All | K14: 56608.85 | L14: =GETPIVOTDATA("Montant",$A$3,"Compte","Ind All","Type","Entrée")-GETPIVOTDATA("Montant",$A$3,"Compte","Ind All","Type","Sortie")+K14 -> 65614.72
J15: ES2 | K15: 7.24 | L15: =K15+GETPIVOTDATA("Montant",$A$3,"Compte","ES2","Type","Entrée") -> 13.54
I16: 100 | J16: Liquide | K16: 13.2 | L16: =K16+GETPIVOTDATA("Montant",$A$3,"Compte","Liquide","Type","Entrée")-GETPIVOTDATA("Montant",$A$3,"Compte","Liquide","Type","Sortie")+I16 -> 23
H20: Solde des cartes de credit
O21: Visa
H22: Année | I22: 2021 | O22: Paiement | P22: =GETPIVOTDATA("Montant",$H$46,"Compte","Chèque","Type","Sortie","Catégorie","Paiement de dettes","Sous cat","Visa") -> 16047.32
O23: Ristourne | P23: =(GETPIVOTDATA("Montant",$H$33,"Compte","Visa","Type","Entrée","Catégorie","Entrée")) -> 125.01
A24: Compte | B24: Chèque | H24: Sum of Montant | I24: Column Labels | O24: Sorties | P24: =GETPIVOTDATA("Montant",$H$24,"Compte","Visa","Type","Sortie") -> 17578.71
A25: Année | B25: 2021 | H25: Row Labels | I25: Sortie | J25: Entrée | O25: =P24-(P22+P23) -> 1406.38
H26: Visa | I26: 17578.71 | J26: 2246.98 | O26: ajustement | P26: 18.9
A27: Somme | B27: Column Labels | H27: Home dépôt | I27: 648.55 | O27: =P26+O25 -> 1425.28 | P27: afficher
A28: Row Labels | B28: Sortie | C28: Entrée
A29: janvier | B29: 4153.25 | C29: 8842.57
A30: février | B30: 3501.27 | C30: 5324.79
A31: mars | B31: 6642.29 | C31: 7682.63 | H31: Année | I31: 2021
A32: avril | B32: 7890.9 | C32: 6814.22
A33: mai | B33: 4522.11 | C33: 6124.23 | H33: Sum of Montant | I33: Column Labels
A34: juin | B34: 4502.13 | C34: 6086.56 | I34: Entrée | M34: Entrée Total
A35: juillet | B35: 13027.99 | C35: 5093.39 | I35: Entrée | J35: Entrée Total | K35: Paiement de dettes | L35: Paiement de dettes Total
A36: août | B36: 6420.1 | C36: 5123.39 | H36: Row Labels | I36: Ristourne | K36: Visa
A37: septembre | B37: 6463.81 | C37: 6420.39 | H37: Visa | I37: 125.01 | J37: 125.01 | K37: 0 | L37: 0 | M37: 125.01
A38: octobre | B38: 8309.46 | C38: 9115.16
A39: novembre | B39: 1709.79 | C39: 361.5
H43: Année | I43: 2021
H44: Fournisseur | I44: Visa
H46: Sum of Montant | I46: Column Labels
I47: Sortie | K47: Sortie Total
I48: Paiement de dettes | J48: Paiement de dettes Total
H49: Row Labels | I49: Visa
H50: Chèque | I50: 16047.32 | J50: 16047.32 | K50: 16047.32

Sheet TCDM
A1: Fin de mois | B1: 1
A2: Mois | B2: (All)
A3: Année | B3: 2021
L4: Alimentation
A5: Sum of Montant | B5: Column Labels | L5: Animaux
B6: Sortie | E6: Sortie Total | F6: Entrée | I6: Entrée Total | L6: Auto
A7: Row Labels | B7: Chèque | C7: Visa | D7: Liquide | F7: Chèque | G7: Visa | H7: Liquide | L7: Bordeaux
A8: Alimentation | B8: 40 | C8: 646.75 | E8: 686.75 | L8: Divers
A9: Animaux | C9: 149.38 | E9: 149.38 | L9: Épargne
A10: Auto | C10: 61.67 | E10: 61.67 | L10: Paiement des impots
A11: Bordeaux | B11: 1485 | C11: 12.49 | E11: 1497.49 | L11: Personnel
A12: Divers | C12: 137.94 | E12: 137.94 | L12: Santé
A13: Entrée | F13: 361.5 | G13: 25.01 | I13: 386.51 | L13: Entrée
A14: Personnel | B14: 124.79 | D14: 40 | E14: 164.79
A15: Santé | C15: 35.34 | D15: 17 | E15: 52.34
A16: Virement | B16: 60 | E16: 60 | H16: 60 | I16: 60
A17: Grand Total | B17: 1709.79 | C17: 1043.57 | D17: 57 | E17: 2810.36 | F17: 361.5 | G17: 25.01 | H17: 60 | I17: 446.51

Sheet TCD dep ann
A1: Analyse des dépenses
A3: Sum of Montant | B3: Column Labels
A4: Items | B4: janvier | C4: février | D4: mars | E4: avril | F4: mai | G4: juin | H4: juillet | I4: août | J4: septembre | K4: octobre | L4: novembre | M4: décembre | N4: Grand Total | O4: Moy 2020 | P4: Moyenne/Bud 2021
A5: Alimentation | B5: 685.09 | C5: 755.77 | D5: 1113.94 | E5: 927.33 | F5: 764.57 | G5: 909.36 | H5: 840.28 | I5: 907.77 | J5: 1017.35 | K5: 866.96 | L5: 686.75 | M5: 0 | N5: 9475.17 | O5: 800 | P5: ='Planif Mensuelle'!Q56 -> 871.4285714
A6: Animaux | B6: 199.42 | C6: 157.83 | D6: 189.53 | E6: 203.43 | F6: 398.22 | G6: 336.5 | H6: 190.33 | I6: 302.96 | J6: 733.46 | K6: 358.78 | L6: 149.38 | N6: 3219.84 | O6: 200 | P6: ='Planif Mensuelle'!Q57 -> 450
A7: Auto | B7: 349.65 | C7: 381.46 | D7: 476.26 | E7: 465.92 | F7: 397.72 | G7: 375.89 | H7: 460.13 | I7: 416.08 | J7: 392.58 | K7: 828.52 | L7: 61.67 | N7: 4605.88 | O7: 500 | P7: ='Planif Mensuelle'!Q58 -> 412.8571429
A8: Bordeaux | B8: 1714.49 | C8: 1440.13 | D8: 2060 | E8: 1578.85 | F8: 1838.88 | G8: 1394.68 | H8: 9542.67 | I8: 2614.15 | J8: 2902.39 | K8: 5579.87 | L8: 1497.49 | N8: 32163.6 | O8: 1700 | P8: ='Planif Mensuelle'!Q59 -> 1670.714286
A9: Divers | B9: 25 | C9: 400 | D9: 200 | F9: 156.61 | H9: 1527.5 | I9: 50 | J9: 66.54 | K9: 351.56 | L9: 137.94 | N9: 2915.15 | O9: 240 | P9: ='Planif Mensuelle'!Q60 -> 214.2857143
A10: Paiement de dettes | B10: 1026.66 | C10: 1175.66 | D10: 1474.68 | E10: 1861.48 | F10: 2142.47 | G10: 1619.94 | H10: 1726.33 | I10: 1858.85 | J10: 2121.97 | K10: 1937.83 | N10: 16945.87 | O10: 300 | P10: ='Planif Mensuelle'!Q64 -> 300
A11: Paiement des impôts | D11: 676 | E11: 1221.44 | G11: 676 | J11: 676 | N11: 3249.44 | O11: 1900 | P11: ='Planif Mensuelle'!Q66 -> 1995.714286 | Q11: Comparer années
A12: Personnel | B12: 125.61 | C12: 330.56 | D12: 280.04 | E12: 297.15 | F12: 242.18 | G12: 392.8 | H12: 196.76 | I12: 1696.26 | J12: 300.21 | K12: 320.29 | L12: 164.79 | N12: 4346.65 | O12: 250 | P12: ='Planif Mensuelle'!Q65 -> 579.4285714
A13: Projets | B13: 1058.92 | D13: 1155.71 | E13: 3203.17 | F13: 475.09 | N13: 5892.89 | O13: 300 | P13: ='Planif Mensuelle'!Q61 -> 269.36
A14: Santé | B14: 63.37 | C14: 77.06 | D14: 68.01 | E14: 63.04 | F14: 85.48 | G14: 19.78 | H14: 56.11 | I14: 58.3 | J14: 132.64 | K14: 123.59 | L14: 52.34 | N14: 799.72 | O14: 700 | P14: ='Planif Mensuelle'!Q62 -> 100
A18: Sélectionner une catégorie | C18: Min | D18: Max | E18: Moy 2021 | F18: Moy 2020 | H18: Écart/Moy | I18: Budget | J18: Écart/Bud | P18: Min | Q18: =C19 -> 685.09
A19: Alimentation | C19: =MIN(B22:F22) -> 685.09 | D19: =MAX(B22:F22) -> 1113.94 | E19: =AVERAGE(B22:F22) -> 849.34 | F19: =O22 -> 800 | H19: =E19-F19 -> 49.34 | I19: =P22 -> 871.4285714 | J19: =I19-E19 -> 22.08857143 | P19: Max | Q19: =D19 -> 1113.94
A21: Données | B21: janv | C21: févr | D21: mars | E21: avr | F21: mai | G21: juin | H21: juill | I21: août | J21: sept | K21: oct | L21: nov | M21: déc | N21: Grand total | O21: Moy 2020 | P21: Bud 2021
A22: =A19 -> Alimentation | B22: =INDEX(B5:B15,MATCH($A$22,$A$5:$A$15,0)) -> 685.09 | C22: 755.77 | D22: 1113.94 | E22: 927.33 | F22: 764.57 | G22: 909.36 | H22: 840.28 | I22: 907.77 | J22: 1017.35 | K22: 866.96 | L22: 686.75 | M22: 0 | N22: 9475.17 | O22: 800 | P22: 871.4285714
A23: Budget | B23: =P22 -> 871.4285714 | C23: =B23 -> 871.4285714 | D23: =B23 -> 871.4285714 | E23: =B23 -> 871.4285714 | F23: =B23 -> 871.4285714 | G23: =B23 -> 871.4285714 | H23: =B23 -> 871.4285714 | I23: =B23 -> 871.4285714 | J23: =B23 -> 871.4285714 | K23: =B23 -> 871.4285714 | L23: =B23 -> 871.4285714 | M23: =B23 -> 871.4285714

Sheet Jean
A1: Compte | B1: Jean Epicerie
A3: Sum of Montant | B3: Column Labels | I3: Tojours saisir une sortie
A4: Row Labels | B4: Sortie | C4: Grand Total
A5: Credit Jean | B5: 1847.34 | C5: 1847.34 | I5: Jean doit a Robert | L5: =GETPIVOTDATA("Montant",$A$3,"Catégorie","Crédit Robert","Sous cat","Plein")+(GETPIVOTDATA("Montant",$A$3,"Catégorie","Crédit Robert","Sous cat","Demi")/2) -> 1633.6
A6: Demi | B6: 721.87 | C6: 721.87 | I6: Robert doit a Jean | L6: =GETPIVOTDATA("Montant",$A$3,"Type","Sortie","Catégorie","Credit Jean","Sous cat","Plein")+(GETPIVOTDATA("Montant",$A$3,"Type","Sortie","Catégorie","Credit Jean","Sous cat","Demi")/2) -> 1486.405
A7: Plein | B7: 1125.47 | C7: 1125.47 | I7: total | L7: =L5-L6 -> 147.195
A8: Crédit Robert | B8: 3267.2 | C8: 3267.2 | I8: si negatif un credit pour jean
A9: Demi | B9: 3267.2 | C9: 3267.2
A10: Plein | B10: 0 | C10: 0
A11: Grand Total | B11: 5114.54 | C11: 5114.54

Sheet Data
A1: Catégories | B1: Année | C1: Mois | D1: Montant
A2: =A221 -> Alimentation | B2: =B219 -> 2021 | C2: =B220 -> janvier | D2: =GETPIVOTDATA("Montant",$A$218,"Catégorie","Alimentation","Mois","janvier","Année",2021) -> 685.09
A3: =A221 -> Alimentation | B3: =B219 -> 2021 | C3: =C220 -> février | D3: =GETPIVOTDATA("Montant",$A$218,"Catégorie","Alimentation","Mois","février","Année",2021) -> 755.77
A4: =A221 -> Alimentation | B4: =B219 -> 2021 | C4: =D220 -> mars | D4: =GETPIVOTDATA("Montant",$A$218,"Catégorie","Alimentation","Mois","mars","Année",2021) -> 1113.94
A5: =A221 -> Alimentation | B5: =B219 -> 2021 | C5: =E220 -> avril | D5: =GETPIVOTDATA("Montant",$A$218,"Catégorie","Alimentation","Mois","avril","Année",2021) -> 927.33
A6: =A221 -> Alimentation | B6: =B219 -> 2021 | C6: =F220 -> mai | D6: =GETPIVOTDATA("Montant",$A$218,"Catégorie","Alimentation","Mois","mai","Année",2021) -> 764.57
A7: =A221 -> Alimentation | B7: =B219 -> 2021 | C7: =G220 -> juin | D7: =GETPIVOTDATA("Montant",$A$218,"Catégorie","Alimentation","Mois","juin","Année",2021) -> 909.36
A8: =A221 -> Alimentation | B8: =B219 -> 2021 | C8: =H220 -> juillet | D8: =GETPIVOTDATA("Montant",$A$218,"Catégorie","Alimentation","Mois","juillet","Année",2021) -> 840.28
A9: =A221 -> Alimentation | B9: =B219 -> 2021 | C9: =I220 -> août | D9: =GETPIVOTDATA("Montant",$A$218,"Catégorie","Alimentation","Mois","août","Année",2021) -> 907.77
A10: =A221 -> Alimentation | B10: =B219 -> 2021 | C10: =J220 -> septembre | D10: =GETPIVOTDATA("Montant",$A$218,"Catégorie","Alimentation","Mois","septembre","Année",2021) -> 1017.35
A11: =A221 -> Alimentation | B11: =B219 -> 2021 | C11: =K220 -> octobre | D11: =GETPIVOTDATA("Montant",$A$218,"Catégorie","Alimentation","Mois","octobre","Année",2021) -> 866.96
A12: =A221 -> Alimentation | B12: =B219 -> 2021 | C12: =L220 -> novembre | D12: =GETPIVOTDATA("Montant",$A$218,"Catégorie","Alimentation","Mois","novembre","Année",2021) -> 686.75
A13: =A221 -> Alimentation | B13: =B219 -> 2021 | C13: =M220 -> décembre | D13: =GETPIVOTDATA("Montant",$A$218,"Catégorie","Alimentation","Mois","décembre","Année",2021) -> 0
A14: Alimentation | B14: 2022 | C14: janvier | D14: 700
A15: Alimentation | B15: 2022 | C15: février | D15: 750
A16: Alimentation | B16: 2022 | C16: mars | D16: 800
A17: Alimentation | B17: 2022 | C17: avril | D17: 950
A18: Alimentation | B18: 2022 | C18: mai | D18: 650
A19: Alimentation | B19: 2022 | C19: juin | D19: 900
A20: Alimentation | B20: 2022 | C20: juillet | D20: 800
A21: Alimentation | B21: 2022 | C21: août | D21: 850
A22: Alimentation | B22: 2022 | C22: septembre | D22: 875
A23: Alimentation | B23: 2022 | C23: octobre | D23: 892
A24: Alimentation | B24: 2022 | C24: novembre | D24: 900
A25: Alimentation | B25: 2022 | C25: décembre | D25: 1000
A26: Animaux | B26: 2021 | C26: janvier | D26: =GETPIVOTDATA("Montant",$A$218,"Catégorie","Animaux","Mois","janvier","Année",2021) -> 199.42
A27: Animaux | B27: 2021 | C27: février | D27: =GETPIVOTDATA("Montant",$A$218,"Catégorie","Animaux","Mois","février","Année",2021) -> 157.83
A28: Animaux | B28: 2021 | C28: mars | D28: =GETPIVOTDATA("Montant",$A$218,"Catégorie","Animaux","Mois","mars","Année",2021) -> 189.53
A29: Animaux | B29: 2021 | C29: avril | D29: =GETPIVOTDATA("Montant",$A$218,"Catégorie","Animaux","Mois","avril","Année",2021) -> 203.43
A30: Animaux | B30: 2021 | C30: mai | D30: =GETPIVOTDATA("Montant",$A$218,"Catégorie","Animaux","Mois","mai","Année",2021) -> 398.22
A31: Animaux | B31: 2021 | C31: juin | D31: =GETPIVOTDATA("Montant",$A$218,"Catégorie","Animaux","Mois","juin","Année",2021) -> 336.5
A32: Animaux | B32: 2021 | C32: juillet | D32: =GETPIVOTDATA("Montant",$A$218,"Catégorie","Animaux","Mois","juillet","Année",2021) -> 190.33
A33: Animaux | B33: 2021 | C33: août | D33: =GETPIVOTDATA("Montant",$A$218,"Catégorie","Animaux","Mois","août","Année",2021) -> 302.96
A34: Animaux | B34: 2021 | C34: septembre | D34: =GETPIVOTDATA("Montant",$A$218,"Catégorie","Animaux","Mois","septembre","Année",2021) -> 733.46
A35: Animaux | B35: 2021 | C35: octobre | D35: =GETPIVOTDATA("Montant",$A$218,"Catégorie","Animaux","Mois","octobre","Année",2021) -> 358.78
A36: Animaux | B36: 2021 | C36: novembre | D36: =GETPIVOTDATA("Montant",$A$218,"Catégorie","Animaux","Mois","novembre","Année",2021) -> 149.38
A37: Animaux | B37: 2021 | C37: décembre | D37: =GETPIVOTDATA("Montant",$A$218,"Catégorie","Animaux","Mois","décembre","Année",2021) -> 0
A38: Animaux | B38: 2022 | C38: janvier | D38: 100
A39: Animaux | B39: 2022 | C39: février | D39: 100
A40: Animaux | B40: 2022 | C40: mars | D40: 100
A41: Animaux | B41: 2022 | C41: avril | D41: 100
A42: Animaux | B42: 2022 | C42: mai | D42: 100
A43: Animaux | B43: 2022 | C43: juin | D43: 100
A44: Animaux | B44: 2022 | C44: juillet | D44: 100
A45: Animaux | B45: 2022 | C45: août | D45: 100
A46: Animaux | B46: 2022 | C46: septembre | D46: 100
A47: Animaux | B47: 2022 | C47: octobre | D47: 100
A48: Animaux | B48: 2022 | C48: novembre | D48: 100
A49: Animaux | B49: 2022 | C49: décembre | D49: 100
A50: Auto | B50: 2021 | C50: janvier | D50: =GETPIVOTDATA("Montant",$A$218,"Catégorie","Auto","Mois","janvier","Année",2021) -> 349.65
A51: Auto | B51: 2021 | C51: février | D51: =GETPIVOTDATA("Montant",$A$218,"Catégorie","Auto","Mois","février","Année",2021) -> 381.46
A52: Auto | B52: 2021 | C52: mars | D52: =GETPIVOTDATA("Montant",$A$218,"Catégorie","Auto","Mois","mars","Année",2021) -> 476.26
A53: Auto | B53: 2021 | C53: avril | D53: =GETPIVOTDATA("Montant",$A$218,"Catégorie","Auto","Mois","avril","Année",2021) -> 465.92
A54: Auto | B54: 2021 | C54: mai | D54: =GETPIVOTDATA("Montant",$A$218,"Catégorie","Auto","Mois","mai","Année",2021) -> 397.72
A55: Auto | B55: 2021 | C55: juin | D55: =GETPIVOTDATA("Montant",$A$218,"Catégorie","Auto","Mois","juin","Année",2021) -> 375.89
A56: Auto | B56: 2021 | C56: juillet | D56: =GETPIVOTDATA("Montant",$A$218,"Catégorie","Auto","Mois","juillet","Année",2021) -> 460.13
A57: Auto | B57: 2021 | C57: août | D57: =GETPIVOTDATA("Montant",$A$218,"Catégorie","Auto","Mois","août","Année",2021) -> 416.08
A58: Auto | B58: 2021 | C58: septembre | D58: =GETPIVOTDATA("Montant",$A$218,"Catégorie","Auto","Mois","septembre","Année",2021) -> 392.58
A59: Auto | B59: 2021 | C59: octobre | D59: =GETPIVOTDATA("Montant",$A$218,"Catégorie","Auto","Mois","octobre","Année",2021) -> 828.52
A60: Auto | B60: 2021 | C60: novembre | D60: =GETPIVOTDATA("Montant",$A$218,"Catégorie","Auto","Mois","novembre","Année",2021) -> 61.67
A61: Auto | B61: 2021 | C61: décembre | D61: =GETPIVOTDATA("Montant",$A$218,"Catégorie","Auto","Mois","décembre","Année",2021) -> 0
A62: Auto | B62: 2022 | C62: janvier | D62: 100
A63: Auto | B63: 2022 | C63: février | D63: 100
A64: Auto | B64: 2022 | C64: mars | D64: 100
A65: Auto | B65: 2022 | C65: avril | D65: 100
A66: Auto | B66: 2022 | C66: mai | D66: 100
A67: Auto | B67: 2022 | C67: juin | D67: 100
A68: Auto | B68: 2022 | C68: juillet | D68: 100
A69: Auto | B69: 2022 | C69: août | D69: 100
A70: Auto | B70: 2022 | C70: septembre | D70: 100
A71: Auto | B71: 2022 | C71: octobre | D71: 100
A72: Auto | B72: 2022 | C72: novembre | D72: 100
A73: Auto | B73: 2022 | C73: décembre | D73: 100
A74: Bordeaux | B74: 2021 | C74: janvier | D74: =GETPIVOTDATA("Montant",$A$218,"Catégorie","Bordeaux","Mois","janvier","Année",2021) -> 1714.49
A75: Bordeaux | B75: 2021 | C75: février | D75: =GETPIVOTDATA("Montant",$A$218,"Catégorie","Bordeaux","Mois","février","Année",2021) -> 1440.13
A76: Bordeaux | B76: 2021 | C76: mars | D76: =GETPIVOTDATA("Montant",$A$218,"Catégorie","Bordeaux","Mois","mars","Année",2021) -> 2060
A77: Bordeaux | B77: 2021 | C77: avril | D77: =GETPIVOTDATA("Montant",$A$218,"Catégorie","Bordeaux","Mois","avril","Année",2021) -> 1578.85
A78: Bordeaux | B78: 2021 | C78: mai | D78: =GETPIVOTDATA("Montant",$A$218,"Catégorie","Bordeaux","Mois","mai","Année",2021) -> 1838.88
A79: Bordeaux | B79: 2021 | C79: juin | D79: =GETPIVOTDATA("Montant",$A$218,"Catégorie","Bordeaux","Mois","juin","Année",2021) -> 1394.68
A80: Bordeaux | B80: 2021 | C80: juillet | D80: =GETPIVOTDATA("Montant",$A$218,"Catégorie","Bordeaux","Mois","juillet","Année",2021) -> 9542.67
A81: Bordeaux | B81: 2021 | C81: août | D81: =GETPIVOTDATA("Montant",$A$218,"Catégorie","Bordeaux","Mois","août","Année",2021) -> 2614.15
A82: Bordeaux | B82: 2021 | C82: septembre | D82: =GETPIVOTDATA("Montant",$A$218,"Catégorie","Bordeaux","Mois","septembre","Année",2021) -> 2902.39
A83: Bordeaux | B83: 2021 | C83: octobre | D83: =GETPIVOTDATA("Montant",$A$218,"Catégorie","Bordeaux","Mois","octobre","Année",2021) -> 5579.87
A84: Bordeaux | B84: 2021 | C84: novembre | D84: =GETPIVOTDATA("Montant",$A$218,"Catégorie","Bordeaux","Mois","novembre","Année",2021) -> 1497.49
A85: Bordeaux | B85: 2021 | C85: décembre | D85: =GETPIVOTDATA("Montant",$A$218,"Catégorie","Bordeaux","Mois","décembre","Année",2021) -> 0
A86: Bordeaux | B86: 2022 | C86: janvier | D86: 100
A87: Bordeaux | B87: 2022 | C87: février | D87: 100
A88: Bordeaux | B88: 2022 | C88: mars | D88: 100
A89: Bordeaux | B89: 2022 | C89: avril | D89: 100
A90: Bordeaux | B90: 2022 | C90: mai | D90: 100
A91: Bordeaux | B91: 2022 | C91: juin | D91: 100
A92: Bordeaux | B92: 2022 | C92: juillet | D92: 100
A93: Bordeaux | B93: 2022 | C93: août | D93: 100
A94: Bordeaux | B94: 2022 | C94: septembre | D94: 100
A95: Bordeaux | B95: 2022 | C95: octobre | D95: 100
A96: Bordeaux | B96: 2022 | C96: novembre | D96: 100
A97: Bordeaux | B97: 2022 | C97: décembre | D97: 100
A98: Divers | B98: 2021 | C98: janvier | D98: =GETPIVOTDATA("Montant",$A$218,"Catégorie","Divers","Mois","janvier","Année",2021) -> 25
A99: Divers | B99: 2021 | C99: février | D99: =GETPIVOTDATA("Montant",$A$218,"Catégorie","Divers","Mois","février","Année",2021) -> 400
A100: Divers | B100: 2021 | C100: mars | D100: =GETPIVOTDATA("Montant",$A$218,"Catégorie","Divers","Mois","mars","Année",2021) -> 200
A101: Divers | B101: 2021 | C101: avril | D101: =GETPIVOTDATA("Montant",$A$218,"Catégorie","Divers","Mois","avril","Année",2021) -> 0
A102: Divers | B102: 2021 | C102: mai | D102: =GETPIVOTDATA("Montant",$A$218,"Catégorie","Divers","Mois","mai","Année",2021) -> 156.61
A103: Divers | B103: 2021 | C103: juin | D103: =GETPIVOTDATA("Montant",$A$218,"Catégorie","Divers","Mois","juin","Année",2021) -> 0
A104: Divers | B104: 2021 | C104: juillet | D104: =GETPIVOTDATA("Montant",$A$218,"Catégorie","Divers","Mois","juillet","Année",2021) -> 1527.5
A105: Divers | B105: 2021 | C105: août | D105: =GETPIVOTDATA("Montant",$A$218,"Catégorie","Divers","Mois","août","Année",2021) -> 50
A106: Divers | B106: 2021 | C106: septembre | D106: =GETPIVOTDATA("Montant",$A$218,"Catégorie","Divers","Mois","septembre","Année",2021) -> 66.54
A107: Divers | B107: 2021 | C107: octobre | D107: =GETPIVOTDATA("Montant",$A$218,"Catégorie","Divers","Mois","octobre","Année",2021) -> 351.56
A108: Divers | B108: 2021 | C108: novembre | D108: =GETPIVOTDATA("Montant",$A$218,"Catégorie","Divers","Mois","novembre","Année",2021) -> 137.94
A109: Divers | B109: 2021 | C109: décembre | D109: =GETPIVOTDATA("Montant",$A$218,"Catégorie","Divers","Mois","décembre","Année",2021) -> 0
A110: Divers | B110: 2022 | C110: janvier | D110: 100
A111: Divers | B111: 2022 | C111: février | D111: 100
A112: Divers | B112: 2022 | C112: mars | D112: 100
A113: Divers | B113: 2022 | C113: avril | D113: 100
A114: Divers | B114: 2022 | C114: mai | D114: 100
A115: Divers | B115: 2022 | C115: juin | D115: 100
A116: Divers | B116: 2022 | C116: juillet | D116: 100
A117: Divers | B117: 2022 | C117: août | D117: 100
A118: Divers | B118: 2022 | C118: septembre | D118: 100
A119: Divers | B119: 2022 | C119: octobre | D119: 100
A120: Divers | B120: 2022 | C120: novembre | D120: 100
A121: Divers | B121: 2022 | C121: décembre | D121: 100
A122: Épargne impôts | B122: 2021 | C122: janvier | D122: =GETPIVOTDATA("Montant",$A$218,"Catégorie","Épargne impôts","Mois","janvier","Année",2021) -> 0
A123: Épargne impôts | B123: 2021 | C123: février | D123: =GETPIVOTDATA("Montant",$A$218,"Catégorie","Épargne impôts","Mois","février","Année",2021) -> 0
A124: Épargne impôts | B124: 2021 | C124: mars | D124: =GETPIVOTDATA("Montant",$A$218,"Catégorie","Épargne impôts","Mois","mars","Année",2021) -> 600
A125: Épargne impôts | B125: 2021 | C125: avril | D125: =GETPIVOTDATA("Montant",$A$218,"Catégorie","Épargne impôts","Mois","avril","Année",2021) -> 200
A126: Épargne impôts | B126: 2021 | C126: mai | D126: =GETPIVOTDATA("Montant",$A$218,"Catégorie","Épargne impôts","Mois","mai","Année",2021) -> 0
A127: Épargne impôts | B127: 2021 | C127: juin | D127: =GETPIVOTDATA("Montant",$A$218,"Catégorie","Épargne impôts","Mois","juin","Année",2021) -> 0
A128: Épargne impôts | B128: 2021 | C128: juillet | D128: =GETPIVOTDATA("Montant",$A$218,"Catégorie","Épargne impôts","Mois","juillet","Année",2021) -> 300
A129: Épargne impôts | B129: 2021 | C129: août | D129: =GETPIVOTDATA("Montant",$A$218,"Catégorie","Épargne impôts","Mois","août","Année",2021) -> 0
A130: Épargne impôts | B130: 2021 | C130: septembre | D130: =GETPIVOTDATA("Montant",$A$218,"Catégorie","Épargne impôts","Mois","septembre","Année",2021) -> 0
A131: Épargne impôts | B131: 2021 | C131: octobre | D131: =GETPIVOTDATA("Montant",$A$218,"Catégorie","Épargne impôts","Mois","octobre","Année",2021) -> 0
A132: Épargne impôts | B132: 2021 | C132: novembre | D132: =GETPIVOTDATA("Montant",$A$218,"Catégorie","Épargne impôts","Mois","novembre","Année",2021) -> 0
A133: Épargne impôts | B133: 2021 | C133: décembre | D133: =GETPIVOTDATA("Montant",$A$218,"Catégorie","Épargne impôts","Mois","décembre","Année",2021) -> 0
A134: Épargne impôts | B134: 2022 | C134: janvier | D134: 100
A135: Épargne impôts | B135: 2022 | C135: février | D135: 100
A136: Épargne impôts | B136: 2022 | C136: mars | D136: 100
A137: Épargne impôts | B137: 2022 | C137: avril | D137: 100
A138: Épargne impôts | B138: 2022 | C138: mai | D138: 100
A139: Épargne impôts | B139: 2022 | C139: juin | D139: 100
A140: Épargne impôts | B140: 2022 | C140: juillet | D140: 100
A141: Épargne impôts | B141: 2022 | C141: août | D141: 100
A142: Épargne impôts | B142: 2022 | C142: septembre | D142: 100
A143: Épargne impôts | B143: 2022 | C143: octobre | D143: 100
A144: Épargne impôts | B144: 2022 | C144: novembre | D144: 100
A145: Épargne impôts | B145: 2022 | C145: décembre | D145: 100
A146: Personnel | B146: 2021 | C146: janvier | D146: =GETPIVOTDATA("Montant",$A$218,"Catégorie","Personnel","Mois","janvier","Année",2021) -> 125.61
A147: Personnel | B147: 2021 | C147: février | D147: =GETPIVOTDATA("Montant",$A$218,"Catégorie","Personnel","Mois","février","Année",2021) -> 330.56
A148: Personnel | B148: 2021 | C148: mars | D148: =GETPIVOTDATA("Montant",$A$218,"Catégorie","Personnel","Mois","mars","Année",2021) -> 280.04
A149: Personnel | B149: 2021 | C149: avril | D149: =GETPIVOTDATA("Montant",$A$218,"Catégorie","Personnel","Mois","avril","Année",2021) -> 297.15
A150: Personnel | B150: 2021 | C150: mai | D150: =GETPIVOTDATA("Montant",$A$218,"Catégorie","Personnel","Mois","mai","Année",2021) -> 242.18
A151: Personnel | B151: 2021 | C151: juin | D151: =GETPIVOTDATA("Montant",$A$218,"Catégorie","Personnel","Mois","juin","Année",2021) -> 392.8
A152: Personnel | B152: 2021 | C152: juillet | D152: =GETPIVOTDATA("Montant",$A$218,"Catégorie","Personnel","Mois","juillet","Année",2021) -> 196.76
A153: Personnel | B153: 2021 | C153: août | D153: =GETPIVOTDATA("Montant",$A$218,"Catégorie","Personnel","Mois","août","Année",2021) -> 1696.26
A154: Personnel | B154: 2021 | C154: septembre | D154: =GETPIVOTDATA("Montant",$A$218,"Catégorie","Personnel","Mois","septembre","Année",2021) -> 300.21
A155: Personnel | B155: 2021 | C155: octobre | D155: =GETPIVOTDATA("Montant",$A$218,"Catégorie","Personnel","Mois","octobre","Année",2021) -> 320.29
A156: Personnel | B156: 2021 | C156: novembre | D156: =GETPIVOTDATA("Montant",$A$218,"Catégorie","Personnel","Mois","novembre","Année",2021) -> 164.79
A157: Personnel | B157: 2021 | C157: décembre | D157: =GETPIVOTDATA("Montant",$A$218,"Catégorie","Personnel","Mois","décembre","Année",2021) -> 0
A158: Personnel | B158: 2022 | C158: janvier | D158: 100
A159: Personnel | B159: 2022 | C159: février | D159: 101
A160: Personnel | B160: 2022 | C160: mars | D160: 102
A161: Personnel | B161: 2022 | C161: avril | D161: 103
A162: Personnel | B162: 2022 | C162: mai | D162: 104
A163: Personnel | B163: 2022 | C163: juin | D163: 105
A164: Personnel | B164: 2022 | C164: juillet | D164: 106
A165: Personnel | B165: 2022 | C165: août | D165: 107
A166: Personnel | B166: 2022 | C166: septembre | D166: 108
A167: Personnel | B167: 2022 | C167: octobre | D167: 109
A168: Personnel | B168: 2022 | C168: novembre | D168: 110
A169: Personnel | B169: 2022 | C169: décembre | D169: 111
A170: Santé | B170: 2021 | C170: janvier | D170: =GETPIVOTDATA("Montant",$A$218,"Catégorie","Santé","Mois","janvier","Année",2021) -> 63.37
A171: Santé | B171: 2021 | C171: février | D171: =GETPIVOTDATA("Montant",$A$218,"Catégorie","Santé","Mois","février","Année",2021) -> 77.06
A172: Santé | B172: 2021 | C172: mars | D172: =GETPIVOTDATA("Montant",$A$218,"Catégorie","Santé","Mois","mars","Année",2021) -> 68.01
A173: Santé | B173: 2021 | C173: avril | D173: =GETPIVOTDATA("Montant",$A$218,"Catégorie","Santé","Mois","avril","Année",2021) -> 63.04
A174: Santé | B174: 2021 | C174: mai | D174: =GETPIVOTDATA("Montant",$A$218,"Catégorie","Santé","Mois","mai","Année",2021) -> 85.48
A175: Santé | B175: 2021 | C175: juin | D175: =GETPIVOTDATA("Montant",$A$218,"Catégorie","Santé","Mois","juin","Année",2021) -> 19.78
A176: Santé | B176: 2021 | C176: juillet | D176: =GETPIVOTDATA("Montant",$A$218,"Catégorie","Santé","Mois","juillet","Année",2021) -> 56.11
A177: Santé | B177: 2021 | C177: août | D177: =GETPIVOTDATA("Montant",$A$218,"Catégorie","Santé","Mois","août","Année",2021) -> 58.3
A178: Santé | B178: 2021 | C178: septembre | D178: =GETPIVOTDATA("Montant",$A$218,"Catégorie","Santé","Mois","septembre","Année",2021) -> 132.64
A179: Santé | B179: 2021 | C179: octobre | D179: =GETPIVOTDATA("Montant",$A$218,"Catégorie","Santé","Mois","octobre","Année",2021) -> 123.59
A180: Santé | B180: 2021 | C180: novembre | D180: =GETPIVOTDATA("Montant",$A$218,"Catégorie","Santé","Mois","novembre","Année",2021) -> 52.34
A181: Santé | B181: 2021 | C181: décembre | D181: =GETPIVOTDATA("Montant",$A$218,"Catégorie","Santé","Mois","décembre","Année",2021) -> 0
A182: Santé | B182: 2022 | C182: janvier | D182: 100
A183: Santé | B183: 2022 | C183: février | D183: 100
A184: Santé | B184: 2022 | C184: mars | D184: 100
A185: Santé | B185: 2022 | C185: avril | D185: 100
A186: Santé | B186: 2022 | C186: mai | D186: 100
A187: Santé | B187: 2022 | C187: juin | D187: 100
A188: Santé | B188: 2022 | C188: juillet | D188: 100
A189: Santé | B189: 2022 | C189: août | D189: 100
A190: Santé | B190: 2022 | C190: septembre | D190: 100
A191: Santé | B191: 2022 | C191: octobre | D191: 100
A192: Santé | B192: 2022 | C192: novembre | D192: 100
A193: Santé | B193: 2022 | C193: décembre | D193: 100
A194: Paiement des impôts | B194: 2021 | C194: janvier | D194: =GETPIVOTDATA("Montant",$A$218,"Catégorie","Paiement des impôts","Mois","janvier","Année",2021) -> 0
A195: Paiement des impôts | B195: 2021 | C195: février | D195: =GETPIVOTDATA("Montant",$A$218,"Catégorie","Paiement des impôts","Mois","février","Année",2021) -> 0
A196: Paiement des impôts | B196: 2021 | C196: mars | D196: =GETPIVOTDATA("Montant",$A$218,"Catégorie","Paiement des impôts","Mois","mars","Année",2021) -> 676
A197: Paiement des impôts | B197: 2021 | C197: avril | D197: =GETPIVOTDATA("Montant",$A$218,"Catégorie","Paiement des impôts","Mois","avril","Année",2021) -> 1221.44
A198: Paiement des impôts | B198: 2021 | C198: mai | D198: =GETPIVOTDATA("Montant",$A$218,"Catégorie","Paiement des impôts","Mois","mai","Année",2021) -> 0
A199: Paiement des impôts | B199: 2021 | C199: juin | D199: =GETPIVOTDATA("Montant",$A$218,"Catégorie","Paiement des impôts","Mois","juin","Année",2021) -> 676
A200: Paiement des impôts | B200: 2021 | C200: juillet | D200: =GETPIVOTDATA("Montant",$A$218,"Catégorie","Paiement des impôts","Mois","juillet","Année",2021) -> 0
... 29 more rows

Sheet Support (hidden)
A1: Mois | B1: Année 2021 | C1: Année 2022 | D1: MAX Left | E1: MAX Right | F1: Up Error Bar | G1: Down Error bar | H1: Up Data Label | I1: Down Data label | Y1: Alimentation | Z1: TRUE
A2: Janvier | B2: =IF($Z$1,SUMIFS(Data!D:D,Data!A:A,Support!$Y$1,Data!B:B,2021,Data!C:C,Support!A2),0)+IF($Z$2,SUMIFS(Data!D:D,Data!A:A,Support!$Y$2,Data!B:B,2021,Data!C:C,Support!A2),0)+IF($Z$3,SUMIFS(Data!D:D,Data!A:A,Support!$Y$3,Data!B:B,2021,Data!C:C,Support!A2),0)+IF($Z$4,SUMIFS(Data!D:D,Data!A:A,Support!$Y$4,Data!B:B,2021,Data!C:C,Support!A2),0)+IF($Z$5,SUMIFS(Data!D:D,Data!A:A,Support!$Y$5,Data!B:B,2021,Data!C:C,Support!A2),0)+IF($Z$6,SUMIFS(Data!D:D,Data!A:A,Support!$Y$6,Data!B:B,2021,Data!C:C,Support!A2),0)+IF($Z$7,SUMIFS(Data!D:D,Data!A:A,Support!$Y$7,Data!B:B,2021,Data!C:C,Support!A2),0)+IF($Z$8,SUMIFS(Data!D:D,Data!A:A,Support!$Y$8,Data!B:B,2021,Data!C:C,Support!A2),0)+IF($Z$9,SUMIFS(Data!D:D,Data!A:A,Support!$Y$9,Data!B:B,2021,Data!C:C,Support!A2),0) -> 685.09 | C2: =IF($Z$1,SUMIFS(Data!D:D,Data!A:A,Support!$Y$1,Data!B:B,2022,Data!C:C,Support!A2),0)+IF($Z$2,SUMIFS(Data!D:D,Data!A:A,Support!$Y$2,Data!B:B,2022,Data!C:C,Support!A2),0)+IF($Z$3,SUMIFS(Data!D:D,Data!A:A,Support!$Y$3,Data!B:B,2022,Data!C:C,Support!A2),0)+IF($Z$4,SUMIFS(Data!D:D,Data!A:A,Support!$Y$4,Data!B:B,2022,Data!C:C,Support!A2),0)+IF($Z$5,SUMIFS(Data!D:D,Data!A:A,Support!$Y$5,Data!B:B,2022,Data!C:C,Support!A2),0)+IF($Z$6,SUMIFS(Data!D:D,Data!A:A,Support!$Y$6,Data!B:B,2022,Data!C:C,Support!A2),0)+IF($Z$7,SUMIFS(Data!D:D,Data!A:A,Support!$Y$7,Data!B:B,2022,Data!C:C,Support!A2),0)+IF($Z$8,SUMIFS(Data!D:D,Data!A:A,Support!$Y$8,Data!B:B,2022,Data!C:C,Support!A2),0)+IF($Z$9,SUMIFS(Data!D:D,Data!A:A,Support!$Y$9,Data!B:B,2022,Data!C:C,Support!A2),0) -> 700 | D2: =MAX(B2:C2) -> 700 | E2: =D2 -> 700 | F2: =IF(C2>B2,C2-B2,NA()) -> 14.91 | G2: =IF(C2<B2,B2-C2,NA()) ->  | H2: =IF(ISERROR(F2),"","+" & TEXT(F2/B2,"0%")) -> +2% | I2: =IF(ISERROR(G2),"","-"&TEXT(G2/B2,"0%")) ->  | Y2: Animaux | Z2: FALSE
A3: Février | B3: =IF($Z$1,SUMIFS(Data!D:D,Data!A:A,Support!$Y$1,Data!B:B,2021,Data!C:C,Support!A3),0)+IF($Z$2,SUMIFS(Data!D:D,Data!A:A,Support!$Y$2,Data!B:B,2021,Data!C:C,Support!A3),0)+IF($Z$3,SUMIFS(Data!D:D,Data!A:A,Support!$Y$3,Data!B:B,2021,Data!C:C,Support!A3),0)+IF($Z$4,SUMIFS(Data!D:D,Data!A:A,Support!$Y$4,Data!B:B,2021,Data!C:C,Support!A3),0)+IF($Z$5,SUMIFS(Data!D:D,Data!A:A,Support!$Y$5,Data!B:B,2021,Data!C:C,Support!A3),0)+IF($Z$6,SUMIFS(Data!D:D,Data!A:A,Support!$Y$6,Data!B:B,2021,Data!C:C,Support!A3),0)+IF($Z$7,SUMIFS(Data!D:D,Data!A:A,Support!$Y$7,Data!B:B,2021,Data!C:C,Support!A3),0)+IF($Z$8,SUMIFS(Data!D:D,Data!A:A,Support!$Y$8,Data!B:B,2021,Data!C:C,Support!A3),0)+IF($Z$9,SUMIFS(Data!D:D,Data!A:A,Support!$Y$9,Data!B:B,2021,Data!C:C,Support!A3),0) -> 755.77 | C3: =IF($Z$1,SUMIFS(Data!D:D,Data!A:A,Support!$Y$1,Data!B:B,2022,Data!C:C,Support!A3),0)+IF($Z$2,SUMIFS(Data!D:D,Data!A:A,Support!$Y$2,Data!B:B,2022,Data!C:C,Support!A3),0)+IF($Z$3,SUMIFS(Data!D:D,Data!A:A,Support!$Y$3,Data!B:B,2022,Data!C:C,Support!A3),0)+IF($Z$4,SUMIFS(Data!D:D,Data!A:A,Support!$Y$4,Data!B:B,2022,Data!C:C,Support!A3),0)+IF($Z$5,SUMIFS(Data!D:D,Data!A:A,Support!$Y$5,Data!B:B,2022,Data!C:C,Support!A3),0)+IF($Z$6,SUMIFS(Data!D:D,Data!A:A,Support!$Y$6,Data!B:B,2022,Data!C:C,Support!A3),0)+IF($Z$7,SUMIFS(Data!D:D,Data!A:A,Support!$Y$7,Data!B:B,2022,Data!C:C,Support!A3),0)+IF($Z$8,SUMIFS(Data!D:D,Data!A:A,Support!$Y$8,Data!B:B,2022,Data!C:C,Support!A3),0)+IF($Z$9,SUMIFS(Data!D:D,Data!A:A,Support!$Y$9,Data!B:B,2022,Data!C:C,Support!A3),0) -> 750 | D3: =MAX(B3:C3) -> 755.77 | E3: =D3 -> 755.77 | F3: =IF(C3>B3,C3-B3,NA()) ->  | G3: =IF(C3<B3,B3-C3,NA()) -> 5.77 | H3: =IF(ISERROR(F3),"","+" & TEXT(F3/B3,"0%")) ->  | I3: =IF(ISERROR(G3),"","-"&TEXT(G3/B3,"0%")) -> -1% | Y3: Auto | Z3: FALSE
A4: Mars | B4: =IF($Z$1,SUMIFS(Data!D:D,Data!A:A,Support!$Y$1,Data!B:B,2021,Data!C:C,Support!A4),0)+IF($Z$2,SUMIFS(Data!D:D,Data!A:A,Support!$Y$2,Data!B:B,2021,Data!C:C,Support!A4),0)+IF($Z$3,SUMIFS(Data!D:D,Data!A:A,Support!$Y$3,Data!B:B,2021,Data!C:C,Support!A4),0)+IF($Z$4,SUMIFS(Data!D:D,Data!A:A,Support!$Y$4,Data!B:B,2021,Data!C:C,Support!A4),0)+IF($Z$5,SUMIFS(Data!D:D,Data!A:A,Support!$Y$5,Data!B:B,2021,Data!C:C,Support!A4),0)+IF($Z$6,SUMIFS(Data!D:D,Data!A:A,Support!$Y$6,Data!B:B,2021,Data!C:C,Support!A4),0)+IF($Z$7,SUMIFS(Data!D:D,Data!A:A,Support!$Y$7,Data!B:B,2021,Data!C:C,Support!A4),0)+IF($Z$8,SUMIFS(Data!D:D,Data!A:A,Support!$Y$8,Data!B:B,2021,Data!C:C,Support!A4),0)+IF($Z$9,SUMIFS(Data!D:D,Data!A:A,Support!$Y$9,Data!B:B,2021,Data!C:C,Support!A4),0) -> 1113.94 | C4: =IF($Z$1,SUMIFS(Data!D:D,Data!A:A,Support!$Y$1,Data!B:B,2022,Data!C:C,Support!A4),0)+IF($Z$2,SUMIFS(Data!D:D,Data!A:A,Support!$Y$2,Data!B:B,2022,Data!C:C,Support!A4),0)+IF($Z$3,SUMIFS(Data!D:D,Data!A:A,Support!$Y$3,Data!B:B,2022,Data!C:C,Support!A4),0)+IF($Z$4,SUMIFS(Data!D:D,Data!A:A,Support!$Y$4,Data!B:B,2022,Data!C:C,Support!A4),0)+IF($Z$5,SUMIFS(Data!D:D,Data!A:A,Support!$Y$5,Data!B:B,2022,Data!C:C,Support!A4),0)+IF($Z$6,SUMIFS(Data!D:D,Data!A:A,Support!$Y$6,Data!B:B,2022,Data!C:C,Support!A4),0)+IF($Z$7,SUMIFS(Data!D:D,Data!A:A,Support!$Y$7,Data!B:B,2022,Data!C:C,Support!A4),0)+IF($Z$8,SUMIFS(Data!D:D,Data!A:A,Support!$Y$8,Data!B:B,2022,Data!C:C,Support!A4),0)+IF($Z$9,SUMIFS(Data!D:D,Data!A:A,Support!$Y$9,Data!B:B,2022,Data!C:C,Support!A4),0) -> 800 | D4: 1113.94 | E4: 1113.94 | G4: 313.94 | I4: -28% | Y4: Bordeaux | Z4: FALSE
A5: Avril | B5: =IF($Z$1,SUMIFS(Data!D:D,Data!A:A,Support!$Y$1,Data!B:B,2021,Data!C:C,Support!A5),0)+IF($Z$2,SUMIFS(Data!D:D,Data!A:A,Support!$Y$2,Data!B:B,2021,Data!C:C,Support!A5),0)+IF($Z$3,SUMIFS(Data!D:D,Data!A:A,Support!$Y$3,Data!B:B,2021,Data!C:C,Support!A5),0)+IF($Z$4,SUMIFS(Data!D:D,Data!A:A,Support!$Y$4,Data!B:B,2021,Data!C:C,Support!A5),0)+IF($Z$5,SUMIFS(Data!D:D,Data!A:A,Support!$Y$5,Data!B:B,2021,Data!C:C,Support!A5),0)+IF($Z$6,SUMIFS(Data!D:D,Data!A:A,Support!$Y$6,Data!B:B,2021,Data!C:C,Support!A5),0)+IF($Z$7,SUMIFS(Data!D:D,Data!A:A,Support!$Y$7,Data!B:B,2021,Data!C:C,Support!A5),0)+IF($Z$8,SUMIFS(Data!D:D,Data!A:A,Support!$Y$8,Data!B:B,2021,Data!C:C,Support!A5),0)+IF($Z$9,SUMIFS(Data!D:D,Data!A:A,Support!$Y$9,Data!B:B,2021,Data!C:C,Support!A5),0) -> 927.33 | C5: =IF($Z$1,SUMIFS(Data!D:D,Data!A:A,Support!$Y$1,Data!B:B,2022,Data!C:C,Support!A5),0)+IF($Z$2,SUMIFS(Data!D:D,Data!A:A,Support!$Y$2,Data!B:B,2022,Data!C:C,Support!A5),0)+IF($Z$3,SUMIFS(Data!D:D,Data!A:A,Support!$Y$3,Data!B:B,2022,Data!C:C,Support!A5),0)+IF($Z$4,SUMIFS(Data!D:D,Data!A:A,Support!$Y$4,Data!B:B,2022,Data!C:C,Support!A5),0)+IF($Z$5,SUMIFS(Data!D:D,Data!A:A,Support!$Y$5,Data!B:B,2022,Data!C:C,Support!A5),0)+IF($Z$6,SUMIFS(Data!D:D,Data!A:A,Support!$Y$6,Data!B:B,2022,Data!C:C,Support!A5),0)+IF($Z$7,SUMIFS(Data!D:D,Data!A:A,Support!$Y$7,Data!B:B,2022,Data!C:C,Support!A5),0)+IF($Z$8,SUMIFS(Data!D:D,Data!A:A,Support!$Y$8,Data!B:B,2022,Data!C:C,Support!A5),0)+IF($Z$9,SUMIFS(Data!D:D,Data!A:A,Support!$Y$9,Data!B:B,2022,Data!C:C,Support!A5),0) -> 950 | D5: 950 | E5: 950 | F5: 22.67 | H5: +2% | Y5: Divers | Z5: FALSE
A6: Mai | B6: =IF($Z$1,SUMIFS(Data!D:D,Data!A:A,Support!$Y$1,Data!B:B,2021,Data!C:C,Support!A6),0)+IF($Z$2,SUMIFS(Data!D:D,Data!A:A,Support!$Y$2,Data!B:B,2021,Data!C:C,Support!A6),0)+IF($Z$3,SUMIFS(Data!D:D,Data!A:A,Support!$Y$3,Data!B:B,2021,Data!C:C,Support!A6),0)+IF($Z$4,SUMIFS(Data!D:D,Data!A:A,Support!$Y$4,Data!B:B,2021,Data!C:C,Support!A6),0)+IF($Z$5,SUMIFS(Data!D:D,Data!A:A,Support!$Y$5,Data!B:B,2021,Data!C:C,Support!A6),0)+IF($Z$6,SUMIFS(Data!D:D,Data!A:A,Support!$Y$6,Data!B:B,2021,Data!C:C,Support!A6),0)+IF($Z$7,SUMIFS(Data!D:D,Data!A:A,Support!$Y$7,Data!B:B,2021,Data!C:C,Support!A6),0)+IF($Z$8,SUMIFS(Data!D:D,Data!A:A,Support!$Y$8,Data!B:B,2021,Data!C:C,Support!A6),0)+IF($Z$9,SUMIFS(Data!D:D,Data!A:A,Support!$Y$9,Data!B:B,2021,Data!C:C,Support!A6),0) -> 764.57 | C6: =IF($Z$1,SUMIFS(Data!D:D,Data!A:A,Support!$Y$1,Data!B:B,2022,Data!C:C,Support!A6),0)+IF($Z$2,SUMIFS(Data!D:D,Data!A:A,Support!$Y$2,Data!B:B,2022,Data!C:C,Support!A6),0)+IF($Z$3,SUMIFS(Data!D:D,Data!A:A,Support!$Y$3,Data!B:B,2022,Data!C:C,Support!A6),0)+IF($Z$4,SUMIFS(Data!D:D,Data!A:A,Support!$Y$4,Data!B:B,2022,Data!C:C,Support!A6),0)+IF($Z$5,SUMIFS(Data!D:D,Data!A:A,Support!$Y$5,Data!B:B,2022,Data!C:C,Support!A6),0)+IF($Z$6,SUMIFS(Data!D:D,Data!A:A,Support!$Y$6,Data!B:B,2022,Data!C:C,Support!A6),0)+IF($Z$7,SUMIFS(Data!D:D,Data!A:A,Support!$Y$7,Data!B:B,2022,Data!C:C,Support!A6),0)+IF($Z$8,SUMIFS(Data!D:D,Data!A:A,Support!$Y$8,Data!B:B,2022,Data!C:C,Support!A6),0)+IF($Z$9,SUMIFS(Data!D:D,Data!A:A,Support!$Y$9,Data!B:B,2022,Data!C:C,Support!A6),0) -> 650 | D6: 764.57 | E6: 764.57 | G6: 114.57 | I6: -15% | Y6: Épargne impôts | Z6: FALSE
A7: Juin | B7: =IF($Z$1,SUMIFS(Data!D:D,Data!A:A,Support!$Y$1,Data!B:B,2021,Data!C:C,Support!A7),0)+IF($Z$2,SUMIFS(Data!D:D,Data!A:A,Support!$Y$2,Data!B:B,2021,Data!C:C,Support!A7),0)+IF($Z$3,SUMIFS(Data!D:D,Data!A:A,Support!$Y$3,Data!B:B,2021,Data!C:C,Support!A7),0)+IF($Z$4,SUMIFS(Data!D:D,Data!A:A,Support!$Y$4,Data!B:B,2021,Data!C:C,Support!A7),0)+IF($Z$5,SUMIFS(Data!D:D,Data!A:A,Support!$Y$5,Data!B:B,2021,Data!C:C,Support!A7),0)+IF($Z$6,SUMIFS(Data!D:D,Data!A:A,Support!$Y$6,Data!B:B,2021,Data!C:C,Support!A7),0)+IF($Z$7,SUMIFS(Data!D:D,Data!A:A,Support!$Y$7,Data!B:B,2021,Data!C:C,Support!A7),0)+IF($Z$8,SUMIFS(Data!D:D,Data!A:A,Support!$Y$8,Data!B:B,2021,Data!C:C,Support!A7),0)+IF($Z$9,SUMIFS(Data!D:D,Data!A:A,Support!$Y$9,Data!B:B,2021,Data!C:C,Support!A7),0) -> 909.36 | C7: =IF($Z$1,SUMIFS(Data!D:D,Data!A:A,Support!$Y$1,Data!B:B,2022,Data!C:C,Support!A7),0)+IF($Z$2,SUMIFS(Data!D:D,Data!A:A,Support!$Y$2,Data!B:B,2022,Data!C:C,Support!A7),0)+IF($Z$3,SUMIFS(Data!D:D,Data!A:A,Support!$Y$3,Data!B:B,2022,Data!C:C,Support!A7),0)+IF($Z$4,SUMIFS(Data!D:D,Data!A:A,Support!$Y$4,Data!B:B,2022,Data!C:C,Support!A7),0)+IF($Z$5,SUMIFS(Data!D:D,Data!A:A,Support!$Y$5,Data!B:B,2022,Data!C:C,Support!A7),0)+IF($Z$6,SUMIFS(Data!D:D,Data!A:A,Support!$Y$6,Data!B:B,2022,Data!C:C,Support!A7),0)+IF($Z$7,SUMIFS(Data!D:D,Data!A:A,Support!$Y$7,Data!B:B,2022,Data!C:C,Support!A7),0)+IF($Z$8,SUMIFS(Data!D:D,Data!A:A,Support!$Y$8,Data!B:B,2022,Data!C:C,Support!A7),0)+IF($Z$9,SUMIFS(Data!D:D,Data!A:A,Support!$Y$9,Data!B:B,2022,Data!C:C,Support!A7),0) -> 900 | D7: 909.36 | E7: 909.36 | G7: 9.36 | I7: -1% | Y7: Personnel | Z7: FALSE
A8: Juillet | B8: =IF($Z$1,SUMIFS(Data!D:D,Data!A:A,Support!$Y$1,Data!B:B,2021,Data!C:C,Support!A8),0)+IF($Z$2,SUMIFS(Data!D:D,Data!A:A,Support!$Y$2,Data!B:B,2021,Data!C:C,Support!A8),0)+IF($Z$3,SUMIFS(Data!D:D,Data!A:A,Support!$Y$3,Data!B:B,2021,Data!C:C,Support!A8),0)+IF($Z$4,SUMIFS(Data!D:D,Data!A:A,Support!$Y$4,Data!B:B,2021,Data!C:C,Support!A8),0)+IF($Z$5,SUMIFS(Data!D:D,Data!A:A,Support!$Y$5,Data!B:B,2021,Data!C:C,Support!A8),0)+IF($Z$6,SUMIFS(Data!D:D,Data!A:A,Support!$Y$6,Data!B:B,2021,Data!C:C,Support!A8),0)+IF($Z$7,SUMIFS(Data!D:D,Data!A:A,Support!$Y$7,Data!B:B,2021,Data!C:C,Support!A8),0)+IF($Z$8,SUMIFS(Data!D:D,Data!A:A,Support!$Y$8,Data!B:B,2021,Data!C:C,Support!A8),0)+IF($Z$9,SUMIFS(Data!D:D,Data!A:A,Support!$Y$9,Data!B:B,2021,Data!C:C,Support!A8),0) -> 840.28 | C8: =IF($Z$1,SUMIFS(Data!D:D,Data!A:A,Support!$Y$1,Data!B:B,2022,Data!C:C,Support!A8),0)+IF($Z$2,SUMIFS(Data!D:D,Data!A:A,Support!$Y$2,Data!B:B,2022,Data!C:C,Support!A8),0)+IF($Z$3,SUMIFS(Data!D:D,Data!A:A,Support!$Y$3,Data!B:B,2022,Data!C:C,Support!A8),0)+IF($Z$4,SUMIFS(Data!D:D,Data!A:A,Support!$Y$4,Data!B:B,2022,Data!C:C,Support!A8),0)+IF($Z$5,SUMIFS(Data!D:D,Data!A:A,Support!$Y$5,Data!B:B,2022,Data!C:C,Support!A8),0)+IF($Z$6,SUMIFS(Data!D:D,Data!A:A,Support!$Y$6,Data!B:B,2022,Data!C:C,Support!A8),0)+IF($Z$7,SUMIFS(Data!D:D,Data!A:A,Support!$Y$7,Data!B:B,2022,Data!C:C,Support!A8),0)+IF($Z$8,SUMIFS(Data!D:D,Data!A:A,Support!$Y$8,Data!B:B,2022,Data!C:C,Support!A8),0)+IF($Z$9,SUMIFS(Data!D:D,Data!A:A,Support!$Y$9,Data!B:B,2022,Data!C:C,Support!A8),0) -> 800 | D8: 840.28 | E8: 840.28 | G8: 40.28 | I8: -5% | Y8: Santé | Z8: FALSE
A9: Août | B9: =IF($Z$1,SUMIFS(Data!D:D,Data!A:A,Support!$Y$1,Data!B:B,2021,Data!C:C,Support!A9),0)+IF($Z$2,SUMIFS(Data!D:D,Data!A:A,Support!$Y$2,Data!B:B,2021,Data!C:C,Support!A9),0)+IF($Z$3,SUMIFS(Data!D:D,Data!A:A,Support!$Y$3,Data!B:B,2021,Data!C:C,Support!A9),0)+IF($Z$4,SUMIFS(Data!D:D,Data!A:A,Support!$Y$4,Data!B:B,2021,Data!C:C,Support!A9),0)+IF($Z$5,SUMIFS(Data!D:D,Data!A:A,Support!$Y$5,Data!B:B,2021,Data!C:C,Support!A9),0)+IF($Z$6,SUMIFS(Data!D:D,Data!A:A,Support!$Y$6,Data!B:B,2021,Data!C:C,Support!A9),0)+IF($Z$7,SUMIFS(Data!D:D,Data!A:A,Support!$Y$7,Data!B:B,2021,Data!C:C,Support!A9),0)+IF($Z$8,SUMIFS(Data!D:D,Data!A:A,Support!$Y$8,Data!B:B,2021,Data!C:C,Support!A9),0)+IF($Z$9,SUMIFS(Data!D:D,Data!A:A,Support!$Y$9,Data!B:B,2021,Data!C:C,Support!A9),0) -> 907.77 | C9: =IF($Z$1,SUMIFS(Data!D:D,Data!A:A,Support!$Y$1,Data!B:B,2022,Data!C:C,Support!A9),0)+IF($Z$2,SUMIFS(Data!D:D,Data!A:A,Support!$Y$2,Data!B:B,2022,Data!C:C,Support!A9),0)+IF($Z$3,SUMIFS(Data!D:D,Data!A:A,Support!$Y$3,Data!B:B,2022,Data!C:C,Support!A9),0)+IF($Z$4,SUMIFS(Data!D:D,Data!A:A,Support!$Y$4,Data!B:B,2022,Data!C:C,Support!A9),0)+IF($Z$5,SUMIFS(Data!D:D,Data!A:A,Support!$Y$5,Data!B:B,2022,Data!C:C,Support!A9),0)+IF($Z$6,SUMIFS(Data!D:D,Data!A:A,Support!$Y$6,Data!B:B,2022,Data!C:C,Support!A9),0)+IF($Z$7,SUMIFS(Data!D:D,Data!A:A,Support!$Y$7,Data!B:B,2022,Data!C:C,Support!A9),0)+IF($Z$8,SUMIFS(Data!D:D,Data!A:A,Support!$Y$8,Data!B:B,2022,Data!C:C,Support!A9),0)+IF($Z$9,SUMIFS(Data!D:D,Data!A:A,Support!$Y$9,Data!B:B,2022,Data!C:C,Support!A9),0) -> 850 | D9: 907.77 | E9: 907.77 | G9: 57.77 | I9: -6% | Y9: Paiement des impôts | Z9: FALSE
A10: Septembre | B10: =IF($Z$1,SUMIFS(Data!D:D,Data!A:A,Support!$Y$1,Data!B:B,2021,Data!C:C,Support!A10),0)+IF($Z$2,SUMIFS(Data!D:D,Data!A:A,Support!$Y$2,Data!B:B,2021,Data!C:C,Support!A10),0)+IF($Z$3,SUMIFS(Data!D:D,Data!A:A,Support!$Y$3,Data!B:B,2021,Data!C:C,Support!A10),0)+IF($Z$4,SUMIFS(Data!D:D,Data!A:A,Support!$Y$4,Data!B:B,2021,Data!C:C,Support!A10),0)+IF($Z$5,SUMIFS(Data!D:D,Data!A:A,Support!$Y$5,Data!B:B,2021,Data!C:C,Support!A10),0)+IF($Z$6,SUMIFS(Data!D:D,Data!A:A,Support!$Y$6,Data!B:B,2021,Data!C:C,Support!A10),0)+IF($Z$7,SUMIFS(Data!D:D,Data!A:A,Support!$Y$7,Data!B:B,2021,Data!C:C,Support!A10),0)+IF($Z$8,SUMIFS(Data!D:D,Data!A:A,Support!$Y$8,Data!B:B,2021,Data!C:C,Support!A10),0)+IF($Z$9,SUMIFS(Data!D:D,Data!A:A,Support!$Y$9,Data!B:B,2021,Data!C:C,Support!A10),0) -> 1017.35 | C10: =IF($Z$1,SUMIFS(Data!D:D,Data!A:A,Support!$Y$1,Data!B:B,2022,Data!C:C,Support!A10),0)+IF($Z$2,SUMIFS(Data!D:D,Data!A:A,Support!$Y$2,Data!B:B,2022,Data!C:C,Support!A10),0)+IF($Z$3,SUMIFS(Data!D:D,Data!A:A,Support!$Y$3,Data!B:B,2022,Data!C:C,Support!A10),0)+IF($Z$4,SUMIFS(Data!D:D,Data!A:A,Support!$Y$4,Data!B:B,2022,Data!C:C,Support!A10),0)+IF($Z$5,SUMIFS(Data!D:D,Data!A:A,Support!$Y$5,Data!B:B,2022,Data!C:C,Support!A10),0)+IF($Z$6,SUMIFS(Data!D:D,Data!A:A,Support!$Y$6,Data!B:B,2022,Data!C:C,Support!A10),0)+IF($Z$7,SUMIFS(Data!D:D,Data!A:A,Support!$Y$7,Data!B:B,2022,Data!C:C,Support!A10),0)+IF($Z$8,SUMIFS(Data!D:D,Data!A:A,Support!$Y$8,Data!B:B,2022,Data!C:C,Support!A10),0)+IF($Z$9,SUMIFS(Data!D:D,Data!A:A,Support!$Y$9,Data!B:B,2022,Data!C:C,Support!A10),0) -> 875 | D10: 1017.35 | E10: 1017.35 | G10: 142.35 | I10: -14%
A11: Octobre | B11: =IF($Z$1,SUMIFS(Data!D:D,Data!A:A,Support!$Y$1,Data!B:B,2021,Data!C:C,Support!A11),0)+IF($Z$2,SUMIFS(Data!D:D,Data!A:A,Support!$Y$2,Data!B:B,2021,Data!C:C,Support!A11),0)+IF($Z$3,SUMIFS(Data!D:D,Data!A:A,Support!$Y$3,Data!B:B,2021,Data!C:C,Support!A11),0)+IF($Z$4,SUMIFS(Data!D:D,Data!A:A,Support!$Y$4,Data!B:B,2021,Data!C:C,Support!A11),0)+IF($Z$5,SUMIFS(Data!D:D,Data!A:A,Support!$Y$5,Data!B:B,2021,Data!C:C,Support!A11),0)+IF($Z$6,SUMIFS(Data!D:D,Data!A:A,Support!$Y$6,Data!B:B,2021,Data!C:C,Support!A11),0)+IF($Z$7,SUMIFS(Data!D:D,Data!A:A,Support!$Y$7,Data!B:B,2021,Data!C:C,Support!A11),0)+IF($Z$8,SUMIFS(Data!D:D,Data!A:A,Support!$Y$8,Data!B:B,2021,Data!C:C,Support!A11),0)+IF($Z$9,SUMIFS(Data!D:D,Data!A:A,Support!$Y$9,Data!B:B,2021,Data!C:C,Support!A11),0) -> 866.96 | C11: =IF($Z$1,SUMIFS(Data!D:D,Data!A:A,Support!$Y$1,Data!B:B,2022,Data!C:C,Support!A11),0)+IF($Z$2,SUMIFS(Data!D:D,Data!A:A,Support!$Y$2,Data!B:B,2022,Data!C:C,Support!A11),0)+IF($Z$3,SUMIFS(Data!D:D,Data!A:A,Support!$Y$3,Data!B:B,2022,Data!C:C,Support!A11),0)+IF($Z$4,SUMIFS(Data!D:D,Data!A:A,Support!$Y$4,Data!B:B,2022,Data!C:C,Support!A11),0)+IF($Z$5,SUMIFS(Data!D:D,Data!A:A,Support!$Y$5,Data!B:B,2022,Data!C:C,Support!A11),0)+IF($Z$6,SUMIFS(Data!D:D,Data!A:A,Support!$Y$6,Data!B:B,2022,Data!C:C,Support!A11),0)+IF($Z$7,SUMIFS(Data!D:D,Data!A:A,Support!$Y$7,Data!B:B,2022,Data!C:C,Support!A11),0)+IF($Z$8,SUMIFS(Data!D:D,Data!A:A,Support!$Y$8,Data!B:B,2022,Data!C:C,Support!A11),0)+IF($Z$9,SUMIFS(Data!D:D,Data!A:A,Support!$Y$9,Data!B:B,2022,Data!C:C,Support!A11),0) -> 892 | D11: 892 | E11: 892 | F11: 25.04 | H11: +3%
A12: Novembre | B12: =IF($Z$1,SUMIFS(Data!D:D,Data!A:A,Support!$Y$1,Data!B:B,2021,Data!C:C,Support!A12),0)+IF($Z$2,SUMIFS(Data!D:D,Data!A:A,Support!$Y$2,Data!B:B,2021,Data!C:C,Support!A12),0)+IF($Z$3,SUMIFS(Data!D:D,Data!A:A,Support!$Y$3,Data!B:B,2021,Data!C:C,Support!A12),0)+IF($Z$4,SUMIFS(Data!D:D,Data!A:A,Support!$Y$4,Data!B:B,2021,Data!C:C,Support!A12),0)+IF($Z$5,SUMIFS(Data!D:D,Data!A:A,Support!$Y$5,Data!B:B,2021,Data!C:C,Support!A12),0)+IF($Z$6,SUMIFS(Data!D:D,Data!A:A,Support!$Y$6,Data!B:B,2021,Data!C:C,Support!A12),0)+IF($Z$7,SUMIFS(Data!D:D,Data!A:A,Support!$Y$7,Data!B:B,2021,Data!C:C,Support!A12),0)+IF($Z$8,SUMIFS(Data!D:D,Data!A:A,Support!$Y$8,Data!B:B,2021,Data!C:C,Support!A12),0)+IF($Z$9,SUMIFS(Data!D:D,Data!A:A,Support!$Y$9,Data!B:B,2021,Data!C:C,Support!A12),0) -> 686.75 | C12: =IF($Z$1,SUMIFS(Data!D:D,Data!A:A,Support!$Y$1,Data!B:B,2022,Data!C:C,Support!A12),0)+IF($Z$2,SUMIFS(Data!D:D,Data!A:A,Support!$Y$2,Data!B:B,2022,Data!C:C,Support!A12),0)+IF($Z$3,SUMIFS(Data!D:D,Data!A:A,Support!$Y$3,Data!B:B,2022,Data!C:C,Support!A12),0)+IF($Z$4,SUMIFS(Data!D:D,Data!A:A,Support!$Y$4,Data!B:B,2022,Data!C:C,Support!A12),0)+IF($Z$5,SUMIFS(Data!D:D,Data!A:A,Support!$Y$5,Data!B:B,2022,Data!C:C,Support!A12),0)+IF($Z$6,SUMIFS(Data!D:D,Data!A:A,Support!$Y$6,Data!B:B,2022,Data!C:C,Support!A12),0)+IF($Z$7,SUMIFS(Data!D:D,Data!A:A,Support!$Y$7,Data!B:B,2022,Data!C:C,Support!A12),0)+IF($Z$8,SUMIFS(Data!D:D,Data!A:A,Support!$Y$8,Data!B:B,2022,Data!C:C,Support!A12),0)+IF($Z$9,SUMIFS(Data!D:D,Data!A:A,Support!$Y$9,Data!B:B,2022,Data!C:C,Support!A12),0) -> 900 | D12: 900 | E12: 900 | F12: 213.25 | H12: +31%
A13: Décembre | B13: =IF($Z$1,SUMIFS(Data!D:D,Data!A:A,Support!$Y$1,Data!B:B,2021,Data!C:C,Support!A13),0)+IF($Z$2,SUMIFS(Data!D:D,Data!A:A,Support!$Y$2,Data!B:B,2021,Data!C:C,Support!A13),0)+IF($Z$3,SUMIFS(Data!D:D,Data!A:A,Support!$Y$3,Data!B:B,2021,Data!C:C,Support!A13),0)+IF($Z$4,SUMIFS(Data!D:D,Data!A:A,Support!$Y$4,Data!B:B,2021,Data!C:C,Support!A13),0)+IF($Z$5,SUMIFS(Data!D:D,Data!A:A,Support!$Y$5,Data!B:B,2021,Data!C:C,Support!A13),0)+IF($Z$6,SUMIFS(Data!D:D,Data!A:A,Support!$Y$6,Data!B:B,2021,Data!C:C,Support!A13),0)+IF($Z$7,SUMIFS(Data!D:D,Data!A:A,Support!$Y$7,Data!B:B,2021,Data!C:C,Support!A13),0)+IF($Z$8,SUMIFS(Data!D:D,Data!A:A,Support!$Y$8,Data!B:B,2021,Data!C:C,Support!A13),0)+IF($Z$9,SUMIFS(Data!D:D,Data!A:A,Support!$Y$9,Data!B:B,2021,Data!C:C,Support!A13),0) -> 0 | C13: =IF($Z$1,SUMIFS(Data!D:D,Data!A:A,Support!$Y$1,Data!B:B,2022,Data!C:C,Support!A13),0)+IF($Z$2,SUMIFS(Data!D:D,Data!A:A,Support!$Y$2,Data!B:B,2022,Data!C:C,Support!A13),0)+IF($Z$3,SUMIFS(Data!D:D,Data!A:A,Support!$Y$3,Data!B:B,2022,Data!C:C,Support!A13),0)+IF($Z$4,SUMIFS(Data!D:D,Data!A:A,Support!$Y$4,Data!B:B,2022,Data!C:C,Support!A13),0)+IF($Z$5,SUMIFS(Data!D:D,Data!A:A,Support!$Y$5,Data!B:B,2022,Data!C:C,Support!A13),0)+IF($Z$6,SUMIFS(Data!D:D,Data!A:A,Support!$Y$6,Data!B:B,2022,Data!C:C,Support!A13),0)+IF($Z$7,SUMIFS(Data!D:D,Data!A:A,Support!$Y$7,Data!B:B,2022,Data!C:C,Support!A13),0)+IF($Z$8,SUMIFS(Data!D:D,Data!A:A,Support!$Y$8,Data!B:B,2022,Data!C:C,Support!A13),0)+IF($Z$9,SUMIFS(Data!D:D,Data!A:A,Support!$Y$9,Data!B:B,2022,Data!C:C,Support!A13),0) -> 1000 | D13: 1000 | E13: 1000 | F13: 1000

Sheet Chart
B2: Comparaison entre 2021 et 2022

Sheet Vacances 2021
A1: Compte | B1: (All)
A2: Année | B2: 2021
A3: Catégorie | B3: Divers
A5: Sum of Montant | B5: Column Labels
A6: Row Labels | B6: Sortie | C6: Grand Total
A7: Vacances Hébergement | B7: 1150 | C7: 1150
A8: Vacances Nourriture | B8: 358.07 | C8: 358.07
A9: Vacances Rencontre | B9: 100 | C9: 100
A10: Vacances Transport | B10: 68.98 | C10: 68.98
A11: Vacances Vin | B11: 30.45 | C11: 30.45
A12: Vacances Gardiennage | B12: 20 | C12: 20
A13: Grand Total | B13: 1727.5 | C13: 1727.5

Sheet Épargne
A2: Catégorie | B2: Épargne
A4: Sum of Montant | B4: Column Labels
A5: Row Labels | B5: juillet | C5: août | D5: Grand Total
A6: Virement inter compte | B6: 300 | C6: 300 | D6: 600
A7: Interac vers Épargne | B7: 300 | C7: 300 | D7: 600
A8: Épargne Stable | B8: 300 | C8: 300 | D8: 600
A9: Grand Total | B9: 300 | C9: 300 | D9: 600
A19: Jan a Juin | B19: 4416.93
A20: Juillet | B20: =GETPIVOTDATA("Montant",$A$4,"Mois","juillet") -> 300
A21: Aout | B21: =GETPIVOTDATA("Montant",$A$4,"Mois","août") -> 300
A22: Sept
A23: Octobre
A24: Novembre
A25: Décembre
A26: Total | B26: =SUM(B19:B25) -> 5016.93
A30: =B26 -> 5016.93

Sheet Budget 2022
A1: Fin de mois | B1: 1 | I1: Fin de mois | J1: 1
A2: Compte | B2: Budget | I2: Compte | J2: Budget
A3: Année | B3: 2022
I4: Sum of Montant | J4: Column Labels
A5: Sum of Montant | B5: Column Labels | I5: Row Labels | J5: Grand Total
A6: Row Labels | B6: Grand Total | I6: Grand Total
A7: Grand Total
A21: Compte | B21: Budget
A22: Année | B22: 2022
A24: Sum of Montant | B24: Column Labels
B25: Chèque | N25: Chèque Total | O25: Grand Total
A26: Row Labels | B26: janvier | C26: février | D26: mars | E26: avril | F26: mai | G26: juin | H26: juillet | I26: août | J26: septembre | K26: octobre | L26: novembre | M26: décembre
A27: Entrée | B27: 5073 | C27: 5073 | D27: 5073 | E27: 5073 | F27: 5073 | G27: 5073 | H27: 5073 | I27: 5073 | J27: 5073 | K27: 5073 | L27: 5073 | M27: 5073 | N27: 60876 | O27: 60876
A28: Grand Total | B28: 5073 | C28: 5073 | D28: 5073 | E28: 5073 | F28: 5073 | G28: 5073 | H28: 5073 | I28: 5073 | J28: 5073 | K28: 5073 | L28: 5073 | M28: 5073 | N28: 60876 | O28: 60876
A32: Compte | B32: Budget
A33: Année | B33: 2022
A35: Sum of Montant | B35: Column Labels
B36: Chèque | N36: Chèque Total | O36: Visa | AA36: Visa Total | AB36: Grand Total
A37: Row Labels | B37: janvier | C37: février | D37: mars | E37: avril | F37: mai | G37: juin | H37: juillet | I37: août | J37: septembre | K37: octobre | L37: novembre | M37: décembre | O37: janvier | P37: février | Q37: mars | R37: avril | S37: mai | T37: juin | U37: juillet | V37: août | W37: septembre | X37: octobre | Y37: novembre | Z37: décembre
A38: Alimentation | O38: 880 | P38: 880 | Q38: 880 | R38: 880 | S38: 880 | T38: 880 | U38: 880 | V38: 880 | W38: 880 | X38: 880 | Y38: 880 | Z38: 880 | AA38: 10560 | AB38: 10560
A39: Animaux | O39: 525 | P39: 525 | Q39: 525 | R39: 525 | S39: 525 | T39: 525 | U39: 525 | V39: 525 | W39: 525 | X39: 525 | Y39: 525 | Z39: 525 | AA39: 6300 | AB39: 6300
A40: Auto | B40: 560 | C40: 560 | D40: 560 | E40: 560 | F40: 560 | G40: 560 | H40: 560 | I40: 560 | J40: 560 | K40: 560 | L40: 560 | M40: 560 | N40: 6720 | O40: 180 | P40: 180 | Q40: 180 | R40: 180 | S40: 180 | T40: 180 | U40: 180 | V40: 180 | W40: 180 | X40: 180 | Y40: 180 | Z40: 180 | AA40: 2160 | AB40: 8880
A41: Bordeaux | B41: 1710 | C41: 1710 | D41: 1710 | E41: 1710 | F41: 1710 | G41: 1710 | H41: 1710 | I41: 1710 | J41: 1710 | K41: 1710 | L41: 1710 | M41: 1710 | N41: 20520 | AB41: 20520
A42: Divers | B42: 150 | C42: 150 | D42: 150 | E42: 150 | F42: 150 | G42: 150 | H42: 150 | I42: 150 | J42: 150 | K42: 150 | L42: 150 | M42: 150 | N42: 1800 | AB42: 1800
A43: Épargne | B43: 100 | C43: 100 | D43: 100 | E43: 100 | F43: 100 | G43: 100 | H43: 100 | I43: 100 | J43: 100 | K43: 100 | L43: 100 | M43: 100 | N43: 1200 | AB43: 1200
A44: Paiement des impôts | B44: 300 | C44: 300 | D44: 300 | E44: 300 | F44: 300 | G44: 300 | H44: 300 | I44: 300 | J44: 300 | K44: 300 | L44: 300 | M44: 300 | N44: 3600 | AB44: 3600
A45: Personnel | B45: 250 | C45: 250 | D45: 250 | E45: 250 | F45: 250 | G45: 250 | H45: 250 | I45: 250 | J45: 250 | K45: 250 | L45: 250 | M45: 250 | N45: 3000 | AB45: 3000
A46: Santé | O46: 80 | P46: 80 | Q46: 80 | R46: 80 | S46: 80 | T46: 80 | U46: 80 | V46: 80 | W46: 80 | X46: 80 | Y46: 80 | Z46: 80 | AA46: 960 | AB46: 960
A47: Grand Total | B47: 3070 | C47: 3070 | D47: 3070 | E47: 3070 | F47: 3070 | G47: 3070 | H47: 3070 | I47: 3070 | J47: 3070 | K47: 3070 | L47: 3070 | M47: 3070 | N47: 36840 | O47: 1665 | P47: 1665 | Q47: 1665 | R47: 1665 | S47: 1665 | T47: 1665 | U47: 1665 | V47: 1665 | W47: 1665 | X47: 1665 | Y47: 1665 | Z47: 1665 | AA47: 19980 | AB47: 56820
B53: Janvier | C53: Février | D53: Mars | E53: Avril | F53: Mai | G53: Juin | H53: Juillet | I53: Août | J53: Septembre | K53: Octobre | L53: Novembre | M53: Décembre
A54: Solde initial | B54: 8000 | C54: =B57 -> 8338 | D54: 8676 | E54: 9014 | F54: 9352 | G54: 9690 | H54: 10028 | I54: 10366 | J54: 10704 | K54: 11042 | L54: 11380 | M54: 11718
A55: Entrées prévues | B55: =GETPIVOTDATA("Montant",$A$24,"Fournisseur","Chèque","Mois","janvier") -> 5073 | C55: =GETPIVOTDATA("Montant",$A$24,"Fournisseur","Chèque","Mois","février") -> 5073 | D55: =GETPIVOTDATA("Montant",$A$24,"Fournisseur","Chèque","Mois","mars") -> 5073 | E55: =GETPIVOTDATA("Montant",$A$24,"Fournisseur","Chèque","Mois","avril") -> 5073 | F55: =GETPIVOTDATA("Montant",$A$24,"Fournisseur","Chèque","Mois","mai") -> 5073 | G55: =GETPIVOTDATA("Montant",$A$24,"Fournisseur","Chèque","Mois","juin") -> 5073 | H55: =GETPIVOTDATA("Montant",$A$24,"Fournisseur","Chèque","Mois","juillet") -> 5073 | I55: =GETPIVOTDATA("Montant",$A$24,"Fournisseur","Chèque","Mois","août") -> 5073 | J55: =GETPIVOTDATA("Montant",$A$24,"Fournisseur","Chèque","Mois","septembre") -> 5073 | K55: =GETPIVOTDATA("Montant",$A$24,"Fournisseur","Chèque","Mois","octobre") -> 5073 | L55: =GETPIVOTDATA("Montant",$A$24,"Fournisseur","Chèque","Mois","novembre") -> 5073 | M55: =GETPIVOTDATA("Montant",$A$24,"Fournisseur","Chèque","Mois","décembre") -> 5073
A56: Sorties prévues | B56: =GETPIVOTDATA("Montant",$A$35,"Fournisseur","Chèque","Mois","janvier")+GETPIVOTDATA("Montant",$A$35,"Fournisseur","Visa","Mois","janvier") -> 4735 | C56: =GETPIVOTDATA("Montant",$A$35,"Fournisseur","Chèque","Mois","février")+GETPIVOTDATA("Montant",$A$35,"Fournisseur","Visa","Mois","février") -> 4735 | D56: =GETPIVOTDATA("Montant",$A$35,"Fournisseur","Chèque","Mois","mars")+GETPIVOTDATA("Montant",$A$35,"Fournisseur","Visa","Mois","mars") -> 4735 | E56: =GETPIVOTDATA("Montant",$A$35,"Fournisseur","Chèque","Mois","avril")+GETPIVOTDATA("Montant",$A$35,"Fournisseur","Visa","Mois","avril") -> 4735 | F56: =GETPIVOTDATA("Montant",$A$35,"Fournisseur","Chèque","Mois","mai")+GETPIVOTDATA("Montant",$A$35,"Fournisseur","Visa","Mois","mai") -> 4735 | G56: =GETPIVOTDATA("Montant",$A$35,"Fournisseur","Chèque","Mois","juin")+GETPIVOTDATA("Montant",$A$35,"Fournisseur","Visa","Mois","juin") -> 4735 | H56: =GETPIVOTDATA("Montant",$A$35,"Fournisseur","Chèque","Mois","juillet")+GETPIVOTDATA("Montant",$A$35,"Fournisseur","Visa","Mois","juillet") -> 4735 | I56: =GETPIVOTDATA("Montant",$A$35,"Fournisseur","Chèque","Mois","août")+GETPIVOTDATA("Montant",$A$35,"Fournisseur","Visa","Mois","août") -> 4735 | J56: =GETPIVOTDATA("Montant",$A$35,"Fournisseur","Chèque","Mois","septembre")+GETPIVOTDATA("Montant",$A$35,"Fournisseur","Visa","Mois","septembre") -> 4735 | K56: =GETPIVOTDATA("Montant",$A$35,"Fournisseur","Chèque","Mois","octobre")+GETPIVOTDATA("Montant",$A$35,"Fournisseur","Visa","Mois","octobre") -> 4735 | L56: =GETPIVOTDATA("Montant",$A$35,"Fournisseur","Chèque","Mois","novembre")+GETPIVOTDATA("Montant",$A$35,"Fournisseur","Visa","Mois","novembre") -> 4735 | M56: =GETPIVOTDATA("Montant",$A$35,"Fournisseur","Chèque","Mois","décembre")+GETPIVOTDATA("Montant",$A$35,"Fournisseur","Visa","Mois","décembre") -> 4735
A57: Solde prévu a la fin du mois | B57: =(B54+B55)-B56 -> 8338 | C57: =(C54+C55)-C56 -> 8676 | D57: =(D54+D55)-D56 -> 9014 | E57: =(E54+E55)-E56 -> 9352 | F57: 9690 | G57: 10028 | H57: 10366 | I57: 10704 | J57: 11042 | K57: 11380 | L57: 11718 | M57: 12056
A58: Solde réél

Sheet Reserve
A1: Compte | B1: Reserve Projets
A2: Année | B2: 2021
A4: Row Labels | B4: Sum of Montant
A5: Sortie | B5: 4000
A6: Grand Total | B6: 4000

Sheet Database
A1: ID | B1: Date | C1: Compte | D1: Type | E1: Catégorie | F1: Sous cat | G1: Fournisseur | H1: Montant | I1: Saisi le | J1: Mois | K1: Année | L1: Fin de mois
A2: 1 | B2: 2021-01-01 | C2: Chèque | D2: Entrée | E2: Entrée | F2: Revenu de location | G2: Locataire | H2: 880 | I2: 26-05-2021 16:48:11 | J2: =TEXT(B2,"mmmm") -> janvier | K2: =YEAR(B2) -> 2021 | L2: =IF(B2<=EOMONTH(TODAY(),-1),0,1) -> 0
A3: 2 | B3: 2021-01-01 | C3: Chèque | D3: Sortie | E3: Projets | F3: Finaliser OAK | G3: Autre | H3: 386.99 | I3: 26-05-2021 16:48:12 | J3: janvier | K3: 2021 | L3: =IF(B3<=EOMONTH(TODAY(),-1),0,1) -> 0
A4: 3 | B4: 2021-01-01 | C4: Chèque | D4: Sortie | E4: Bordeaux | F4: Loyer Bordeaux | G4: CIBC | H4: 1310 | I4: 26-05-2021 16:48:13 | J4: janvier | K4: 2021 | L4: 0
A5: 4 | B5: 2021-01-01 | C5: Chèque | D5: Sortie | E5: Personnel | F5: Assurance-vie | G5: Ind All | H5: 66.78 | I5: 26-05-2021 16:48:14 | J5: janvier | K5: 2021 | L5: 0
A6: 5 | B6: 2021-01-01 | C6: Chèque | D6: Entrée | E6: Entrée | F6: Revenu de location | G6: Locataire | H6: 350 | I6: 26-05-2021 16:48:15 | J6: janvier | K6: 2021 | L6: 0
A7: 6 | B7: 2021-01-03 | C7: Chèque | D7: Sortie | E7: Personnel | F7: Cellulaire | G7: Koodo | H7: 58.83 | I7: 26-05-2021 16:48:16 | J7: janvier | K7: 2021 | L7: 0
A8: 7 | B8: 2021-01-03 | C8: Visa | D8: Sortie | E8: Animaux | F8: Nourriture animaux | G8: Pattes et Griffes | H8: 22.97 | I8: 26-05-2021 16:48:17 | J8: janvier | K8: 2021 | L8: 0
A9: 8 | B9: 2021-01-06 | C9: Visa | D9: Sortie | E9: Santé | F9: Médicaments | G9: Jean Coutu | H9: 34.41 | I9: 26-05-2021 16:48:18 | J9: janvier | K9: 2021 | L9: 0
A10: 9 | B10: 2021-01-06 | C10: Visa | D10: Sortie | E10: Alimentation | F10: Épicerie | G10: Maxi | H10: 100 | I10: 26-05-2021 16:48:19 | J10: janvier | K10: 2021 | L10: 0
A11: 10 | B11: 2021-01-06 | C11: Visa | D11: Sortie | E11: Animaux | F11: Nourriture animaux | G11: Maxi | H11: 17.68 | I11: 26-05-2021 16:48:20 | J11: janvier | K11: 2021 | L11: 0
A12: 11 | B12: 2021-01-07 | C12: Visa | D12: Sortie | E12: Animaux | F12: Vétérinaire | G12: Autre | H12: 56 | I12: 26-05-2021 16:48:21 | J12: janvier | K12: 2021 | L12: 0
A13: 12 | B13: 2021-01-08 | C13: Chèque | D13: Sortie | E13: Bordeaux | F13: Électricité Bordeaux | G13: Hydro Québec | H13: 347.06 | I13: 26-05-2021 16:48:22 | J13: janvier | K13: 2021 | L13: 0
A14: 13 | B14: 2021-01-08 | C14: Chèque | D14: Sortie | E14: Projets | F14: Finaliser OAK | G14: Autre | H14: 385.83 | I14: 26-05-2021 16:48:23 | J14: janvier | K14: 2021 | L14: 0
A15: 14 | B15: 2021-01-08 | C15: Chèque | D15: Sortie | E15: Projets | F15: Finaliser OAK | G15: Autre | H15: 286.1 | I15: 26-05-2021 16:48:24 | J15: janvier | K15: 2021 | L15: 0
A16: 15 | B16: 2021-01-08 | C16: Visa | D16: Sortie | E16: Auto | F16: Stationnement | G16: Autre | H16: 7.07 | I16: 26-05-2021 16:48:25 | J16: janvier | K16: 2021 | L16: 0
A17: 16 | B17: 2021-01-08 | C17: Liquide | D17: Entrée | E17: Entrée | F17: Autre revenu | G17: Autre revenu | H17: 10 | I17: 26-05-2021 16:48:26 | J17: janvier | K17: 2021 | L17: 0
A18: 17 | B18: 2021-01-08 | C18: Visa | D18: Sortie | E18: Alimentation | F18: Épicerie | G18: Marché Métro | H18: 25.16 | I18: 26-05-2021 16:48:27 | J18: janvier | K18: 2021 | L18: 0
A19: 18 | B19: 2021-01-09 | C19: Visa | D19: Sortie | E19: Alimentation | F19: Restaurant | G19: Resto | H19: 74.84 | I19: 26-05-2021 16:48:28 | J19: janvier | K19: 2021 | L19: 0
A20: 19 | B20: 2021-01-11 | C20: Visa | D20: Sortie | E20: Divers | F20: Matériel informatique | G20: Autre fournisseur | H20: 25 | I20: 26-05-2021 16:48:29 | J20: janvier | K20: 2021 | L20: 0
A21: 20 | B21: 2021-01-11 | C21: Visa | D21: Sortie | E21: Alimentation | F21: Épicerie | G21: Maxi | H21: 48.69 | I21: 26-05-2021 16:48:30 | J21: janvier | K21: 2021 | L21: 0
A22: 21 | B22: 2021-01-11 | C22: Visa | D22: Sortie | E22: Animaux | F22: Nourriture animaux | G22: Maxi | H22: 55.1 | I22: 26-05-2021 16:48:31 | J22: janvier | K22: 2021 | L22: 0
A23: 22 | B23: 2021-01-14 | C23: Visa | D23: Sortie | E23: Alimentation | F23: Café | G23: Fromages de choix | H23: 15 | I23: 26-05-2021 16:48:32 | J23: janvier | K23: 2021 | L23: 0
A24: 23 | B24: 2021-01-14 | C24: Visa | D24: Sortie | E24: Alimentation | F24: Épicerie | G24: Fromages de choix | H24: 17.13 | I24: 26-05-2021 16:48:33 | J24: janvier | K24: 2021 | L24: 0
A25: 24 | B25: 2021-01-14 | C25: Visa | D25: Sortie | E25: Alimentation | F25: Épicerie | G25: Fruiterie Beaubien | H25: 21.75 | I25: 26-05-2021 16:48:34 | J25: janvier | K25: 2021 | L25: 0
A26: 25 | B26: 2021-01-15 | C26: Chèque | D26: Entrée | E26: Entrée | F26: Revenu de retraite | G26: Carra | H26: 3001.07 | I26: 26-05-2021 16:48:35 | J26: janvier | K26: 2021 | L26: 0
A27: 26 | B27: 2021-01-15 | C27: Visa | D27: Sortie | E27: Alimentation | F27: Épicerie | G27: Fruiterie Beaubien | H27: 18.23 | I27: 26-05-2021 16:48:36 | J27: janvier | K27: 2021 | L27: 0
A28: 27 | B28: 2021-01-15 | C28: Visa | D28: Sortie | E28: Alimentation | F28: Épicerie | G28: Baies des Fromages | H28: 6.66 | I28: 26-05-2021 16:48:37 | J28: janvier | K28: 2021 | L28: 0
A29: 28 | B29: 2021-01-15 | C29: Visa | D29: Sortie | E29: Auto | F29: Assurance Auto | G29: Sonnet Assurance | H29: 57.58 | I29: 26-05-2021 16:48:38 | J29: janvier | K29: 2021 | L29: 0
A30: 29 | B30: 2021-01-16 | C30: Visa | D30: Sortie | E30: Alimentation | F30: Épicerie | G30: Lufa | H30: 95.25 | I30: 26-05-2021 16:48:39 | J30: janvier | K30: 2021 | L30: 0
A31: 30 | B31: 2021-01-17 | C31: Diapason | D31: Entrée | E31: Gain sur le marché | F31: Dividende | G31: Diapason | H31: 783.36 | I31: 26-05-2021 16:48:40 | J31: janvier | K31: 2021 | L31: 0
A32: 31 | B32: 2021-01-18 | C32: Zénitude | D32: Entrée | E32: Entrée | F32: Dividende | G32: Zenitude | H32: 59.07 | I32: 26-05-2021 16:48:41 | J32: janvier | K32: 2021 | L32: 0
A33: 32 | B33: 2021-01-19 | C33: Ind All | D33: Entrée | E33: Entrée | F33: Dividende | G33: Ind All | H33: 2112.76 | I33: 26-05-2021 16:48:42 | J33: janvier | K33: 2021 | L33: 0
A34: 33 | B34: 2021-01-18 | C34: Chèque | D34: Entrée | E34: Entrée | F34: Autre revenu | G34: Autre revenu | H34: 81.46 | I34: 26-05-2021 16:48:43 | J34: janvier | K34: 2021 | L34: 0
A35: 34 | B35: 2021-01-18 | C35: Chèque | D35: Entrée | E35: Entrée | F35: Autre revenu | G35: Autre revenu | H35: 2676.32 | I35: 26-05-2021 16:48:44 | J35: janvier | K35: 2021 | L35: 0
A36: 35 | B36: 2021-01-18 | C36: Visa | D36: Sortie | E36: Animaux | F36: Nourriture animaux | G36: Pattes et Griffes | H36: 32.18 | I36: 26-05-2021 16:48:45 | J36: janvier | K36: 2021 | L36: 0
A37: 36 | B37: 2021-01-19 | C37: Chèque | D37: Entrée | E37: Entrée | F37: Autre revenu | G37: Desjardins | H37: 150 | I37: 26-05-2021 16:48:46 | J37: janvier | K37: 2021 | L37: 0
A38: 37 | B38: 2021-01-20 | C38: Visa | D38: Sortie | E38: Santé | F38: Médicaments | G38: Jean Coutu | H38: 28.96 | I38: 26-05-2021 16:48:47 | J38: janvier | K38: 2021 | L38: 0
A39: 38 | B39: 2021-01-21 | C39: Visa | D39: Sortie | E39: Alimentation | F39: Épicerie | G39: Inter Marché | H39: 56.77 | I39: 26-05-2021 16:48:48 | J39: janvier | K39: 2021 | L39: 0
A40: 39 | B40: 2021-01-24 | C40: Visa | D40: Sortie | E40: Bordeaux | F40: Cable Bordeaux | G40: Colbanet | H40: 57.43 | I40: 26-05-2021 16:48:49 | J40: janvier | K40: 2021 | L40: 0
A41: 40 | B41: 2021-01-24 | C41: Visa | D41: Sortie | E41: Alimentation | F41: Épicerie | G41: Inter Marché | H41: 107.42 | I41: 26-05-2021 16:48:50 | J41: janvier | K41: 2021 | L41: 0
A42: 41 | B42: 2021-01-24 | C42: Visa | D42: Sortie | E42: Animaux | F42: Nourriture animaux | G42: Pattes et Griffes | H42: 15.49 | I42: 26-05-2021 16:48:51 | J42: janvier | K42: 2021 | L42: 0
A43: 42 | B43: 2021-01-25 | C43: Chèque | D43: Entrée | E43: Entrée | F43: Prêt remboursé | G43: Locataire | H43: 180 | I43: 26-05-2021 16:48:52 | J43: janvier | K43: 2021 | L43: 0
A44: 43 | B44: 2021-01-25 | C44: Visa | D44: Sortie | E44: Alimentation | F44: Épicerie | G44: Lufa | H44: 29.89 | I44: 26-05-2021 16:48:53 | J44: janvier | K44: 2021 | L44: 0
A45: 44 | B45: 2021-01-25 | C45: Chèque | D45: Sortie | E45: Paiement de dettes | F45: Visa | G45: Visa | H45: 1026.66 | I45: 26-05-2021 16:48:54 | J45: janvier | K45: 2021 | L45: 0
A46: 45 | B46: 2021-01-28 | C46: Chèque | D46: Sortie | E46: Auto | F46: Location Honda | G46: Honda | H46: 285 | I46: 26-05-2021 16:48:55 | J46: janvier | K46: 2021 | L46: 0
A47: 46 | B47: 2021-01-28 | C47: Chèque | D47: Entrée | E47: Entrée | F47: Revenu de retraite | G47: PSV | H47: 615.37 | I47: 26-05-2021 16:48:56 | J47: janvier | K47: 2021 | L47: 0
A48: 47 | B48: 2021-01-28 | C48: Visa | D48: Sortie | E48: Alimentation | F48: Épicerie | G48: Marché Métro | H48: 59.07 | I48: 26-05-2021 16:48:57 | J48: janvier | K48: 2021 | L48: 0
A49: 48 | B49: 2021-01-28 | C49: Diapason | D49: Sortie | E49: Perte sur le marché | F49: Perte sur le marché | G49: Diapason | H49: 94.99 | I49: 26-05-2021 16:48:58 | J49: janvier | K49: 2021 | L49: 0
A50: 49 | B50: 2021-01-28 | C50: Ind All | D50: Sortie | E50: Perte sur le marché | F50: Perte sur le marché | G50: Ind All | H50: 946.12 | I50: 26-05-2021 16:48:59 | J50: janvier | K50: 2021 | L50: 0
A51: 50 | B51: 2021-01-28 | C51: Zénitude | D51: Sortie | E51: Perte sur le marché | F51: Perte sur le marché | G51: Zenitude | H51: 5 | I51: 26-05-2021 16:48:60 | J51: janvier | K51: 2021 | L51: 0
A52: 51 | B52: 2021-01-28 | C52: Visa | D52: Sortie | E52: Alimentation | F52: Épicerie | G52: Fromages de choix | H52: 9.23 | I52: 26-05-2021 16:48:61 | J52: janvier | K52: 2021 | L52: 0
A53: 52 | B53: 2021-01-29 | C53: Chèque | D53: Entrée | E53: Entrée | F53: Revenu de retraite | G53: RRQ | H53: 908.35 | I53: 26-05-2021 16:48:62 | J53: janvier | K53: 2021 | L53: 0
A54: 53 | B54: 2021-02-01 | C54: Visa | D54: Sortie | E54: Auto | F54: Essence | G54: Ultramar | H54: 38.88 | I54: 26-05-2021 16:48:63 | J54: février | K54: 2021 | L54: 0
A55: 54 | B55: 2021-02-01 | C55: Visa | D55: Sortie | E55: Alimentation | F55: Vin | G55: SAQ | H55: 15.25 | I55: 26-05-2021 16:48:64 | J55: février | K55: 2021 | L55: 0
A56: 55 | B56: 2021-02-01 | C56: Visa | D56: Sortie | E56: Alimentation | F56: Épicerie | G56: Marché Métro | H56: 83.96 | I56: 26-05-2021 16:48:65 | J56: février | K56: 2021 | L56: 0
A57: 56 | B57: 2021-02-01 | C57: Chèque | D57: Sortie | E57: Personnel | F57: Assurance-vie | G57: Ind All | H57: 66.78 | I57: 26-05-2021 16:48:66 | J57: février | K57: 2021 | L57: 0
A58: 57 | B58: 2021-02-01 | C58: Visa | D58: Sortie | E58: Animaux | F58: Nourriture animaux | G58: Marché Métro | H58: 27.33 | I58: 26-05-2021 16:48:67 | J58: février | K58: 2021 | L58: 0
A59: 58 | B59: 2021-02-01 | C59: Épargne Stable | D59: Sortie | E59: Virement | F59: Virement inter compte | G59: Vers Épargne impôts | H59: 1200.19 | I59: 26-05-2021 16:48:68 | J59: février | K59: 2021 | L59: 0
A60: 59 | B60: 2021-02-01 | C60: Épargne impôts | D60: Entrée | E60: Virement | F60: Virement inter compte | G60: De Épargne stable | H60: 1200.19 | I60: 26-05-2021 16:48:69 | J60: février | K60: 2021 | L60: 0
A61: 60 | B61: 2021-02-01 | C61: Visa | D61: Sortie | E61: Alimentation | F61: Épicerie | G61: Autre | H61: 0 | I61: 26-05-2021 16:48:70 | J61: février | K61: 2021 | L61: 0
A62: 61 | B62: 2021-02-01 | C62: Épargne impôts | D62: Entrée | E62: Entrée | F62: Dividende | G62: Desjardins | H62: 23.34 | I62: 26-05-2021 16:48:71 | J62: février | K62: 2021 | L62: 0
A63: 62 | B63: 2021-02-01 | C63: Diapason | D63: Sortie | E63: Perte sur le marché | F63: Perte sur le marché | G63: Diapason | H63: 129.43 | I63: 26-05-2021 16:48:72 | J63: février | K63: 2021 | L63: 0
A64: 63 | B64: 2021-02-01 | C64: Ind All | D64: Sortie | E64: Perte sur le marché | F64: Perte sur le marché | G64: Ind All | H64: 198.18 | I64: 26-05-2021 16:48:73 | J64: février | K64: 2021 | L64: 0
A65: 64 | B65: 2021-02-01 | C65: Chèque | D65: Entrée | E65: Entrée | F65: Revenu de location | G65: Locataire | H65: 350 | I65: 26-05-2021 16:48:74 | J65: février | K65: 2021 | L65: 0
A66: 65 | B66: 2021-02-03 | C66: Chèque | D66: Sortie | E66: Personnel | F66: Cellulaire | G66: Koodo | H66: 58.83 | I66: 26-05-2021 16:48:75 | J66: =TEXT(B66,"mmmm") -> février | K66: =YEAR(B66) -> 2021 | L66: =IF(B66<=EOMONTH(TODAY(),-1),0,1) -> 0
A67: 66 | B67: 2021-02-04 | C67: Chèque | D67: Sortie | E67: Bordeaux | F67: Loyer Bordeaux | G67: CIBC | H67: 1310 | I67: 26-05-2021 16:48:76 | J67: février | K67: 2021 | L67: 0
A68: 67 | B68: 2021-02-04 | C68: Visa | D68: Sortie | E68: Alimentation | F68: Café | G68: Fromages de choix | H68: 15 | I68: 26-05-2021 16:48:77 | J68: février | K68: 2021 | L68: 0
A69: 68 | B69: 2021-02-04 | C69: Visa | D69: Sortie | E69: Alimentation | F69: Épicerie | G69: Fromages de choix | H69: 11.78 | I69: 26-05-2021 16:48:78 | J69: février | K69: 2021 | L69: 0
A70: 69 | B70: 2021-02-04 | C70: Visa | D70: Sortie | E70: Alimentation | F70: Épicerie | G70: Fruiterie Beaubien | H70: 26.55 | I70: 26-05-2021 16:48:79 | J70: février | K70: 2021 | L70: 0
A71: 70 | B71: 2021-02-05 | C71: Visa | D71: Sortie | E71: Personnel | F71: Rencontre | G71: Autre | H71: 40 | I71: 26-05-2021 16:48:80 | J71: février | K71: 2021 | L71: 0
A72: 71 | B72: 2021-02-05 | C72: Liquide | D72: Sortie | E72: Personnel | F72: Rencontre | G72: Autre | H72: 20 | I72: 26-05-2021 16:48:81 | J72: février | K72: 2021 | L72: 0
A73: 72 | B73: 2021-02-05 | C73: Chèque | D73: Sortie | E73: Divers | F73: Autre Dépense | G73: Autre fournisseur | H73: 400 | I73: 26-05-2021 16:48:82 | J73: février | K73: 2021 | L73: 0
A74: 73 | B74: 2021-02-05 | C74: Visa | D74: Sortie | E74: Santé | F74: Médicaments | G74: Jean Coutu | H74: 29.73 | I74: 26-05-2021 16:48:83 | J74: février | K74: 2021 | L74: 0
A75: 74 | B75: 2021-02-05 | C75: Visa | D75: Sortie | E75: Alimentation | F75: Épicerie | G75: Fromages de choix | H75: 10.92 | I75: 26-05-2021 16:48:84 | J75: février | K75: 2021 | L75: 0
A76: 75 | B76: 2021-02-05 | C76: Visa | D76: Sortie | E76: Animaux | F76: Nourriture animaux | G76: Pattes et Griffes | H76: 9.01 | I76: 26-05-2021 16:48:85 | J76: février | K76: 2021 | L76: 0
A77: 76 | B77: 2021-02-05 | C77: Épargne impôts | D77: Sortie | E77: Virement | F77: Virement inter compte | G77: Vers Diapason | H77: 5000 | I77: 26-05-2021 16:48:86 | J77: février | K77: 2021 | L77: 0
A78: 77 | B78: 2021-02-05 | C78: Diapason | D78: Entrée | E78: Virement | F78: Virement inter compte | G78: De Épargne impôts | H78: 5000 | I78: 26-05-2021 16:48:87 | J78: février | K78: 2021 | L78: 0
A79: 78 | B79: 2021-02-07 | C79: Visa | D79: Sortie | E79: Alimentation | F79: Épicerie | G79: Inter Marché | H79: 119.32 | I79: 26-05-2021 16:48:88 | J79: février | K79: 2021 | L79: 0
A80: 79 | B80: 2021-02-07 | C80: Chèque | D80: Sortie | E80: Alimentation | F80: Épicerie | G80: Fromages de choix | H80: 15 | I80: 26-05-2021 16:48:89 | J80: février | K80: 2021 | L80: 0
A81: 80 | B81: 2021-02-07 | C81: Diapason | D81: Entrée | E81: Gain sur le marché | F81: Dividende | G81: Diapason | H81: 422.6 | I81: 26-05-2021 16:48:90 | J81: février | K81: 2021 | L81: 0
A82: 81 | B82: 2021-02-09 | C82: Chèque | D82: Sortie | E82: Alimentation | F82: Épicerie | G82: Lufa | H82: 10 | I82: 26-05-2021 16:48:91 | J82: février | K82: 2021 | L82: 0
A83: 82 | B83: 2021-02-09 | C83: Diapason | D83: Entrée | E83: Gain sur le marché | F83: Dividende | G83: Diapason | H83: 104.85 | I83: 26-05-2021 16:48:92 | J83: février | K83: 2021 | L83: 0
A84: 83 | B84: 2021-02-09 | C84: Ind All | D84: Entrée | E84: Entrée | F84: Dividende | G84: Ind All | H84: 1737.8 | I84: 26-05-2021 16:48:93 | J84: février | K84: 2021 | L84: 0
A85: 84 | B85: 2021-02-09 | C85: Ind All | D85: Entrée | E85: Entrée | F85: Dividende | G85: Ind All | H85: 198.18 | I85: 26-05-2021 16:48:94 | J85: février | K85: 2021 | L85: 0
A86: 85 | B86: 2021-02-09 | C86: Visa | D86: Sortie | E86: Alimentation | F86: Épicerie | G86: Fruiterie Beaubien | H86: 15.5 | I86: 26-05-2021 16:48:95 | J86: février | K86: 2021 | L86: 0
A87: 86 | B87: 2021-02-09 | C87: Visa | D87: Sortie | E87: Alimentation | F87: Épicerie | G87: Fromages de choix | H87: 15.63 | I87: 26-05-2021 16:48:96 | J87: février | K87: 2021 | L87: 0
A88: 87 | B88: 2021-02-09 | C88: Visa | D88: Sortie | E88: Animaux | F88: Nourriture animaux | G88: Pattes et Griffes | H88: 32.18 | I88: 26-05-2021 16:48:97 | J88: février | K88: 2021 | L88: 0
A89: 88 | B89: 2021-02-11 | C89: Visa | D89: Sortie | E89: Alimentation | F89: Épicerie | G89: Fromages de choix | H89: 8.72 | I89: 26-05-2021 16:48:98 | J89: février | K89: 2021 | L89: 0
A90: 89 | B90: 2021-02-12 | C90: Visa | D90: Sortie | E90: Alimentation | F90: Épicerie | G90: Inter Marché | H90: 34.47 | I90: 26-05-2021 16:48:99 | J90: février | K90: 2021 | L90: 0
A91: 90 | B91: 2021-02-12 | C91: Visa | D91: Sortie | E91: Bordeaux | F91: Cable Bordeaux | G91: IVC INTERNET | H91: 68.93 | I91: 26-05-2021 16:48:100 | J91: février | K91: 2021 | L91: 0
A92: 91 | B92: 2021-02-13 | C92: Visa | D92: Sortie | E92: Alimentation | F92: Épicerie | G92: Maxi | H92: 130 | I92: 26-05-2021 16:48:101 | J92: février | K92: 2021 | L92: 0
A93: 92 | B93: 2021-02-13 | C93: Visa | D93: Sortie | E93: Animaux | F93: Nourriture animaux | G93: Maxi | H93: 5.15 | I93: 26-05-2021 16:48:102 | J93: février | K93: 2021 | L93: 0
A94: 93 | B94: 2021-02-13 | C94: Visa | D94: Sortie | E94: Alimentation | F94: Épicerie | G94: Fruiterie Beaubien | H94: 7.17 | I94: 26-05-2021 16:48:103 | J94: février | K94: 2021 | L94: 0
A95: 94 | B95: 2021-02-15 | C95: Chèque | D95: Entrée | E95: Entrée | F95: Revenu de retraite | G95: Carra | H95: 3001.07 | I95: 26-05-2021 16:48:104 | J95: février | K95: 2021 | L95: 0
A96: 95 | B96: 2021-02-15 | C96: Visa | D96: Sortie | E96: Auto | F96: Assurance Auto | G96: Sonnet Assurance | H96: 57.58 | I96: 26-05-2021 16:48:105 | J96: février | K96: 2021 | L96: 0
A97: 96 | B97: 2021-02-16 | C97: Visa | D97: Sortie | E97: Bordeaux | F97: Cable Bordeaux | G97: Ali TV | H97: 8.04 | I97: 26-05-2021 16:48:106 | J97: février | K97: 2021 | L97: 0
A98: 97 | B98: 2021-02-16 | C98: Diapason | D98: Entrée | E98: Gain sur le marché | F98: Dividende | G98: Diapason | H98: 110.67 | I98: 26-05-2021 16:48:107 | J98: février | K98: 2021 | L98: 0
A99: 98 | B99: 2021-02-16 | C99: Visa | D99: Sortie | E99: Alimentation | F99: Épicerie | G99: Fruiterie Beaubien | H99: 25.13 | I99: 26-05-2021 16:48:108 | J99: février | K99: 2021 | L99: 0
A100: 99 | B100: 2021-02-18 | C100: Visa | D100: Sortie | E100: Santé | F100: Médicaments | G100: Jean Coutu | H100: 22.51 | I100: 26-05-2021 16:48:109 | J100: février | K100: 2021 | L100: 0
A101: 100 | B101: 2021-02-18 | C101: Visa | D101: Sortie | E101: Alimentation | F101: Épicerie | G101: Fromages de choix | H101: 10.57 | I101: 26-05-2021 16:48:110 | J101: février | K101: 2021 | L101: 0
A102: 101 | B102: 2021-02-18 | C102: Visa | D102: Sortie | E102: Alimentation | F102: Épicerie | G102: Fruiterie Beaubien | H102: 15.23 | I102: 26-05-2021 16:48:111 | J102: février | K102: 2021 | L102: 0
A103: 102 | B103: 2021-02-19 | C103: Visa | D103: Entrée | E103: Entrée | F103: Ristourne | G103: Desjardins | H103: 25 | I103: 26-05-2021 16:48:112 | J103: février | K103: 2021 | L103: 0
A104: 103 | B104: 2021-02-19 | C104: Chèque | D104: Sortie | E104: Personnel | F104: Rencontre | G104: Autre | H104: 80 | I104: 26-05-2021 16:48:113 | J104: février | K104: 2021 | L104: 0
A105: 104 | B105: 2021-02-20 | C105: Visa | D105: Sortie | E105: Animaux | F105: Nourriture animaux | G105: Marché Métro | H105: 24 | I105: 26-05-2021 16:48:114 | J105: février | K105: 2021 | L105: 0
A106: 105 | B106: 2021-02-20 | C106: Visa | D106: Sortie | E106: Personnel | F106: Loto | G106: Autre | H106: 4 | I106: 26-05-2021 16:48:115 | J106: février | K106: 2021 | L106: 0
A107: 106 | B107: 2021-02-20 | C107: Visa | D107: Sortie | E107: Alimentation | F107: Épicerie | G107: Marché Métro | H107: 116.11 | I107: 26-05-2021 16:48:116 | J107: février | K107: 2021 | L107: 0
A108: 107 | B108: 2021-02-20 | C108: Chèque | D108: Entrée | E108: Entrée | F108: Prêt remboursé | G108: Locataire | H108: 250 | I108: 26-05-2021 16:48:117 | J108: février | K108: 2021 | L108: 0
A109: 108 | B109: 2021-02-22 | C109: Chèque | D109: Sortie | E109: Virement | F109: Virement inter compte | G109: Vers Liquide | H109: 100 | I109: 26-05-2021 16:48:118 | J109: février | K109: 2021 | L109: 0
A110: 109 | B110: 2021-02-22 | C110: Liquide | D110: Sortie | E110: Personnel | F110: Rencontre | G110: Autre | H110: 60.95 | I110: 26-05-2021 16:48:119 | J110: février | K110: 2021 | L110: 0
A111: 110 | B111: 2021-02-23 | C111: Visa | D111: Sortie | E111: Alimentation | F111: Épicerie | G111: Marché Métro | H111: 45.55 | I111: 26-05-2021 16:48:120 | J111: février | K111: 2021 | L111: 0
A112: 111 | B112: 2021-02-23 | C112: Visa | D112: Sortie | E112: Animaux | F112: Nourriture animaux | G112: Marché Métro | H112: 5 | I112: 26-05-2021 16:48:121 | J112: février | K112: 2021 | L112: 0
A113: 112 | B113: 2021-02-23 | C113: Visa | D113: Sortie | E113: Bordeaux | F113: Cable Bordeaux | G113: Colbanet | H113: 53.16 | I113: 26-05-2021 16:48:122 | J113: février | K113: 2021 | L113: 0
A114: 113 | B114: 2021-02-23 | C114: Chèque | D114: Sortie | E114: Paiement de dettes | F114: Visa | G114: Visa | H114: 1175.66 | I114: 26-05-2021 16:48:123 | J114: février | K114: 2021 | L114: 0
A115: 114 | B115: 2021-02-25 | C115: Visa | D115: Sortie | E115: Santé | F115: Médicaments | G115: Pharmaprix | H115: 24.82 | I115: 26-05-2021 16:48:124 | J115: février | K115: 2021 | L115: 0
A116: 115 | B116: 2021-02-25 | C116: Visa | D116: Sortie | E116: Animaux | F116: Nourriture animaux | G116: Pattes et Griffes | H116: 22.98 | I116: 26-05-2021 16:48:125 | J116: février | K116: 2021 | L116: 0
A117: 116 | B117: 2021-02-25 | C117: Visa | D117: Sortie | E117: Alimentation | F117: Épicerie | G117: Fruiterie Beaubien | H117: 13.77 | I117: 26-05-2021 16:48:126 | J117: février | K117: 2021 | L117: 0
A118: 117 | B118: 2021-02-25 | C118: Visa | D118: Sortie | E118: Alimentation | F118: Épicerie | G118: Fromages de choix | H118: 10.14 | I118: 26-05-2021 16:48:127 | J118: février | K118: 2021 | L118: 0
A119: 118 | B119: 2021-02-26 | C119: Visa | D119: Sortie | E119: Animaux | F119: Nourriture animaux | G119: Pattes et Griffes | H119: 32.18 | I119: 26-05-2021 16:48:128 | J119: février | K119: 2021 | L119: 0
A120: 119 | B120: 2021-02-26 | C120: Chèque | D120: Entrée | E120: Entrée | F120: Prêt remboursé | G120: Autre revenu | H120: 200 | I120: 26-05-2021 16:48:129 | J120: février | K120: 2021 | L120: 0
A121: 120 | B121: 2021-02-26 | C121: Chèque | D121: Entrée | E121: Entrée | F121: Revenu de retraite | G121: RRQ | H121: 908.35 | I121: 26-05-2021 16:48:130 | J121: février | K121: 2021 | L121: 0
A122: 121 | B122: 2021-02-26 | C122: Chèque | D122: Entrée | E122: Entrée | F122: Revenu de retraite | G122: PSV | H122: 615.37 | I122: 26-05-2021 16:48:131 | J122: février | K122: 2021 | L122: 0
A123: 122 | B123: 2021-02-27 | C123: Chèque | D123: Sortie | E123: Auto | F123: Location Honda | G123: Honda | H123: 285 | I123: 26-05-2021 16:48:132 | J123: février | K123: 2021 | L123: 0
A124: 123 | B124: 2021-02-27 | C124: Diapason | D124: Sortie | E124: Perte sur le marché | F124: Perte sur le marché | G124: Diapason | H124: 671.78 | I124: 26-05-2021 16:48:133 | J124: février | K124: 2021 | L124: 0
A125: 124 | B125: 2021-02-27 | C125: Ind All | D125: Sortie | E125: Perte sur le marché | F125: Perte sur le marché | G125: Ind All | H125: 1061.11 | I125: 26-05-2021 16:48:134 | J125: février | K125: 2021 | L125: 0
A126: 125 | B126: 2021-02-27 | C126: Zénitude | D126: Entrée | E126: Entrée | F126: Dividende | G126: Zenitude | H126: 54.05 | I126: 26-05-2021 16:48:135 | J126: février | K126: 2021 | L126: 0
A127: 126 | B127: 2021-02-27 | C127: Épargne impôts | D127: Entrée | E127: Entrée | F127: Dividende | G127: Épargne impôts | H127: 39.37 | I127: 26-05-2021 16:48:136 | J127: février | K127: 2021 | L127: 0
A128: 127 | B128: 2021-03-01 | C128: Visa | D128: Sortie | E128: Alimentation | F128: Épicerie | G128: Provigo | H128: 79.36 | I128: 26-05-2021 16:48:137 | J128: mars | K128: 2021 | L128: 0
A129: 128 | B129: 2021-03-01 | C129: Visa | D129: Sortie | E129: Animaux | F129: Nourriture animaux | G129: Provigo | H129: 29 | I129: 26-05-2021 16:48:138 | J129: mars | K129: 2021 | L129: 0
A130: 129 | B130: 2021-03-01 | C130: Chèque | D130: Sortie | E130: Alimentation | F130: Café | G130: Autre | H130: 10.55 | I130: 26-05-2021 16:48:139 | J130: =TEXT(B130,"mmmm") -> mars | K130: =YEAR(B130) -> 2021 | L130: =IF(B130<=EOMONTH(TODAY(),-1),0,1) -> 0
A131: 130 | B131: 2021-03-01 | C131: Chèque | D131: Sortie | E131: Bordeaux | F131: Loyer Bordeaux | G131: CIBC | H131: 1310 | I131: 26-05-2021 16:48:140 | J131: mars | K131: 2021 | L131: 0
A132: 131 | B132: 2021-03-01 | C132: Chèque | D132: Sortie | E132: Personnel | F132: Assurance-vie | G132: Ind All | H132: 66.78 | I132: 26-05-2021 16:48:141 | J132: mars | K132: 2021 | L132: 0
A133: 132 | B133: 2021-03-01 | C133: Chèque | D133: Entrée | E133: Entrée | F133: Revenu de location | G133: Locataire | H133: 350 | I133: 26-05-2021 16:48:142 | J133: mars | K133: 2021 | L133: 0
A134: 133 | B134: 2021-03-03 | C134: Chèque | D134: Sortie | E134: Personnel | F134: Cellulaire | G134: Koodo | H134: 56.37 | I134: 26-05-2021 16:48:143 | J134: mars | K134: 2021 | L134: 0
A135: 134 | B135: 2021-03-03 | C135: Chèque | D135: Sortie | E135: Personnel | F135: Rencontre | G135: Autre | H135: 60 | I135: 26-05-2021 16:48:144 | J135: mars | K135: 2021 | L135: 0
A136: 135 | B136: 2021-03-03 | C136: Visa | D136: Sortie | E136: Alimentation | F136: Épicerie | G136: Inter Marché | H136: 11.8 | I136: 26-05-2021 16:48:145 | J136: mars | K136: 2021 | L136: 0
A137: 136 | B137: 2021-03-03 | C137: Visa | D137: Sortie | E137: Alimentation | F137: Épicerie | G137: Fruiterie Beaubien | H137: 17.17 | I137: 26-05-2021 16:48:146 | J137: mars | K137: 2021 | L137: 0
A138: 137 | B138: 2021-03-04 | C138: Visa | D138: Sortie | E138: Alimentation | F138: Épicerie | G138: Zytynsky Deli | H138: 20.35 | I138: 26-05-2021 16:48:147 | J138: mars | K138: 2021 | L138: 0
A139: 138 | B139: 2021-03-04 | C139: Visa | D139: Sortie | E139: Alimentation | F139: Épicerie | G139: Provigo | H139: 39.38 | I139: 26-05-2021 16:48:148 | J139: mars | K139: 2021 | L139: 0
A140: 139 | B140: 2021-03-05 | C140: Visa | D140: Sortie | E140: Auto | F140: Essence | G140: Ultramar | H140: 40.51 | I140: 26-05-2021 16:48:149 | J140: mars | K140: 2021 | L140: 0
A141: 140 | B141: 2021-03-05 | C141: Visa | D141: Sortie | E141: Personnel | F141: Loto | G141: Autre | H141: 5 | I141: 26-05-2021 16:48:150 | J141: mars | K141: 2021 | L141: 0
A142: 141 | B142: 2021-03-05 | C142: Diapason | D142: Sortie | E142: Perte sur le marché | F142: Perte sur le marché | G142: Diapason | H142: 182.5 | I142: 26-05-2021 16:48:151 | J142: mars | K142: 2021 | L142: 0
A143: 142 | B143: 2021-03-06 | C143: Visa | D143: Sortie | E143: Alimentation | F143: Épicerie | G143: Autre | H143: 48.03 | I143: 26-05-2021 16:48:152 | J143: mars | K143: 2021 | L143: 0
A144: 143 | B144: 2021-03-06 | C144: Visa | D144: Sortie | E144: Bordeaux | F144: Entretien Bordeaux | G144: Dollorama | H144: 8.05 | I144: 26-05-2021 16:48:153 | J144: mars | K144: 2021 | L144: 0
A145: 144 | B145: 2021-03-06 | C145: Visa | D145: Sortie | E145: Alimentation | F145: Épicerie | G145: WallMart | H145: 221.47 | I145: 26-05-2021 16:48:154 | J145: mars | K145: 2021 | L145: 0
A146: 145 | B146: 2021-03-06 | C146: Visa | D146: Sortie | E146: Animaux | F146: Nourriture animaux | G146: WallMart | H146: 58 | I146: 26-05-2021 16:48:155 | J146: mars | K146: 2021 | L146: 0
A147: 146 | B147: 2021-03-08 | C147: Visa | D147: Sortie | E147: Santé | F147: Médicaments | G147: Jean Coutu | H147: 52.64 | I147: 26-05-2021 16:48:156 | J147: mars | K147: 2021 | L147: 0
A148: 147 | B148: 2021-03-08 | C148: Chèque | D148: Sortie | E148: Bordeaux | F148: Électricité Bordeaux | G148: Hydro Québec | H148: 659.92 | I148: 26-05-2021 16:48:157 | J148: mars | K148: 2021 | L148: 0
A149: 148 | B149: 2021-03-10 | C149: Chèque | D149: Sortie | E149: Paiement des impôts | F149: Accompte provisionnrel QC | H149: 676 | I149: 26-05-2021 16:48:158 | J149: mars | K149: 2021 | L149: 0
A150: 149 | B150: 2021-03-10 | C150: Liquide | D150: Sortie | E150: Bordeaux | F150: Entretien Bordeaux | G150: Dollorama | H150: 7.35 | I150: 26-05-2021 16:48:159 | J150: mars | K150: 2021 | L150: 0
A151: 150 | B151: 2021-03-11 | C151: Visa | D151: Sortie | E151: Alimentation | F151: Épicerie | G151: Marché Métro | H151: 20.5 | I151: 26-05-2021 16:48:160 | J151: mars | K151: 2021 | L151: 0
A152: 151 | B152: 2021-03-11 | C152: Visa | D152: Sortie | E152: Animaux | F152: Nourriture animaux | G152: Pattes et Griffes | H152: 32.18 | I152: 26-05-2021 16:48:161 | J152: mars | K152: 2021 | L152: 0
A153: 152 | B153: 2021-03-13 | C153: Visa | D153: Sortie | E153: Alimentation | F153: Épicerie | G153: Marché Métro | H153: 206.43 | I153: 26-05-2021 16:48:162 | J153: mars | K153: 2021 | L153: 0
A154: 153 | B154: 2021-03-13 | C154: Visa | D154: Sortie | E154: Personnel | F154: Loto | G154: Dépanneur | H154: 11.89 | I154: 26-05-2021 16:48:163 | J154: mars | K154: 2021 | L154: 0
A155: 154 | B155: 2021-03-13 | C155: Visa | D155: Sortie | E155: Animaux | F155: Nourriture animaux | G155: Pattes et Griffes | H155: 5.51 | I155: 26-05-2021 16:48:164 | J155: mars | K155: 2021 | L155: 0
A156: 155 | B156: 2021-03-15 | C156: Chèque | D156: Entrée | E156: Entrée | F156: Revenu de retraite | G156: Carra | H156: 3001.07 | I156: 26-05-2021 16:48:165 | J156: mars | K156: 2021 | L156: 0
A157: 156 | B157: 2021-03-15 | C157: Diapason | D157: Entrée | E157: Gain sur le marché | F157: Dividende | G157: Diapason | H157: 209.68 | I157: 26-05-2021 16:48:166 | J157: mars | K157: 2021 | L157: 0
A158: 157 | B158: 2021-03-15 | C158: Ind All | D158: Entrée | E158: Entrée | F158: Dividende | G158: Ind All | H158: 1754.11 | I158: 26-05-2021 16:48:167 | J158: mars | K158: 2021 | L158: 0
A159: 158 | B159: 2021-03-15 | C159: Zénitude | D159: Entrée | E159: Entrée | F159: Dividende | G159: Zenitude | H159: 60.06 | I159: 26-05-2021 16:48:168 | J159: mars | K159: 2021 | L159: 0
A160: 159 | B160: 2021-03-16 | C160: Chèque | D160: Sortie | E160: Épargne impôts | F160: Épargne impôts | G160: Épargne impôts | H160: 600 | I160: 26-05-2021 16:48:169 | J160: mars | K160: 2021 | L160: 0
A161: 160 | B161: 2021-03-16 | C161: Chèque | D161: Sortie | E161: Auto | F161: Permis de conduire | G161: SAAQ | H161: 87.28 | I161: 26-05-2021 16:48:170 | J161: mars | K161: 2021 | L161: 0
A162: 161 | B162: 2021-03-17 | C162: Chèque | D162: Sortie | E162: Projets | F162: Reno Bordeaux | G162: Autre | H162: 555.71 | I162: 26-05-2021 16:48:171 | J162: mars | K162: 2021 | L162: 0
A163: 162 | B163: 2021-03-17 | C163: Épargne impôts | D163: Sortie | E163: Virement | F163: Virement inter compte | G163: Vers Compte Chèque | H163: 555.71 | I163: 26-05-2021 16:48:172 | J163: mars | K163: 2021 | L163: 0
A164: 163 | B164: 2021-03-17 | C164: Chèque | D164: Entrée | E164: Virement | F164: Virement inter compte | G164: De Épargne impôts | H164: 555.71 | I164: 26-05-2021 16:48:173 | J164: mars | K164: 2021 | L164: 0
A165: 164 | B165: 2021-03-17 | C165: Chèque | D165: Sortie | E165: Projets | F165: Reno Bordeaux | H165: 600 | I165: 26-05-2021 16:48:174 | J165: mars | K165: 2021 | L165: 0
A166: 165 | B166: 2021-03-17 | C166: Visa | D166: Sortie | E166: Alimentation | F166: Épicerie | G166: Fruiterie Beaubien | H166: 17.25 | I166: 26-05-2021 16:48:175 | J166: mars | K166: 2021 | L166: 0
A167: 166 | B167: 2021-03-17 | C167: Visa | D167: Sortie | E167: Animaux | F167: Nourriture animaux | G167: Pattes et Griffes | H167: 28.71 | I167: 26-05-2021 16:48:176 | J167: mars | K167: 2021 | L167: 0
A168: 167 | B168: 2021-03-18 | C168: Visa | D168: Sortie | E168: Alimentation | F168: Épicerie | G168: Fruiterie Beaubien | H168: 10.81 | I168: 26-05-2021 16:48:177 | J168: mars | K168: 2021 | L168: 0
A169: 168 | B169: 2021-03-18 | C169: Visa | D169: Sortie | E169: Alimentation | F169: Épicerie | G169: Fromages de choix | H169: 9.51 | I169: 26-05-2021 16:48:178 | J169: mars | K169: 2021 | L169: 0
A170: 169 | B170: 2021-03-19 | C170: Visa | D170: Sortie | E170: Auto | F170: Assurance Auto | G170: Sonnet Assurance | H170: 57.58 | I170: 26-05-2021 16:48:179 | J170: mars | K170: 2021 | L170: 0
A171: 170 | B171: 2021-03-21 | C171: Chèque | D171: Entrée | E171: Entrée | F171: Autre revenu | G171: Autre revenu | H171: 1797.13 | I171: 26-05-2021 16:48:180 | J171: mars | K171: 2021 | L171: 0
A172: 171 | B172: 2021-03-21 | C172: Visa | D172: Sortie | E172: Alimentation | F172: Épicerie | G172: Lufa | H172: 100.75 | I172: 26-05-2021 16:48:181 | J172: mars | K172: 2021 | L172: 0
A173: 172 | B173: 2021-03-21 | C173: Visa | D173: Sortie | E173: Alimentation | F173: Épicerie | G173: Provigo | H173: 66.36 | I173: 26-05-2021 16:48:182 | J173: mars | K173: 2021 | L173: 0
A174: 173 | B174: 2021-03-21 | C174: Visa | D174: Sortie | E174: Animaux | F174: Nourriture animaux | G174: Provigo | H174: 15 | I174: 26-05-2021 16:48:183 | J174: mars | K174: 2021 | L174: 0
A175: 174 | B175: 2021-03-22 | C175: Visa | D175: Sortie | E175: Bordeaux | F175: Cable Bordeaux | G175: IVC INTERNET | H175: 74.68 | I175: 26-05-2021 16:48:184 | J175: mars | K175: 2021 | L175: 0
A176: 175 | B176: 2021-03-22 | C176: Chèque | D176: Sortie | E176: Divers | F176: Vacances Hébergement | G176: Chalet Bournival | H176: 200 | I176: 26-05-2021 16:48:185 | J176: mars | K176: 2021 | L176: 0
A177: 176 | B177: 2021-03-22 | C177: Visa | D177: Sortie | E177: Alimentation | F177: Épicerie | G177: Fromages de choix | H177: 6.3 | I177: 26-05-2021 16:48:186 | J177: mars | K177: 2021 | L177: 0
A178: 177 | B178: 2021-03-24 | C178: Visa | D178: Sortie | E178: Santé | F178: Médicaments | G178: Jean Coutu | H178: 10.33 | I178: 26-05-2021 16:48:187 | J178: mars | K178: 2021 | L178: 0
A179: 178 | B179: 2021-03-24 | C179: Visa | D179: Sortie | E179: Alimentation | F179: Épicerie | G179: Marché Métro | H179: 53.38 | I179: 26-05-2021 16:48:188 | J179: mars | K179: 2021 | L179: 0
A180: 179 | B180: 2021-03-25 | C180: Visa | D180: Sortie | E180: Alimentation | F180: Épicerie | G180: Fromages de choix | H180: 3.15 | I180: 26-05-2021 16:48:189 | J180: mars | K180: 2021 | L180: 0
A181: 180 | B181: 2021-03-25 | C181: Visa | D181: Sortie | E181: Alimentation | F181: Épicerie | G181: Fromages de choix | H181: 9.71 | I181: 26-05-2021 16:48:190 | J181: mars | K181: 2021 | L181: 0
A182: 181 | B182: 2021-03-25 | C182: Chèque | D182: Entrée | E182: Entrée | F182: Autre revenu | G182: Autre revenu | H182: 200 | I182: 26-05-2021 16:48:191 | J182: mars | K182: 2021 | L182: 0
A183: 182 | B183: 2021-03-25 | C183: Chèque | D183: Sortie | E183: Paiement de dettes | F183: Visa | G183: Visa | H183: 1474.68 | I183: 26-05-2021 16:48:192 | J183: mars | K183: 2021 | L183: 0
A184: 183 | B184: 2021-03-26 | C184: Visa | D184: Sortie | E184: Santé | F184: Médicaments | G184: Jean Coutu | H184: 5.04 | I184: 26-05-2021 16:48:193 | J184: mars | K184: 2021 | L184: 0
A185: 184 | B185: 2021-03-26 | C185: Visa | D185: Sortie | E185: Auto | F185: Stationnement | G185: Autre | H185: 3.57 | I185: 26-05-2021 16:48:194 | J185: mars | K185: 2021 | L185: 0
A186: 185 | B186: 2021-03-27 | C186: Chèque | D186: Entrée | E186: Entrée | F186: Revenu de location | G186: Locataire | H186: 235 | I186: 26-05-2021 16:48:195 | J186: mars | K186: 2021 | L186: 0
A187: 186 | B187: 2021-03-27 | C187: Diapason | D187: Sortie | E187: Perte sur le marché | F187: Perte sur le marché | G187: Diapason | H187: 87.36 | I187: 26-05-2021 16:48:196 | J187: mars | K187: 2021 | L187: 0
A188: 187 | B188: 2021-03-27 | C188: Ind All | D188: Sortie | E188: Perte sur le marché | F188: Perte sur le marché | G188: Ind All | H188: 91.76 | I188: 26-05-2021 16:48:197 | J188: mars | K188: 2021 | L188: 0
A189: 188 | B189: 2021-03-27 | C189: Zénitude | D189: Entrée | E189: Entrée | F189: Dividende | G189: Zenitude | H189: 26.02 | I189: 26-05-2021 16:48:198 | J189: mars | K189: 2021 | L189: 0
A190: 189 | B190: 2021-03-27 | C190: Épargne impôts | D190: Entrée | E190: Entrée | F190: Dividende | G190: Épargne impôts | H190: 0 | I190: 26-05-2021 16:48:199 | J190: mars | K190: 2021 | L190: 0
A191: 190 | B191: 2021-03-27 | C191: Chèque | D191: Sortie | E191: Auto | F191: Location Honda | G191: Honda | H191: 285 | I191: 26-05-2021 16:48:200 | J191: mars | K191: 2021 | L191: 0
A192: 191 | B192: 2021-03-27 | C192: Liquide | D192: Entrée | E192: Entrée | F192: Autre revenu | G192: Autre revenu | H192: 150 | I192: 26-05-2021 16:48:201 | J192: mars | K192: 2021 | L192: 0
A193: 192 | B193: 2021-03-27 | C193: Visa | D193: Sortie | E193: Alimentation | F193: Épicerie | G193: Zytynsky Deli | H193: 54 | I193: 26-05-2021 16:48:202 | J193: mars | K193: 2021 | L193: 0
A194: 193 | B194: 2021-03-27 | C194: Visa | D194: Sortie | E194: Alimentation | F194: Épicerie | G194: Fruiterie Beaubien | H194: 8.99 | I194: 26-05-2021 16:48:203 | J194: =TEXT(B194,"mmmm") -> mars | K194: =YEAR(B194) -> 2021 | L194: =IF(B194<=EOMONTH(TODAY(),-1),0,1) -> 0
A195: 194 | B195: 2021-03-27 | C195: Visa | D195: Sortie | E195: Alimentation | F195: Épicerie | G195: Fromages de choix | H195: 9.84 | I195: 26-05-2021 16:48:204 | J195: mars | K195: 2021 | L195: 0
A196: 195 | B196: 2021-03-28 | C196: Visa | D196: Sortie | E196: Alimentation | F196: Épicerie | G196: Inter Marché | H196: 88.85 | I196: 26-05-2021 16:48:205 | J196: mars | K196: 2021 | L196: 0
A197: 196 | B197: 2021-03-29 | C197: Visa | D197: Sortie | E197: Animaux | F197: Nourriture animaux | G197: Pattes et Griffes | H197: 16.09 | I197: 26-05-2021 16:48:206 | J197: mars | K197: 2021 | L197: 0
A198: 197 | B198: 2021-03-30 | C198: Liquide | D198: Sortie | E198: Personnel | F198: Rencontre | G198: Autre | H198: 80 | I198: 26-05-2021 16:48:207 | J198: mars | K198: 2021 | L198: 0
A199: 198 | B199: 2021-03-30 | C199: Visa | D199: Sortie | E199: Auto | F199: Stationnement | G199: Ville de Montréal | H199: 2.32 | I199: 26-05-2021 16:48:208 | J199: mars | K199: 2021 | L199: 0
A200: 199 | B200: 2021-03-31 | C200: Visa | D200: Sortie | E200: Animaux | F200: Nourriture animaux | G200: Pattes et Griffes | H200: 5.04 | I200: 26-05-2021 16:48:209 | J200: mars | K200: 2021 | L200: 0
... 5347 more rows
